Capital or Revenue,Directorate,Transaction Number,Date,Service Area,Expenses Type,Amount,Supplier Name,
Revenue,Managing Director & Head of Paid Service,5105617220,04.03.2015,Strengthening Families,Payments to Voluntary and Other Associations,75.00,SPOTLIGHT BOUTIQUE,2
Revenue,Managing Director & Head of Paid Service,5105621007,25.03.2015,Strengthening Families,Payments to Voluntary and Other Associations,25.00,SPOTLIGHT BOUTIQUE,3
Revenue,Head of ASC & Community Wellbeing,5105622276,31.03.2015,Local Safeguarding Adults Board,Consultants Fees,"5,860.00",REDACTED PERSONAL DATA,4
Revenue,Managing Director & Head of Paid Service,5105619193,18.03.2015,Public Health Core,Professional Services,"5,600.00",REDACTED PERSONAL DATA,5
Revenue,Head of ASC & Community Wellbeing,5105617882,11.03.2015,Warm Homes Healthy People DoH,Operational Equipment,522.37,REDACTED PERSONAL DATA,6
Revenue,Head of ASC & Community Wellbeing,5105617901,11.03.2015,Warm Homes Healthy People DoH,Operational Equipment,127.16,REDACTED PERSONAL DATA,7
Revenue,Director of Childrens Services,5105621477,27.03.2015,Sandham Middle School Disposal,Security of Buildings,560.00,REDACTED PERSONAL DATA,8
Revenue,Director of Childrens Services,5105621477,27.03.2015,Hunnyhill Primary School Disposal,Security of Buildings,280.00,REDACTED PERSONAL DATA,9
Revenue,Director of Childrens Services,5105621477,27.03.2015,Clatterford Pupil Referral Unit (PRU),Security of Buildings,120.00,REDACTED PERSONAL DATA,10
Revenue,Director of Childrens Services,5105621477,27.03.2015,Sandham Middle School Disposal,Security of Buildings,50.00,REDACTED PERSONAL DATA,11
Revenue,Head of Economy & Tourism,5105618304,13.03.2015,Shared Ownership,Security of Buildings,100.00,REDACTED PERSONAL DATA,12
Revenue,Director of Childrens Services,5105618304,13.03.2015,Old Cowes Enterprise College,Security of Buildings,280.00,REDACTED PERSONAL DATA,13
Revenue,Head of HR & Organisational Change,5105618304,13.03.2015,Somerton Industrial Park,Security of Buildings,100.00,REDACTED PERSONAL DATA,14
Revenue,Head of Economy & Tourism,5105618304,13.03.2015,Church View Ventnor,Security of Buildings,100.00,REDACTED PERSONAL DATA,15
Revenue,Head of Economy & Tourism,5105618304,13.03.2015,"Atkinson Drive, Newport",Security of Buildings,100.00,REDACTED PERSONAL DATA,16
Revenue,Head of HR & Organisational Change,5105618304,13.03.2015,"Westridge, Ryde",Security of Buildings,25.00,REDACTED PERSONAL DATA,17
Revenue,Head of Economy & Tourism,5105618304,13.03.2015,Non-operational buildings,Security of Buildings,100.00,REDACTED PERSONAL DATA,18
Revenue,Head of Economy & Tourism,5105618304,13.03.2015,Carisbrooke Contact Centre,Security of Buildings,100.00,REDACTED PERSONAL DATA,19
Revenue,Director of Childrens Services,5105618304,13.03.2015,Youth- Shorwell,Security of Buildings,100.00,REDACTED PERSONAL DATA,20
Revenue,Director of Childrens Services,5105618304,13.03.2015,Youth- Cowes,Security of Buildings,100.00,REDACTED PERSONAL DATA,21
Revenue,Head of Economy & Tourism,5105618304,13.03.2015,York Centre E Cowes,Security of Buildings,300.00,REDACTED PERSONAL DATA,22
Revenue,Director of Childrens Services,5105618304,13.03.2015,Youth- Ryde  (Well St),Security of Buildings,100.00,REDACTED PERSONAL DATA,23
Revenue,Director of Childrens Services,5105618304,13.03.2015,Youth- Sandown/Lake,Security of Buildings,100.00,REDACTED PERSONAL DATA,24
Revenue,Director of Childrens Services,5105619983,20.03.2015,Special Discretionary Grants,Charges from Independent Providers,40.00,REDACTED PERSONAL DATA,25
Revenue,Director of Childrens Services,5105619981,20.03.2015,Special Discretionary Grants,Charges from Independent Providers,40.00,REDACTED PERSONAL DATA,26
Revenue,Director of Childrens Services,5105619995,20.03.2015,Special Discretionary Grants,Charges from Independent Providers,40.00,REDACTED PERSONAL DATA,27
Revenue,Director of Childrens Services,5105619994,20.03.2015,Special Discretionary Grants,Charges from Independent Providers,40.00,REDACTED PERSONAL DATA,28
Revenue,Director of Childrens Services,5105619992,20.03.2015,Special Discretionary Grants,Charges from Independent Providers,40.00,REDACTED PERSONAL DATA,29
Revenue,Director of Childrens Services,5105619991,20.03.2015,Special Discretionary Grants,Charges from Independent Providers,40.00,REDACTED PERSONAL DATA,30
Revenue,Director of Childrens Services,5105619988,20.03.2015,Special Discretionary Grants,Charges from Independent Providers,40.00,REDACTED PERSONAL DATA,31
Revenue,Director of Childrens Services,5105619987,20.03.2015,Special Discretionary Grants,Charges from Independent Providers,40.00,REDACTED PERSONAL DATA,32
Revenue,Director of Childrens Services,5105619985,20.03.2015,Special Discretionary Grants,Charges from Independent Providers,40.00,REDACTED PERSONAL DATA,33
Revenue,Director of Childrens Services,5105619984,20.03.2015,Special Discretionary Grants,Charges from Independent Providers,20.00,REDACTED PERSONAL DATA,34
Revenue,Director of Childrens Services,5105619990,20.03.2015,Special Discretionary Grants,Charges from Independent Providers,40.00,REDACTED PERSONAL DATA,35
Revenue,Director of Childrens Services,5105619989,20.03.2015,Special Discretionary Grants,Charges from Independent Providers,40.00,REDACTED PERSONAL DATA,36
Revenue,Director of Childrens Services,5105619980,20.03.2015,Special Discretionary Grants,Charges from Independent Providers,40.00,REDACTED PERSONAL DATA,37
Revenue,Head of ASC & Community Wellbeing,5105619968,20.03.2015,31 Carter Avenue,Maintenance of Operational Equipment,55.99,CHRIS' DOMESTIC SERVICES,38
Revenue,Head of ASC & Community Wellbeing,5105617544,06.03.2015,Highmead,Maintenance of Operational Equipment,45.00,CHRIS' DOMESTIC SERVICES,39
Revenue,Head of ASC & Community Wellbeing,5105621594,27.03.2015,Seagulls,Maintenance of Operational Equipment,100.00,CHRIS' DOMESTIC SERVICES,40
Revenue,Head of ASC & Community Wellbeing,5105621702,27.03.2015,Seagulls,Maintenance of Operational Equipment,45.00,CHRIS' DOMESTIC SERVICES,41
Revenue,Head of ASC & Community Wellbeing,5105617545,06.03.2015,Overbrook,Maintenance of Operational Equipment,45.00,CHRIS' DOMESTIC SERVICES,42
Revenue,Head of Corp Gov & Monitoring Officer,5105619581,18.03.2015,Coroner,Professional Services,189.44,REDACTED PERSONAL DATA,43
Revenue,Head of Corp Gov & Monitoring Officer,5105619583,18.03.2015,Coroner,Professional Services,852.48,REDACTED PERSONAL DATA,44
Revenue,Head of Corp Gov & Monitoring Officer,5105619583,18.03.2015,Coroner,Professional Services,112.48,REDACTED PERSONAL DATA,45
Revenue,Head of Corp Gov & Monitoring Officer,5105619583,18.03.2015,Coroner,Professional Services,106.56,REDACTED PERSONAL DATA,46
Revenue,Head of Corp Gov & Monitoring Officer,5105619583,18.03.2015,Coroner,Professional Services,112.48,REDACTED PERSONAL DATA,47
Revenue,Head of Corp Gov & Monitoring Officer,5105619583,18.03.2015,Coroner,Professional Services,118.40,REDACTED PERSONAL DATA,48
Revenue,Head of Corp Gov & Monitoring Officer,5105619583,18.03.2015,Coroner,Professional Services,8.55,REDACTED PERSONAL DATA,49
Revenue,Head of Corp Gov & Monitoring Officer,5105619583,18.03.2015,Coroner,Professional Services,112.48,REDACTED PERSONAL DATA,50
Revenue,Head of Corp Gov & Monitoring Officer,5105619588,18.03.2015,Coroner,Professional Services,70.45,REDACTED PERSONAL DATA,51
Revenue,Head of Corp Gov & Monitoring Officer,5105619586,18.03.2015,Coroner,Professional Services,378.88,REDACTED PERSONAL DATA,52
Revenue,Head of Corp Gov & Monitoring Officer,5105619586,18.03.2015,Coroner,Professional Services,106.56,REDACTED PERSONAL DATA,53
Revenue,Head of Corp Gov & Monitoring Officer,5105619590,18.03.2015,Coroner,Professional Services,260.48,REDACTED PERSONAL DATA,54
Revenue,Head of Corp Gov & Monitoring Officer,5105619590,18.03.2015,Coroner,Professional Services,106.56,REDACTED PERSONAL DATA,55
Revenue,Head of Corp Gov & Monitoring Officer,5105619590,18.03.2015,Coroner,Professional Services,100.64,REDACTED PERSONAL DATA,56
Revenue,Head of Corp Gov & Monitoring Officer,5105619590,18.03.2015,Coroner,Professional Services,112.48,REDACTED PERSONAL DATA,57
Revenue,Head of Corp Gov & Monitoring Officer,5105619592,18.03.2015,Coroner,Professional Services,318.37,REDACTED PERSONAL DATA,58
Revenue,Director of Childrens Services,5105619183,18.03.2015,7776 - GJ52 CYV - Iveco 14 Seat,Vehicle Maintenance Costs,169.89,ISLANDWIDE WINDSCREENS,59
Revenue,Director of Childrens Services,5105621900,31.03.2015,Complaints (Children & Families),Professional Services,"1,920.15",REDACTED PERSONAL DATA,60
Revenue,Managing Director & Head of Paid Service,5105621561,27.03.2015,Nutrition Initiatives,Payment to Private Contractors,"1,750.00",REDACTED PERSONAL DATA,61
Revenue,Head of Economy & Tourism,5105621750,31.03.2015,Arts Projects,Professional Services,175.00,REDACTED PERSONAL DATA,62
Revenue,Director of Childrens Services,5105617707,11.03.2015,Accreditation Centre,Training,96.00,REDACTED PERSONAL DATA,63
Revenue,Director of Childrens Services,5105617707,11.03.2015,Accreditation Centre,Training,96.00,REDACTED PERSONAL DATA,64
Revenue,Director of Childrens Services,5105621275,27.03.2015,Accreditation Centre,Training,48.00,REDACTED PERSONAL DATA,65
Revenue,Director of Childrens Services,5105621275,27.03.2015,Accreditation Centre,Training,48.00,REDACTED PERSONAL DATA,66
Revenue,Director of Childrens Services,5105621275,27.03.2015,Accreditation Centre,Training,64.00,REDACTED PERSONAL DATA,67
Revenue,Director of Childrens Services,5105621275,27.03.2015,Accreditation Centre,Training,32.00,REDACTED PERSONAL DATA,68
Revenue,Director of Childrens Services,5105621275,27.03.2015,Accreditation Centre,Training,64.00,REDACTED PERSONAL DATA,69
Revenue,Director of Childrens Services,5105621275,27.03.2015,Accreditation Centre,Training,192.00,REDACTED PERSONAL DATA,70
Revenue,Director of Childrens Services,5105621275,27.03.2015,Accreditation Centre,Training,80.00,REDACTED PERSONAL DATA,71
Revenue,Director of Childrens Services,5105621275,27.03.2015,Accreditation Centre,Training,80.00,REDACTED PERSONAL DATA,72
Revenue,Director of Childrens Services,5105621275,27.03.2015,Accreditation Centre,Training,96.00,REDACTED PERSONAL DATA,73
Revenue,Director of Childrens Services,5105621275,27.03.2015,Accreditation Centre,Training,96.00,REDACTED PERSONAL DATA,74
Revenue,Director of Childrens Services,5105621275,27.03.2015,Accreditation Centre,Training,96.00,REDACTED PERSONAL DATA,75
Revenue,Director of Childrens Services,5105617707,11.03.2015,Accreditation Centre,Training,96.00,REDACTED PERSONAL DATA,76
Revenue,Director of Childrens Services,5105617707,11.03.2015,Accreditation Centre,Training,48.00,REDACTED PERSONAL DATA,77
Revenue,Director of Childrens Services,5105621527,27.03.2015,Pathways to Traineeships,Payment to Private Contractors,"4,000.00",REDACTED PERSONAL DATA,78
Revenue,Managing Director & Head of Paid Service,5105621125,25.03.2015,Strengthening Families,Payments to Voluntary and Other Associations,50.00,REDACTED PERSONAL DATA,79
Revenue,Managing Director & Head of Paid Service,5105621239,27.03.2015,Strengthening Families,Payments to Voluntary and Other Associations,50.00,REDACTED PERSONAL DATA,80
Revenue,Director of Childrens Services,5105621248,27.03.2015,Clatterford Pupil Referral Unit (PRU),Professional Services,835.00,ISLAND EQUUS,81
Revenue,Director of Childrens Services,5105621260,27.03.2015,Clatterford Pupil Referral Unit (PRU),Professional Services,150.00,ISLAND EQUUS,82
Revenue,Managing Director & Head of Paid Service,5105617347,20.03.2015,"Advice, Prevention & Promotion",Payment to Private Contractors,"3,850.00",SUDANESE PUBLIC HEALTH CONSULTANCY GROUP,83
Revenue,Director of Childrens Services,5105617713,11.03.2015,Adult Community Learning,Training,156.00,REDACTED PERSONAL DATA,84
Revenue,Director of Childrens Services,5105620120,20.03.2015,Short Breaks,Charges from Independent Providers,453.91,REDACTED PERSONAL DATA,85
Revenue,Head of Economy & Tourism,5105617881,11.03.2015,Newport Library,Professional Services,195.00,REDACTED PERSONAL DATA,86
Revenue,Head of ASC & Community Wellbeing,5105620221,25.03.2015,Leaseholds by LA,Accommodation Costs - Leaseholder Payments,695.89,REDACTED PERSONAL DATA,87
Revenue,Head of ASC & Community Wellbeing,5105620221,25.03.2015,Leaseholds by LA,Accommodation Costs - Leaseholder Payments,695.89,REDACTED PERSONAL DATA,88
Revenue,Head of ASC & Community Wellbeing,5105620221,25.03.2015,Leaseholds by LA,Accommodation Costs - Leaseholder Payments,695.89,REDACTED PERSONAL DATA,89
Revenue,Head of ASC & Community Wellbeing,5105620221,25.03.2015,Leaseholds by LA,Accommodation Costs - Leaseholder Payments,695.89,REDACTED PERSONAL DATA,90
Revenue,Head of ASC & Community Wellbeing,5105620221,25.03.2015,Leaseholds by LA,Accommodation Costs - Leaseholder Payments,695.89,REDACTED PERSONAL DATA,91
Revenue,Head of Economy & Tourism,5105618671,18.03.2015,"St Thomas Church, Ryde",Minor Works,100.00,"PETER A ATTRILL, GARDENING SERVICES",92
Revenue,Managing Director & Head of Paid Service,5105621003,25.03.2015,Strengthening Families,Payments to Voluntary and Other Associations,50.00,REDACTED PERSONAL DATA,93
Revenue,Managing Director & Head of Paid Service,5105621017,25.03.2015,Strengthening Families,Payments to Voluntary and Other Associations,50.00,REDACTED PERSONAL DATA,94
Revenue,Managing Director & Head of Paid Service,5105621018,25.03.2015,Strengthening Families,Payments to Voluntary and Other Associations,50.00,REDACTED PERSONAL DATA,95
Revenue,Head of Economy & Tourism,5105621517,27.03.2015,Medina Theatre,Payment to Private Contractors,50.00,REDACTED PERSONAL DATA,96
Revenue,Director of Childrens Services,5105618797,18.03.2015,Workforce Development Schools,Training,"1,350.80",REDACTED PERSONAL DATA,97
Revenue,Director of Childrens Services,5105618796,18.03.2015,Workforce Development Schools,Training,589.80,REDACTED PERSONAL DATA,98
Revenue,Head of ASC & Community Wellbeing,5105620241,25.03.2015,Leaseholds by LA,Accommodation Costs - Leaseholder Payments,866.67,2K PROPERTY,99
Revenue,Head of Economy & Tourism,5105618250,13.03.2015,Westridge Squash Courts,Stock Purchases,206.80,3663 (BFS GROUP LTD),100
Revenue,Head of Economy & Tourism,5105621483,27.03.2015,Fairway Sports Complex,Stock Purchases,470.68,3663 (BFS GROUP LTD),101
Revenue,Head of Economy & Tourism,5105618260,13.03.2015,The Heights,Stock Purchases,234.73,3663 (BFS GROUP LTD),102
Revenue,Head of Economy & Tourism,5105618260,13.03.2015,The Heights,Stock Purchases,57.47,3663 (BFS GROUP LTD),103
Revenue,Head of Economy & Tourism,5105618252,13.03.2015,The Heights,Stock Purchases,171.62,3663 (BFS GROUP LTD),104
Revenue,Head of Economy & Tourism,5105618273,13.03.2015,The Heights,Stock Purchases,71.03,3663 (BFS GROUP LTD),105
Revenue,Head of Economy & Tourism,5105618279,13.03.2015,The Heights,Stock Purchases,342.90,3663 (BFS GROUP LTD),106
Revenue,Head of Economy & Tourism,5105621482,27.03.2015,The Heights,Stock Purchases,150.81,3663 (BFS GROUP LTD),107
Revenue,Head of Economy & Tourism,5105617917,11.03.2015,Medina Leisure Centre,Stock Purchases,254.57,3663 (BFS GROUP LTD),108
Revenue,Head of Economy & Tourism,5105619203,18.03.2015,Ryde Sports Centre,Stock Purchases,217.27,3663 (BFS GROUP LTD),109
Revenue,Head of ASC & Community Wellbeing,5105617168,04.03.2015,Adelaide Resource Centre,Catering Purchases,58.69,3663 (BFS GROUP LTD),110
Revenue,Head of ASC & Community Wellbeing,5105617167,04.03.2015,Adelaide Resource Centre,Catering Purchases,135.45,3663 (BFS GROUP LTD),111
Revenue,Head of ASC & Community Wellbeing,5105617165,04.03.2015,Adelaide Resource Centre,Catering Purchases,321.40,3663 (BFS GROUP LTD),112
Revenue,Head of ASC & Community Wellbeing,5105617167,04.03.2015,Adelaide Resource Centre,Catering Purchases,5.14,3663 (BFS GROUP LTD),113
Revenue,Head of ASC & Community Wellbeing,5105617165,04.03.2015,Adelaide Resource Centre,Catering Purchases,28.79,3663 (BFS GROUP LTD),114
Revenue,Head of ASC & Community Wellbeing,5105617602,06.03.2015,Gouldings Resource Centre,Catering Purchases,327.92,3663 (BFS GROUP LTD),115
Revenue,Head of ASC & Community Wellbeing,5105621827,31.03.2015,Gouldings Resource Centre,Catering Purchases,529.53,3663 (BFS GROUP LTD),116
Revenue,Head of ASC & Community Wellbeing,5105622099,31.03.2015,Gouldings Resource Centre,Catering Purchases,310.23,3663 (BFS GROUP LTD),117
Revenue,Head of ASC & Community Wellbeing,5105622260,31.03.2015,Gouldings Resource Centre,Catering Purchases,-28.92,3663 (BFS GROUP LTD),118
Revenue,Head of ASC & Community Wellbeing,5105622260,31.03.2015,Gouldings Resource Centre,Catering Purchases,-2.96,3663 (BFS GROUP LTD),119
Revenue,Head of ASC & Community Wellbeing,5105621827,31.03.2015,Gouldings Resource Centre,Catering Purchases,37.40,3663 (BFS GROUP LTD),120
Revenue,Head of ASC & Community Wellbeing,5105622099,31.03.2015,Gouldings Resource Centre,Catering Purchases,35.48,3663 (BFS GROUP LTD),121
Revenue,Head of ASC & Community Wellbeing,5105617253,04.03.2015,Westminster House,Catering Purchases,180.94,3663 (BFS GROUP LTD),122
Revenue,Head of ASC & Community Wellbeing,5105617211,04.03.2015,Westminster House,Catering Purchases,80.30,3663 (BFS GROUP LTD),123
Revenue,Head of ASC & Community Wellbeing,5105617210,04.03.2015,Westminster House,Catering Purchases,78.38,3663 (BFS GROUP LTD),124
Revenue,Head of Economy & Tourism,5105618257,13.03.2015,The Heights,Stock Purchases,109.12,3663 (BFS GROUP LTD),125
Revenue,Head of Economy & Tourism,5105618263,13.03.2015,The Heights,Stock Purchases,84.08,3663 (BFS GROUP LTD),126
Revenue,Head of Economy & Tourism,5105621480,27.03.2015,The Heights,Stock Purchases,98.17,3663 (BFS GROUP LTD),127
Revenue,Head of Economy & Tourism,5105618257,13.03.2015,The Heights,Stock Purchases,32.59,3663 (BFS GROUP LTD),128
Revenue,Head of Economy & Tourism,5105618263,13.03.2015,The Heights,Stock Purchases,53.48,3663 (BFS GROUP LTD),129
Revenue,Head of ASC & Community Wellbeing,5105621624,27.03.2015,The Laurels,Catering Purchases,194.97,3663 (BFS GROUP LTD),130
Revenue,Head of ASC & Community Wellbeing,5105621625,27.03.2015,The Laurels,Catering Purchases,23.47,3663 (BFS GROUP LTD),131
Revenue,Head of ASC & Community Wellbeing,5105621624,27.03.2015,The Laurels,Catering Purchases,4.84,3663 (BFS GROUP LTD),132
Revenue,Head of ASC & Community Wellbeing,5105621623,27.03.2015,Highmead,Catering Purchases,153.38,3663 (BFS GROUP LTD),133
Revenue,Head of Economy & Tourism,5105621480,27.03.2015,The Heights,Stock Purchases,77.77,3663 (BFS GROUP LTD),134
Revenue,Head of ASC & Community Wellbeing,5105618081,13.03.2015,Adelaide Resource Centre,Catering Purchases,148.86,3663 (BFS GROUP LTD),135
Revenue,Head of ASC & Community Wellbeing,5105618309,13.03.2015,Adelaide Resource Centre,Catering Purchases,178.70,3663 (BFS GROUP LTD),136
Revenue,Head of ASC & Community Wellbeing,5105621943,31.03.2015,Adelaide Resource Centre,Catering Purchases,346.44,3663 (BFS GROUP LTD),137
Revenue,Head of ASC & Community Wellbeing,5105619955,20.03.2015,Adelaide Resource Centre,Catering Purchases,178.18,3663 (BFS GROUP LTD),138
Revenue,Head of ASC & Community Wellbeing,5105621776,31.03.2015,Adelaide Resource Centre,Catering Purchases,16.31,3663 (BFS GROUP LTD),139
Revenue,Head of ASC & Community Wellbeing,5105618081,13.03.2015,Adelaide Resource Centre,Catering Purchases,17.51,3663 (BFS GROUP LTD),140
Revenue,Head of ASC & Community Wellbeing,5105618309,13.03.2015,Adelaide Resource Centre,Catering Purchases,8.13,3663 (BFS GROUP LTD),141
Revenue,Head of ASC & Community Wellbeing,5105621585,27.03.2015,Plean Dene,Catering Purchases,272.69,3663 (BFS GROUP LTD),142
Revenue,Head of ASC & Community Wellbeing,5105621587,27.03.2015,Plean Dene,Catering Purchases,139.13,3663 (BFS GROUP LTD),143
Revenue,Head of ASC & Community Wellbeing,5105621884,31.03.2015,Plean Dene,Catering Purchases,140.54,3663 (BFS GROUP LTD),144
Revenue,Head of ASC & Community Wellbeing,5105621585,27.03.2015,Plean Dene,Catering Purchases,51.05,3663 (BFS GROUP LTD),145
Revenue,Head of ASC & Community Wellbeing,5105621943,31.03.2015,Adelaide Resource Centre,Catering Purchases,50.97,3663 (BFS GROUP LTD),146
Revenue,Head of ASC & Community Wellbeing,5105619955,20.03.2015,Adelaide Resource Centre,Catering Purchases,33.53,3663 (BFS GROUP LTD),147
Revenue,Head of ASC & Community Wellbeing,5105621776,31.03.2015,Adelaide Resource Centre,Catering Purchases,10.95,3663 (BFS GROUP LTD),148
Revenue,Head of Economy & Tourism,5105621886,31.03.2015,Medina Leisure Centre,Stock Purchases,310.89,3663 (BFS GROUP LTD),149
Revenue,Head of Economy & Tourism,5105621889,31.03.2015,Medina Leisure Centre,Stock Purchases,430.92,3663 (BFS GROUP LTD),150
Revenue,Head of Economy & Tourism,5105621888,31.03.2015,Medina Leisure Centre,Stock Purchases,36.28,3663 (BFS GROUP LTD),151
Revenue,Head of Economy & Tourism,5105621599,27.03.2015,Medina Leisure Centre,Stock Purchases,90.38,3663 (BFS GROUP LTD),152
Revenue,Head of Economy & Tourism,5105621885,31.03.2015,Medina Leisure Centre,Stock Purchases,15.08,3663 (BFS GROUP LTD),153
Revenue,Head of Economy & Tourism,5105621888,31.03.2015,Medina Leisure Centre,Stock Purchases,43.82,3663 (BFS GROUP LTD),154
Revenue,Head of Economy & Tourism,5105621600,27.03.2015,Medina Leisure Centre,Stock Purchases,779.23,3663 (BFS GROUP LTD),155
Revenue,Head of Economy & Tourism,5105621715,27.03.2015,Medina Leisure Centre,Stock Purchases,-16.76,3663 (BFS GROUP LTD),156
Revenue,Head of ASC & Community Wellbeing,5105620089,20.03.2015,Westminster House,Catering Purchases,184.60,3663 (BFS GROUP LTD),157
Revenue,Head of ASC & Community Wellbeing,5105620091,20.03.2015,Westminster House,Catering Purchases,133.68,3663 (BFS GROUP LTD),158
Revenue,Head of ASC & Community Wellbeing,5105620087,20.03.2015,Westminster House,Catering Purchases,67.60,3663 (BFS GROUP LTD),159
Revenue,Head of ASC & Community Wellbeing,5105622123,31.03.2015,Gouldings Resource Centre,Catering Purchases,589.92,3663 (BFS GROUP LTD),160
Revenue,Head of ASC & Community Wellbeing,5105622123,31.03.2015,Gouldings Resource Centre,Catering Purchases,8.77,3663 (BFS GROUP LTD),161
Revenue,Head of ASC & Community Wellbeing,5105621496,31.03.2015,Highmead,Minor Works,"1,900.00",A & M APPLIANCE CARE,162
Revenue,Head of ASC & Community Wellbeing,5105621499,31.03.2015,Plean Dene,Minor Works,"3,230.00",A & M APPLIANCE CARE,163
Revenue,Head of ASC & Community Wellbeing,5105617996,31.03.2015,Gouldings Resource Centre,Maintenance of Operational Equipment,286.25,A & M APPLIANCE CARE,164
Revenue,Chief Fire Officer,5105617998,11.03.2015,Deputy Chief Fire Office,Prop Svs only - Day to day mtce,55.00,A & M APPLIANCE CARE,165
Revenue,Head of ASC & Community Wellbeing,5105618078,13.03.2015,Adelaide Resource Centre,Consumable Cleaning Materials,249.00,A & M APPLIANCE CARE,166
Revenue,Head of ASC & Community Wellbeing,5105622000,31.03.2015,Gouldings Resource Centre,Consumable Cleaning Materials,138.00,A & M APPLIANCE CARE,167
Revenue,Head of ASC & Community Wellbeing,5105621914,31.03.2015,Overbrook,Minor Works,142.33,A & M APPLIANCE CARE,168
Revenue,Director of Childrens Services,5105621214,25.03.2015,Core Programmes,Training,"1,100.00",REDACTED PERSONAL DATA,172
Revenue,Director of Childrens Services,5105618316,13.03.2015,Workforce Development - Early Years,Training,725.00,REDACTED PERSONAL DATA,173
Revenue,Head of ASC & Community Wellbeing,5105620227,25.03.2015,Leaseholds by LA,Accommodation Costs - Leaseholder Payments,780.00,REDACTED PERSONAL DATA,180
Revenue,Director of Childrens Services,5105618124,13.03.2015,Special Guardianship Order Costs,Support Children,207.73,REDACTED PERSONAL DATA,186
Revenue,Director of Childrens Services,5105619720,20.03.2015,Special Guardianship Order Costs,Support Children,207.73,REDACTED PERSONAL DATA,187
Revenue,Director of Childrens Services,5105621320,27.03.2015,Special Guardianship Order Costs,Support Children,207.73,REDACTED PERSONAL DATA,188
Revenue,Director of Childrens Services,5105621320,27.03.2015,Special Guardianship Order Costs,Support Children,168.39,REDACTED PERSONAL DATA,189
Revenue,Director of Childrens Services,5105617403,06.03.2015,Special Guardianship Order Costs,Support Children,168.39,REDACTED PERSONAL DATA,190
Revenue,Director of Childrens Services,5105618124,13.03.2015,Special Guardianship Order Costs,Support Children,168.39,REDACTED PERSONAL DATA,191
Revenue,Director of Childrens Services,5105619720,20.03.2015,Special Guardianship Order Costs,Support Children,168.39,REDACTED PERSONAL DATA,192
Revenue,Director of Childrens Services,5105617403,06.03.2015,Special Guardianship Order Costs,Support Children,207.73,REDACTED PERSONAL DATA,193
Revenue,Director of Childrens Services,5105617471,06.03.2015,Leaving Care Costs,Support Children,120.89,REDACTED PERSONAL DATA,196
Revenue,Director of Childrens Services,5105618192,13.03.2015,Leaving Care Costs,Support Children,120.89,REDACTED PERSONAL DATA,197
Revenue,Director of Childrens Services,5105619788,20.03.2015,Leaving Care Costs,Support Children,120.89,REDACTED PERSONAL DATA,198
Revenue,Director of Childrens Services,5105621388,27.03.2015,Leaving Care Costs,Support Children,120.89,REDACTED PERSONAL DATA,199
Revenue,Director of Childrens Services,5105617471,06.03.2015,Leaving Care Costs,Accommodation Costs - Service Users,57.50,REDACTED PERSONAL DATA,200
Revenue,Director of Childrens Services,5105618192,13.03.2015,Leaving Care Costs,Accommodation Costs - Service Users,57.50,REDACTED PERSONAL DATA,201
Revenue,Director of Childrens Services,5105619788,20.03.2015,Leaving Care Costs,Accommodation Costs - Service Users,57.50,REDACTED PERSONAL DATA,202
Revenue,Director of Childrens Services,5105621388,27.03.2015,Leaving Care Costs,Accommodation Costs - Service Users,57.50,REDACTED PERSONAL DATA,203
Revenue,Director of Childrens Services,5105618192,13.03.2015,Leaving Care Costs,Support Children,120.89,REDACTED PERSONAL DATA,204
Revenue,Director of Childrens Services,5105619788,20.03.2015,Leaving Care Costs,Support Children,120.89,REDACTED PERSONAL DATA,205
Revenue,Director of Childrens Services,5105621388,27.03.2015,Leaving Care Costs,Support Children,120.89,REDACTED PERSONAL DATA,206
Revenue,Director of Childrens Services,5105618192,13.03.2015,Leaving Care Costs,Accommodation Costs - Service Users,57.50,REDACTED PERSONAL DATA,207
Revenue,Director of Childrens Services,5105619788,20.03.2015,Leaving Care Costs,Accommodation Costs - Service Users,57.50,REDACTED PERSONAL DATA,208
Revenue,Director of Childrens Services,5105621388,27.03.2015,Leaving Care Costs,Accommodation Costs - Service Users,57.50,REDACTED PERSONAL DATA,209
Revenue,Head of ASC & Community Wellbeing,5105620236,25.03.2015,Leaseholds by LA,Accommodation Costs - Leaseholder Payments,510.25,REDACTED PERSONAL DATA,215
Revenue,Head of ASC & Community Wellbeing,5105620236,25.03.2015,Leaseholds by LA,Accommodation Costs - Leaseholder Payments,510.25,REDACTED PERSONAL DATA,216
Revenue,Head of ASC & Community Wellbeing,5105620236,25.03.2015,Leaseholds by LA,Accommodation Costs - Leaseholder Payments,510.25,REDACTED PERSONAL DATA,217
Revenue,Head of ASC & Community Wellbeing,5105620236,25.03.2015,Leaseholds by LA,Accommodation Costs - Leaseholder Payments,510.25,REDACTED PERSONAL DATA,218
Revenue,Head of ASC & Community Wellbeing,5105620236,25.03.2015,Leaseholds by LA,Accommodation Costs - Leaseholder Payments,510.25,REDACTED PERSONAL DATA,219
Revenue,Head of ASC & Community Wellbeing,5105620236,25.03.2015,Leaseholds by LA,Accommodation Costs - Leaseholder Payments,510.25,REDACTED PERSONAL DATA,220
Revenue,Head of Corp Gov & Monitoring Officer,5105621821,31.03.2015,Litigation Costs,Legal Fees - Other Parties,480.00,REDACTED PERSONAL DATA,221
Revenue,Director of Childrens Services,5105617382,06.03.2015,Adoption Costs,Support Children,186.49,REDACTED PERSONAL DATA,227
Revenue,Director of Childrens Services,5105618103,13.03.2015,Adoption Costs,Support Children,186.49,REDACTED PERSONAL DATA,228
Revenue,Director of Childrens Services,5105619698,20.03.2015,Adoption Costs,Support Children,186.49,REDACTED PERSONAL DATA,229
Revenue,Director of Childrens Services,5105621298,27.03.2015,Adoption Costs,Support Children,186.49,REDACTED PERSONAL DATA,230
Revenue,Director of Childrens Services,5105619758,20.03.2015,In-house Fostering,Boarding Out Allowances,159.85,REDACTED PERSONAL DATA,238
Revenue,Director of Childrens Services,5105621358,27.03.2015,In-house Fostering,Boarding Out Allowances,159.85,REDACTED PERSONAL DATA,239
Revenue,Director of Childrens Services,5105617441,06.03.2015,In-house Fostering,Boarding Out Allowances,159.85,REDACTED PERSONAL DATA,240
Revenue,Director of Childrens Services,5105618162,13.03.2015,In-house Fostering,Boarding Out Allowances,159.85,REDACTED PERSONAL DATA,241
Revenue,Head of ASC & Community Wellbeing,5105620238,25.03.2015,Leaseholds by LA,Accommodation Costs - Leaseholder Payments,780.00,REDACTED PERSONAL DATA,242
Revenue,Head of ASC & Community Wellbeing,5105620225,25.03.2015,Leaseholds by LA,Accommodation Costs - Leaseholder Payments,649.83,REDACTED PERSONAL DATA,252
Revenue,Head of ASC & Community Wellbeing,5105620225,25.03.2015,Leaseholds by LA,Accommodation Costs - Leaseholder Payments,789.01,REDACTED PERSONAL DATA,253
Revenue,Head of ASC & Community Wellbeing,5105620225,25.03.2015,Leaseholds by LA,Accommodation Costs - Leaseholder Payments,835.08,REDACTED PERSONAL DATA,254
Revenue,Director of Childrens Services,5105619814,20.03.2015,In-house Fostering,Boarding Out Allowances,242.08,REDACTED PERSONAL DATA,261
Revenue,Director of Childrens Services,5105621414,27.03.2015,In-house Fostering,Boarding Out Allowances,242.08,REDACTED PERSONAL DATA,262
Revenue,Director of Childrens Services,5105617497,06.03.2015,In-house Fostering,Boarding Out Allowances,242.08,REDACTED PERSONAL DATA,263
Revenue,Director of Childrens Services,5105618218,13.03.2015,In-house Fostering,Boarding Out Allowances,242.08,REDACTED PERSONAL DATA,264
Revenue,Director of Childrens Services,5105617497,06.03.2015,In-house Fostering,Boarding Out Allowances,150.00,REDACTED PERSONAL DATA,265
Revenue,Director of Childrens Services,5105618218,13.03.2015,In-house Fostering,Boarding Out Allowances,150.00,REDACTED PERSONAL DATA,266
Revenue,Director of Childrens Services,5105619814,20.03.2015,In-house Fostering,Boarding Out Allowances,150.00,REDACTED PERSONAL DATA,267
Revenue,Director of Childrens Services,5105621414,27.03.2015,In-house Fostering,Boarding Out Allowances,150.00,REDACTED PERSONAL DATA,268
Revenue,Director of Childrens Services,5105617892,11.03.2015,Branstone Farm Studies Centre,Prop Svs only - Day to day mtce,68.00,A-1 GARAGE DOOR SPECIALISTS (IOW),271
Revenue,Head of ASC & Community Wellbeing,5105618387,13.03.2015,Supporting People Older Persons,Payment to Private Contractors,376.80,ABBEYFIELD WEST WIGHT SOCIETY,273
Revenue,Head of Economy & Tourism,5105617344,06.03.2015,Dinosaur Isle Museum (Sandown Geology),Operational Equipment,374.76,ABOUT PRESENTATION LTD,274
Revenue,Head of Economy & Tourism,5105618700,18.03.2015,Dinosaur Isle Museum (Sandown Geology),Operational Equipment,"2,082.50",ABOUT PRESENTATION LTD,275
Revenue,Head of ASC & Community Wellbeing,5105622208,31.03.2015,"Options,Prevention & Register Team",Computer Maintenance,"22,769.00",ABRITAS LTD,276
Revenue,Head of ASC & Community Wellbeing,5105620429,25.03.2015,Elderly Frail Residential Care,Charges from Independent Providers,"1,700.44",ACACIA CARE HOME,277
Revenue,Head of ASC & Community Wellbeing,5105620429,25.03.2015,Elderly Mentally Ill Residential Care,Charges from Independent Providers,"1,781.36",ACACIA CARE HOME,278
Revenue,Head of ASC & Community Wellbeing,5105620429,25.03.2015,Elderly Frail Residential Care,Charges from Independent Providers,"1,700.44",ACACIA CARE HOME,279
Revenue,Head of ASC & Community Wellbeing,5105620429,25.03.2015,Elderly Frail Residential Care,Charges from Independent Providers,224.34,ACACIA CARE HOME,280
Revenue,Head of ASC & Community Wellbeing,5105618822,18.03.2015,Elderly Frail Residential Care,Charges from Independent Providers,"1,214.60",ACACIA CARE HOME,281
Revenue,Head of ASC & Community Wellbeing,5105621937,31.03.2015,Elderly Frail Residential Care,Charges from Independent Providers,"1,457.52",ACACIA CARE HOME,282
Revenue,Director of Childrens Services,5105617219,04.03.2015,Thompson House Tuition Centre (PRU),Professional Services,"1,518.00",ACADEMY21 LIMITED,283
Revenue,Head of Planning & Regulatory Services,5105617940,11.03.2015,Licensing Services,Interview & recruitment expenses,396.00,ACCESS PERSONAL CHECKING SERVICES LTD,284
Revenue,Head of Planning & Regulatory Services,5105617940,11.03.2015,Licensing Services,Professional Services,54.00,ACCESS PERSONAL CHECKING SERVICES LTD,285
Revenue,Head of ASC & Community Wellbeing,5105618313,13.03.2015,Community Outreach,Interview & recruitment expenses,132.00,ACCESS PERSONAL CHECKING SERVICES LTD,286
Revenue,Director of Childrens Services,5105618313,13.03.2015,Adoption Team,Interview & recruitment expenses,396.00,ACCESS PERSONAL CHECKING SERVICES LTD,287
Revenue,Director of Childrens Services,5105618313,13.03.2015,Reviewing Officer,Interview & recruitment expenses,44.00,ACCESS PERSONAL CHECKING SERVICES LTD,288
Revenue,Head of ASC & Community Wellbeing,5105618313,13.03.2015,Learning Disability Homes Management & Admin,Interview & recruitment expenses,44.00,ACCESS PERSONAL CHECKING SERVICES LTD,289
Revenue,Director of Childrens Services,5105618313,13.03.2015,Direct Payments Children & Families,Interview & recruitment expenses,44.00,ACCESS PERSONAL CHECKING SERVICES LTD,290
Revenue,Head of ASC & Community Wellbeing,5105618313,13.03.2015,"Options,Prevention & Register Team",Interview & recruitment expenses,8.00,ACCESS PERSONAL CHECKING SERVICES LTD,291
Revenue,Head of Exchequer Services,5105618313,13.03.2015,Revenues & Benefits Operational Support,Interview & recruitment expenses,8.00,ACCESS PERSONAL CHECKING SERVICES LTD,292
Revenue,Head of Corp Gov & Monitoring Officer,5105618313,13.03.2015,Legal Services Section,Interview & recruitment expenses,16.00,ACCESS PERSONAL CHECKING SERVICES LTD,293
Revenue,Head of Economy & Tourism,5105618313,13.03.2015,School Music Service,Interview & recruitment expenses,44.00,ACCESS PERSONAL CHECKING SERVICES LTD,294
Revenue,Director of Childrens Services,5105618313,13.03.2015,In-house Fostering,Interview & recruitment expenses,572.00,ACCESS PERSONAL CHECKING SERVICES LTD,295
Revenue,Head of ASC & Community Wellbeing,5105618313,13.03.2015,Highmead,Interview & recruitment expenses,264.00,ACCESS PERSONAL CHECKING SERVICES LTD,296
Revenue,Director of Childrens Services,5105618313,13.03.2015,Beaulieu House,Interview & recruitment expenses,44.00,ACCESS PERSONAL CHECKING SERVICES LTD,297
Revenue,Director of Childrens Services,5105618313,13.03.2015,Direct Payments Children & Families,Interview & recruitment expenses,44.00,ACCESS PERSONAL CHECKING SERVICES LTD,298
Revenue,Head of ASC & Community Wellbeing,5105618313,13.03.2015,Learning Disability Homes Management & Admin,Interview & recruitment expenses,6.00,ACCESS PERSONAL CHECKING SERVICES LTD,299
Revenue,Director of Childrens Services,5105618313,13.03.2015,Direct Payments Children & Families,Interview & recruitment expenses,6.00,ACCESS PERSONAL CHECKING SERVICES LTD,300
Revenue,Head of Economy & Tourism,5105618313,13.03.2015,School Music Service,Interview & recruitment expenses,42.00,ACCESS PERSONAL CHECKING SERVICES LTD,301
Revenue,Director of Childrens Services,5105618313,13.03.2015,In-house Fostering,Interview & recruitment expenses,78.00,ACCESS PERSONAL CHECKING SERVICES LTD,302
Revenue,Head of ASC & Community Wellbeing,5105618313,13.03.2015,Highmead,Interview & recruitment expenses,36.00,ACCESS PERSONAL CHECKING SERVICES LTD,303
Revenue,Director of Childrens Services,5105618313,13.03.2015,Beaulieu House,Interview & recruitment expenses,6.00,ACCESS PERSONAL CHECKING SERVICES LTD,304
Revenue,Director of Childrens Services,5105618313,13.03.2015,Children in Care Team,Interview & recruitment expenses,6.00,ACCESS PERSONAL CHECKING SERVICES LTD,305
Revenue,Head of Corp Gov & Monitoring Officer,5105618313,13.03.2015,Legal Services Section,Interview & recruitment expenses,50.00,ACCESS PERSONAL CHECKING SERVICES LTD,306
Revenue,Head of Exchequer Services,5105618313,13.03.2015,Revenues & Benefits Operational Support,Interview & recruitment expenses,25.00,ACCESS PERSONAL CHECKING SERVICES LTD,307
Revenue,Director of Childrens Services,5105618313,13.03.2015,Clatterford Pupil Referral Unit (PRU),Interview & recruitment expenses,6.00,ACCESS PERSONAL CHECKING SERVICES LTD,308
Revenue,Head of ASC & Community Wellbeing,5105618313,13.03.2015,Adelaide Resource Centre,Interview & recruitment expenses,6.00,ACCESS PERSONAL CHECKING SERVICES LTD,309
Revenue,Director of Childrens Services,5105618313,13.03.2015,Children In Need 2,Interview & recruitment expenses,6.00,ACCESS PERSONAL CHECKING SERVICES LTD,310
Revenue,Head of ASC & Community Wellbeing,5105618313,13.03.2015,Community Outreach,Interview & recruitment expenses,18.00,ACCESS PERSONAL CHECKING SERVICES LTD,311
Revenue,Director of Childrens Services,5105618313,13.03.2015,Adoption Team,Interview & recruitment expenses,54.00,ACCESS PERSONAL CHECKING SERVICES LTD,312
Revenue,Director of Childrens Services,5105618313,13.03.2015,Reviewing Officer,Interview & recruitment expenses,6.00,ACCESS PERSONAL CHECKING SERVICES LTD,313
Revenue,Director of Childrens Services,5105618313,13.03.2015,Clatterford Pupil Referral Unit (PRU),Interview & recruitment expenses,44.00,ACCESS PERSONAL CHECKING SERVICES LTD,314
Revenue,Head of ASC & Community Wellbeing,5105618313,13.03.2015,Adelaide Resource Centre,Interview & recruitment expenses,44.00,ACCESS PERSONAL CHECKING SERVICES LTD,315
Revenue,Head of ASC & Community Wellbeing,5105618313,13.03.2015,"Options,Prevention & Register Team",Interview & recruitment expenses,25.00,ACCESS PERSONAL CHECKING SERVICES LTD,316
Revenue,Director of Childrens Services,5105618313,13.03.2015,Children In Need 2,Interview & recruitment expenses,44.00,ACCESS PERSONAL CHECKING SERVICES LTD,317
Revenue,Chief Fire Officer,5105617601,11.03.2015,Fire Technical Support,Maintenance of Operational Equipment,"1,160.00",ACCESS RESCUE CONSULTANTS,318
Revenue,Head of ASC & Community Wellbeing,5105619846,20.03.2015,Elderly Frail Homecare,Charges from Independent Providers,"2,398.96",ACORN CARE SERVICE LTD,319
Revenue,Head of ASC & Community Wellbeing,5105619845,20.03.2015,Elderly Frail Homecare,Charges from Independent Providers,458.40,ACORN CARE SERVICE LTD,320
Revenue,Head of ASC & Community Wellbeing,5105619844,20.03.2015,Elderly Frail Homecare,Charges from Independent Providers,"3,189.70",ACORN CARE SERVICE LTD,321
Revenue,Head of ASC & Community Wellbeing,5105619847,20.03.2015,Elderly Frail Homecare,Charges from Independent Providers,"2,192.68",ACORN CARE SERVICE LTD,322
Revenue,Head of ASC & Community Wellbeing,5105619849,20.03.2015,Elderly Frail Homecare,Charges from Independent Providers,"1,302.62",ACORN CARE SERVICE LTD,323
Revenue,Head of ASC & Community Wellbeing,5105619851,20.03.2015,Elderly Frail Homecare,Charges from Independent Providers,"1,615.86",ACORN CARE SERVICE LTD,324
Revenue,Head of ASC & Community Wellbeing,5105619852,20.03.2015,Elderly Frail Homecare,Charges from Independent Providers,160.44,ACORN CARE SERVICE LTD,325
Revenue,Head of ASC & Community Wellbeing,5105619854,20.03.2015,Elderly Frail Homecare,Charges from Independent Providers,"1,856.52",ACORN CARE SERVICE LTD,326
Revenue,Head of ASC & Community Wellbeing,5105619850,20.03.2015,Elderly Frail Homecare,Charges from Independent Providers,61.12,ACORN CARE SERVICE LTD,327
Revenue,Head of ASC & Community Wellbeing,5105619848,20.03.2015,Elderly Frail Homecare,Charges from Independent Providers,989.38,ACORN CARE SERVICE LTD,328
Revenue,Head of ASC & Community Wellbeing,5105619857,20.03.2015,Elderly Frail Homecare,Charges from Independent Providers,664.68,ACORN CARE SERVICE LTD,329
Revenue,Head of ASC & Community Wellbeing,5105619853,20.03.2015,Elderly Frail Homecare,Charges from Independent Providers,91.68,ACORN CARE SERVICE LTD,330
Revenue,Head of ASC & Community Wellbeing,5105619856,20.03.2015,Elderly Frail Homecare,Regular Respite Care,488.96,ACORN CARE SERVICE LTD,331
Revenue,Head of ASC & Community Wellbeing,5105619855,20.03.2015,Elderly Frail Homecare,Charges from Independent Providers,893.88,ACORN CARE SERVICE LTD,332
Revenue,Head of ASC & Community Wellbeing,5105619858,20.03.2015,Elderly Frail Homecare,Charges from Independent Providers,"1,245.32",ACORN CARE SERVICE LTD,333
Revenue,Head of ASC & Community Wellbeing,5105619863,20.03.2015,Elderly Frail Homecare,Charges from Independent Providers,974.10,ACORN CARE SERVICE LTD,334
Revenue,Head of ASC & Community Wellbeing,5105619860,20.03.2015,Elderly Frail Homecare,Regular Respite Care,122.24,ACORN CARE SERVICE LTD,335
Revenue,Head of ASC & Community Wellbeing,5105619861,20.03.2015,Elderly Frail Homecare,Charges from Independent Providers,"4,171.44",ACORN CARE SERVICE LTD,336
Revenue,Head of ASC & Community Wellbeing,5105619859,20.03.2015,Elderly Frail Homecare,Charges from Independent Providers,11.46,ACORN CARE SERVICE LTD,337
Revenue,Head of ASC & Community Wellbeing,5105619862,20.03.2015,Elderly Frail Homecare,Regular Respite Care,183.36,ACORN CARE SERVICE LTD,338
Revenue,Head of ASC & Community Wellbeing,5105619865,20.03.2015,Elderly Frail Homecare,Charges from Independent Providers,760.18,ACORN CARE SERVICE LTD,339
Revenue,Head of ASC & Community Wellbeing,5105619866,20.03.2015,Elderly Frail Homecare,Regular Respite Care,183.36,ACORN CARE SERVICE LTD,340
Revenue,Head of ASC & Community Wellbeing,5105619864,20.03.2015,Elderly Frail Homecare,Regular Respite Care,183.36,ACORN CARE SERVICE LTD,341
Revenue,Head of ASC & Community Wellbeing,5105619867,20.03.2015,Elderly Frail Homecare,Charges from Independent Providers,534.80,ACORN CARE SERVICE LTD,342
Revenue,Head of ASC & Community Wellbeing,5105619869,20.03.2015,Elderly Frail Homecare,Charges from Independent Providers,668.50,ACORN CARE SERVICE LTD,343
Revenue,Head of ASC & Community Wellbeing,5105619868,20.03.2015,Elderly Frail Homecare,Charges from Independent Providers,"1,069.60",ACORN CARE SERVICE LTD,344
Revenue,Head of ASC & Community Wellbeing,5105619870,20.03.2015,Elderly Frail Homecare,Charges from Independent Providers,802.20,ACORN CARE SERVICE LTD,345
Revenue,Head of ASC & Community Wellbeing,5105619871,20.03.2015,Elderly Frail Homecare,Charges from Independent Providers,317.06,ACORN CARE SERVICE LTD,346
Revenue,Head of ASC & Community Wellbeing,5105619872,20.03.2015,Elderly Frail Homecare,Charges from Independent Providers,458.40,ACORN CARE SERVICE LTD,347
Revenue,Head of ASC & Community Wellbeing,5105619873,20.03.2015,Elderly Frail Homecare,Charges from Independent Providers,874.78,ACORN CARE SERVICE LTD,348
Revenue,Head of ASC & Community Wellbeing,5105619874,20.03.2015,Elderly Frail Homecare,Charges from Independent Providers,496.60,ACORN CARE SERVICE LTD,349
Revenue,Head of ASC & Community Wellbeing,5105619875,20.03.2015,Elderly Frail Homecare,Charges from Independent Providers,"3,850.56",ACORN CARE SERVICE LTD,350
Revenue,Head of ASC & Community Wellbeing,5105619876,20.03.2015,Elderly Frail Homecare,Charges from Independent Providers,"1,115.44",ACORN CARE SERVICE LTD,351
Revenue,Head of ASC & Community Wellbeing,5105619877,20.03.2015,Elderly Frail Homecare,Charges from Independent Providers,"1,245.32",ACORN CARE SERVICE LTD,352
Revenue,Head of ASC & Community Wellbeing,5105619878,20.03.2015,Elderly Frail Homecare,Charges from Independent Providers,481.32,ACORN CARE SERVICE LTD,353
Revenue,Head of ASC & Community Wellbeing,5105619879,20.03.2015,Elderly Frail Homecare,Regular Respite Care,305.60,ACORN CARE SERVICE LTD,354
Revenue,Head of ASC & Community Wellbeing,5105619880,20.03.2015,Elderly Frail Homecare,Charges from Independent Providers,"1,191.84",ACORN CARE SERVICE LTD,355
Revenue,Head of ASC & Community Wellbeing,5105619881,20.03.2015,Elderly Frail Homecare,Charges from Independent Providers,61.12,ACORN CARE SERVICE LTD,356
Revenue,Head of ASC & Community Wellbeing,5105619882,20.03.2015,Elderly Frail Homecare,Charges from Independent Providers,45.84,ACORN CARE SERVICE LTD,357
Revenue,Head of ASC & Community Wellbeing,5105619883,20.03.2015,Elderly Frail Homecare,Regular Respite Care,336.16,ACORN CARE SERVICE LTD,358
Revenue,Head of ASC & Community Wellbeing,5105619884,20.03.2015,Elderly Frail Homecare,Charges from Independent Providers,160.44,ACORN CARE SERVICE LTD,359
Revenue,Chief Fire Officer,5105617203,04.03.2015,Fire Technical Support,Vehicle Maintenance Costs,15.69,ADAMS MOREY LTD,362
Revenue,Chief Fire Officer,5105617203,04.03.2015,Fire Technical Support,Vehicle Maintenance Costs,8.48,ADAMS MOREY LTD,363
Revenue,Chief Fire Officer,5105617205,04.03.2015,Fire Technical Support,Vehicle Maintenance Costs,14.50,ADAMS MOREY LTD,364
Revenue,Chief Fire Officer,5105617203,04.03.2015,Fire Technical Support,Vehicle Maintenance Costs,6.30,ADAMS MOREY LTD,365
Revenue,Chief Fire Officer,5105617203,04.03.2015,Fire Technical Support,Vehicle Maintenance Costs,4.85,ADAMS MOREY LTD,366
Revenue,Chief Fire Officer,5105617203,04.03.2015,Fire Technical Support,Vehicle Maintenance Costs,16.32,ADAMS MOREY LTD,367
Revenue,Chief Fire Officer,5105617203,04.03.2015,Fire Technical Support,Vehicle Maintenance Costs,30.00,ADAMS MOREY LTD,368
Revenue,Chief Fire Officer,5105617203,04.03.2015,Fire Technical Support,Vehicle Maintenance Costs,5.60,ADAMS MOREY LTD,369
Revenue,Chief Fire Officer,5105617203,04.03.2015,Fire Technical Support,Vehicle Maintenance Costs,5.00,ADAMS MOREY LTD,370
Revenue,Chief Fire Officer,5105617203,04.03.2015,Fire Technical Support,Vehicle Maintenance Costs,53.51,ADAMS MOREY LTD,371
Revenue,Chief Fire Officer,5105617175,04.03.2015,Fire Technical Support,Vehicle Maintenance Costs,48.00,ADAMS MOREY LTD,372
Revenue,Chief Fire Officer,5105618634,18.03.2015,Fire Technical Support,Operational Equipment,131.40,ADAMS MOREY LTD,373
Revenue,Chief Fire Officer,5105617812,11.03.2015,Fire Technical Support,Vehicle Maintenance Costs,29.50,ADAMS MOREY LTD,374
Revenue,Chief Fire Officer,5105619181,18.03.2015,Fire Technical Support,Vehicle Maintenance Costs,37.76,ADAMS MOREY LTD,375
Revenue,Chief Fire Officer,5105619565,18.03.2015,Fire Technical Support,Vehicle Maintenance Costs,14.50,ADAMS MOREY LTD,376
Revenue,Chief Fire Officer,5105619557,18.03.2015,Fire Technical Support,Vehicle Maintenance Costs,2.40,ADAMS MOREY LTD,377
Revenue,Chief Fire Officer,5105619557,18.03.2015,Fire Technical Support,Vehicle Maintenance Costs,77.34,ADAMS MOREY LTD,378
Revenue,Chief Fire Officer,5105619663,20.03.2015,Fire Technical Support,Vehicle Maintenance Costs,40.00,ADAMS MOREY LTD,379
Revenue,Chief Fire Officer,5105621269,27.03.2015,Fire Technical Support,Vehicle Maintenance Costs,40.00,ADAMS MOREY LTD,380
Revenue,Chief Fire Officer,5105621187,25.03.2015,Fire Technical Support,Vehicle Maintenance Costs,40.00,ADAMS MOREY LTD,381
Revenue,Chief Fire Officer,5105621245,27.03.2015,Fire Technical Support,Vehicle Maintenance Costs,21.75,ADAMS MOREY LTD,382
Revenue,Chief Fire Officer,5105621694,27.03.2015,Fire Technical Support,Vehicle Maintenance Costs,260.00,ADAMS MOREY LTD,383
Revenue,Chief Fire Officer,5105621577,27.03.2015,Fire Technical Support,Vehicle Maintenance Costs,11.82,ADAMS MOREY LTD,384
Revenue,Chief Fire Officer,5105621577,27.03.2015,Fire Technical Support,Vehicle Maintenance Costs,54.00,ADAMS MOREY LTD,385
Revenue,Chief Fire Officer,5105621577,27.03.2015,Fire Technical Support,Vehicle Maintenance Costs,18.00,ADAMS MOREY LTD,386
Revenue,Chief Fire Officer,5105621577,27.03.2015,Fire Technical Support,Vehicle Maintenance Costs,14.50,ADAMS MOREY LTD,387
Revenue,Chief Fire Officer,5105622076,31.03.2015,Fire Technical Support,Vehicle Maintenance Costs,62.02,ADAMS MOREY LTD,388
Revenue,Chief Fire Officer,5105622076,31.03.2015,Fire Technical Support,Vehicle Maintenance Costs,6.88,ADAMS MOREY LTD,389
Revenue,Chief Fire Officer,5105622076,31.03.2015,Fire Technical Support,Vehicle Maintenance Costs,8.84,ADAMS MOREY LTD,390
Revenue,Chief Fire Officer,5105622076,31.03.2015,Fire Technical Support,Vehicle Maintenance Costs,7.88,ADAMS MOREY LTD,391
Revenue,Managing Director & Head of Paid Service,5105618680,18.03.2015,Drug Misuse - Adults,Payment to Private Contractors,"2,950.00",ADDICTION RECOVERY CENTRE (ARC),392
Revenue,Head of ASC & Community Wellbeing,5105620308,25.03.2015,Elderly Frail Residential Care,Charges from Independent Providers,"1,812.44",ADIEMUS CARE LTD,393
Revenue,Director of Childrens Services,5105619210,27.03.2015,Adoption Costs,Professional Subscriptions,74.00,ADOPTION UK,394
Revenue,Head of Economy & Tourism,5105619636,20.03.2015,Museums & Collections Management,General Materials,919.13,ADT FIRE AND SECURITY PLC,395
Revenue,Head of HR & Organisational Change,5105617585,06.03.2015,"County Hall,Newport",Minor Works,540.00,ADT FIRE AND SECURITY PLC,396
Revenue,Head of Economy & Tourism,5105622050,31.03.2015,Medina Leisure Centre,Payment to Private Contractors,98.00,ADT FIRE AND SECURITY PLC,397
Revenue,Director of Childrens Services,5105613120,04.03.2015,Children In Need 3,Agency staff,"1,645.90",AFFINITY WORKFORCE,398
Revenue,Director of Childrens Services,5105613881,11.03.2015,Children In Need 3,Agency staff,"1,688.65",AFFINITY WORKFORCE,399
Revenue,Director of Childrens Services,5105618269,13.03.2015,Children In Need 3,Agency staff,"1,631.05",AFFINITY WORKFORCE,400
Revenue,Director of Childrens Services,5105619650,25.03.2015,Children In Need 3,Agency staff,"1,591.00",AFFINITY WORKFORCE,401
Revenue,Director of Childrens Services,5105620002,20.03.2015,Children In Need 3,Agency staff,"1,655.80",AFFINITY WORKFORCE,402
Revenue,Director of Childrens Services,5105622066,31.03.2015,Children In Need 3,Agency staff,"1,594.60",AFFINITY WORKFORCE,403
Revenue,Director of Childrens Services,5105619652,20.03.2015,Referral & Assessment,Agency staff,"1,665.00",AFFINITY WORKFORCE,404
Revenue,Director of Childrens Services,5105621066,31.03.2015,Referral & Assessment,Agency staff,"1,665.00",AFFINITY WORKFORCE,405
Revenue,Director of Childrens Services,5105621839,31.03.2015,Referral & Assessment,Agency staff,"1,665.00",AFFINITY WORKFORCE,406
Revenue,Director of Childrens Services,5105619652,20.03.2015,Referral & Assessment,Agency staff,25.20,AFFINITY WORKFORCE,407
Revenue,Director of Childrens Services,5105621839,31.03.2015,Referral & Assessment,Agency staff,24.30,AFFINITY WORKFORCE,408
Revenue,Head of ASC & Community Wellbeing,5105621446,27.03.2015,Info and Advice Service,Payments to Voluntary and Other Associations,"10,200.00",AGE CONCERN ISLE OF WIGHT,409
Revenue,Head of ASC & Community Wellbeing,5105621445,27.03.2015,Info and Advice Service,Payments to Voluntary and Other Associations,"2,525.00",AGE CONCERN ISLE OF WIGHT,410
Revenue,Head of Exchequer Services,5105618741,18.03.2015,Council Tax Benefit,Consultants Fees,"6,500.00",AIREY CONSULTANCY SERVICES LTD,412
Revenue,Head of Economy & Tourism,5105617664,06.03.2015,Dinosaur Isle Museum (Sandown Geology),Operational Equipment,"4,480.00",AIRTEK SERVICES,413
Revenue,Head of Economy & Tourism,5105617665,06.03.2015,Dinosaur Isle Museum (Sandown Geology),Operational Equipment,140.00,AIRTEK SERVICES,414
Revenue,Director of Childrens Services,5105617691,06.03.2015,Special Educational Needs Transport,Taxis - Contract Hire,980.00,AKAR TAXIS,415
Revenue,Head of ASC & Community Wellbeing,5105611929,18.03.2015,S75 Integrated Community Equipment Store,General Materials,243.50,AKW MEDI-CARE LTD,416
Revenue,Head of ASC & Community Wellbeing,5105611929,18.03.2015,S75 Integrated Community Equipment Store,General Materials,591.00,AKW MEDI-CARE LTD,417
Revenue,Head of ASC & Community Wellbeing,5105611929,18.03.2015,S75 Integrated Community Equipment Store,General Materials,201.00,AKW MEDI-CARE LTD,418
Revenue,Head of HR & Organisational Change,5105622165,31.03.2015,"County Hall,Newport","Refuse Collection, Disposal and Recycling Costs",90.00,ALAN NEWBERY WASTE MANAGEMENT,420
Revenue,Director of Childrens Services,5105617548,06.03.2015,Court Work & Consultancy Services,Legal Fees - Other Parties,128.75,ALERE TOXICOLOGY PLC,422
Revenue,Head of Planning & Regulatory Services,5105617787,11.03.2015,Development Control,Advertising & Publicity,260.94,ALEXANDER ADVERTISING (INT) LTD,426
Revenue,Head of Planning & Regulatory Services,5105618621,13.03.2015,Development Control,Advertising & Publicity,516.56,ALEXANDER ADVERTISING (INT) LTD,427
Revenue,Head of Planning & Regulatory Services,5105618677,18.03.2015,Development Control,Advertising & Publicity,346.15,ALEXANDER ADVERTISING (INT) LTD,428
Revenue,Head of Planning & Regulatory Services,5105621562,27.03.2015,Development Control,Advertising & Publicity,159.76,ALEXANDER ADVERTISING (INT) LTD,429
Revenue,Director of Childrens Services,5105618019,11.03.2015,Clatterford Pupil Referral Unit (PRU),Transport of Clients,440.00,REDACTED PERSONAL DATA,432
Revenue,Director of Childrens Services,5105618041,11.03.2015,Clatterford Pupil Referral Unit (PRU),Transport of Clients,453.00,REDACTED PERSONAL DATA,433
Revenue,Director of Childrens Services,5105622098,31.03.2015,Clatterford Pupil Referral Unit (PRU),Transport of Clients,599.00,REDACTED PERSONAL DATA,434
Revenue,Director of Childrens Services,5105621972,31.03.2015,Clatterford Pupil Referral Unit (PRU),Transport of Clients,485.00,REDACTED PERSONAL DATA,435
Revenue,Director of Childrens Services,5105614808,04.03.2015,Independ. & Non-Maint. Special Schls & Independ. Specialist Provision,Transport of Clients,600.00,ALPHA (IOW) LTD,436
Revenue,Director of Childrens Services,5105614808,04.03.2015,Independ. & Non-Maint. Special Schls & Independ. Specialist Provision,Transport of Clients,152.90,ALPHA (IOW) LTD,437
Revenue,Director of Childrens Services,5105614808,04.03.2015,Support for Looked After Children - Disabled Childrens Team,Transport of Clients,152.90,ALPHA (IOW) LTD,438
Revenue,Director of Childrens Services,5105614808,04.03.2015,Support for Looked After Children - Disabled Childrens Team,Transport of Clients,600.00,ALPHA (IOW) LTD,439
Revenue,Director of Childrens Services,5105617689,06.03.2015,Special Educational Needs Transport,Taxis - Contract Hire,376.00,ALPHA (IOW) LTD,440
Revenue,Director of Childrens Services,5105619569,18.03.2015,Special Educational Needs Transport,Taxis - Contract Hire,376.00,ALPHA (IOW) LTD,441
Revenue,Director of Childrens Services,5105621250,27.03.2015,Special Educational Needs Transport,Taxis - Contract Hire,376.00,ALPHA (IOW) LTD,442
Revenue,Director of Childrens Services,5105617689,06.03.2015,Special Educational Needs Transport,Taxis - Contract Hire,355.60,ALPHA (IOW) LTD,443
Revenue,Director of Childrens Services,5105619569,18.03.2015,Special Educational Needs Transport,Taxis - Contract Hire,355.60,ALPHA (IOW) LTD,444
Revenue,Director of Childrens Services,5105621250,27.03.2015,Special Educational Needs Transport,Taxis - Contract Hire,355.60,ALPHA (IOW) LTD,445
Revenue,Director of Childrens Services,5105622065,31.03.2015,Special Educational Needs Transport,Taxis - Contract Hire,355.60,ALPHA (IOW) LTD,446
Revenue,Director of Childrens Services,5105622086,31.03.2015,Special Educational Needs Transport,Taxis - Contract Hire,355.60,ALPHA (IOW) LTD,447
Revenue,Director of Childrens Services,5105617689,06.03.2015,Special Educational Needs Transport,Taxis - Contract Hire,320.00,ALPHA (IOW) LTD,448
Revenue,Director of Childrens Services,5105619569,18.03.2015,Special Educational Needs Transport,Taxis - Contract Hire,320.00,ALPHA (IOW) LTD,449
Revenue,Director of Childrens Services,5105621250,27.03.2015,Special Educational Needs Transport,Taxis - Contract Hire,192.00,ALPHA (IOW) LTD,450
Revenue,Director of Childrens Services,5105622065,31.03.2015,Special Educational Needs Transport,Taxis - Contract Hire,64.00,ALPHA (IOW) LTD,451
Revenue,Director of Childrens Services,5105617689,06.03.2015,Special Educational Needs Transport,Taxis - Contract Hire,396.90,ALPHA (IOW) LTD,452
Revenue,Director of Childrens Services,5105617689,06.03.2015,Home to School Transport,Taxis - Contract Hire,314.95,ALPHA (IOW) LTD,453
Revenue,Director of Childrens Services,5105619569,18.03.2015,Special Educational Needs Transport,Taxis - Contract Hire,396.90,ALPHA (IOW) LTD,454
Revenue,Director of Childrens Services,5105621250,27.03.2015,Special Educational Needs Transport,Taxis - Contract Hire,396.90,ALPHA (IOW) LTD,455
Revenue,Director of Childrens Services,5105622065,31.03.2015,Special Educational Needs Transport,Taxis - Contract Hire,396.90,ALPHA (IOW) LTD,456
Revenue,Director of Childrens Services,5105622086,31.03.2015,Special Educational Needs Transport,Taxis - Contract Hire,396.90,ALPHA (IOW) LTD,457
Revenue,Director of Childrens Services,5105617689,06.03.2015,Special Educational Needs Transport,Taxis - Contract Hire,461.75,ALPHA (IOW) LTD,458
Revenue,Director of Childrens Services,5105619569,18.03.2015,Special Educational Needs Transport,Taxis - Contract Hire,461.75,ALPHA (IOW) LTD,459
Revenue,Director of Childrens Services,5105621250,27.03.2015,Special Educational Needs Transport,Taxis - Contract Hire,461.75,ALPHA (IOW) LTD,460
Revenue,Director of Childrens Services,5105622065,31.03.2015,Special Educational Needs Transport,Taxis - Contract Hire,461.75,ALPHA (IOW) LTD,461
Revenue,Director of Childrens Services,5105622086,31.03.2015,Special Educational Needs Transport,Taxis - Contract Hire,461.75,ALPHA (IOW) LTD,462
Revenue,Director of Childrens Services,5105619569,18.03.2015,Home to School Transport,Taxis - Contract Hire,314.95,ALPHA (IOW) LTD,463
Revenue,Director of Childrens Services,5105617689,06.03.2015,Special Educational Needs Transport,Taxis - Contract Hire,321.45,ALPHA (IOW) LTD,464
Revenue,Director of Childrens Services,5105619569,18.03.2015,Special Educational Needs Transport,Taxis - Contract Hire,321.45,ALPHA (IOW) LTD,465
Revenue,Director of Childrens Services,5105621250,27.03.2015,Special Educational Needs Transport,Taxis - Contract Hire,321.45,ALPHA (IOW) LTD,466
Revenue,Director of Childrens Services,5105622065,31.03.2015,Special Educational Needs Transport,Taxis - Contract Hire,321.45,ALPHA (IOW) LTD,467
Revenue,Director of Childrens Services,5105621250,27.03.2015,Home to School Transport,Taxis - Contract Hire,314.95,ALPHA (IOW) LTD,468
Revenue,Director of Childrens Services,5105622086,31.03.2015,Special Educational Needs Transport,Taxis - Contract Hire,321.45,ALPHA (IOW) LTD,469
Revenue,Director of Childrens Services,5105617689,06.03.2015,Home to School Transport,Taxis - Contract Hire,428.25,ALPHA (IOW) LTD,470
Revenue,Director of Childrens Services,5105619569,18.03.2015,Home to School Transport,Taxis - Contract Hire,428.25,ALPHA (IOW) LTD,471
Revenue,Director of Childrens Services,5105621250,27.03.2015,Home to School Transport,Taxis - Contract Hire,428.25,ALPHA (IOW) LTD,472
Revenue,Director of Childrens Services,5105622065,31.03.2015,Home to School Transport,Taxis - Contract Hire,314.95,ALPHA (IOW) LTD,473
Revenue,Director of Childrens Services,5105622086,31.03.2015,Home to School Transport,Taxis - Contract Hire,314.95,ALPHA (IOW) LTD,474
Revenue,Director of Childrens Services,5105617689,06.03.2015,Special Educational Needs Transport,Taxis - Contract Hire,304.80,ALPHA (IOW) LTD,475
Revenue,Director of Childrens Services,5105619569,18.03.2015,Special Educational Needs Transport,Taxis - Contract Hire,304.80,ALPHA (IOW) LTD,476
Revenue,Director of Childrens Services,5105621250,27.03.2015,Special Educational Needs Transport,Taxis - Contract Hire,304.80,ALPHA (IOW) LTD,477
Revenue,Director of Childrens Services,5105622065,31.03.2015,Special Educational Needs Transport,Taxis - Contract Hire,304.80,ALPHA (IOW) LTD,478
Revenue,Director of Childrens Services,5105622086,31.03.2015,Special Educational Needs Transport,Taxis - Contract Hire,304.80,ALPHA (IOW) LTD,479
Revenue,Director of Childrens Services,5105622065,31.03.2015,Home to School Transport,Taxis - Contract Hire,428.25,ALPHA (IOW) LTD,480
Revenue,Director of Childrens Services,5105617689,06.03.2015,Home to School Transport,Taxis - Contract Hire,396.90,ALPHA (IOW) LTD,481
Revenue,Director of Childrens Services,5105619569,18.03.2015,Home to School Transport,Taxis - Contract Hire,396.90,ALPHA (IOW) LTD,482
Revenue,Director of Childrens Services,5105621250,27.03.2015,Home to School Transport,Taxis - Contract Hire,396.90,ALPHA (IOW) LTD,483
Revenue,Director of Childrens Services,5105622065,31.03.2015,Home to School Transport,Taxis - Contract Hire,396.90,ALPHA (IOW) LTD,484
Revenue,Director of Childrens Services,5105622086,31.03.2015,Home to School Transport,Taxis - Contract Hire,396.90,ALPHA (IOW) LTD,485
Revenue,Director of Childrens Services,5105622086,31.03.2015,Home to School Transport,Taxis - Contract Hire,428.25,ALPHA (IOW) LTD,486
Revenue,Director of Childrens Services,5105617689,06.03.2015,Special Educational Needs Transport,Taxis - Contract Hire,313.35,ALPHA (IOW) LTD,487
Revenue,Director of Childrens Services,5105619569,18.03.2015,Special Educational Needs Transport,Taxis - Contract Hire,313.35,ALPHA (IOW) LTD,488
Revenue,Director of Childrens Services,5105621250,27.03.2015,Special Educational Needs Transport,Taxis - Contract Hire,313.35,ALPHA (IOW) LTD,489
Revenue,Director of Childrens Services,5105622065,31.03.2015,Special Educational Needs Transport,Taxis - Contract Hire,313.35,ALPHA (IOW) LTD,490
Revenue,Director of Childrens Services,5105622086,31.03.2015,Special Educational Needs Transport,Taxis - Contract Hire,313.35,ALPHA (IOW) LTD,491
Revenue,Director of Childrens Services,5105617689,06.03.2015,Home to School Transport,Taxis - Contract Hire,415.50,ALPHA (IOW) LTD,492
Revenue,Director of Childrens Services,5105619569,18.03.2015,Home to School Transport,Taxis - Contract Hire,415.50,ALPHA (IOW) LTD,493
Revenue,Director of Childrens Services,5105621250,27.03.2015,Home to School Transport,Taxis - Contract Hire,415.50,ALPHA (IOW) LTD,494
Revenue,Director of Childrens Services,5105622065,31.03.2015,Home to School Transport,Taxis - Contract Hire,415.50,ALPHA (IOW) LTD,495
Revenue,Director of Childrens Services,5105622086,31.03.2015,Home to School Transport,Taxis - Contract Hire,415.50,ALPHA (IOW) LTD,496
Revenue,Director of Childrens Services,5105617689,06.03.2015,Home to School Transport,Taxis - Contract Hire,254.00,ALPHA (IOW) LTD,497
Revenue,Director of Childrens Services,5105619569,18.03.2015,Home to School Transport,Taxis - Contract Hire,254.00,ALPHA (IOW) LTD,498
Revenue,Director of Childrens Services,5105621250,27.03.2015,Home to School Transport,Taxis - Contract Hire,254.00,ALPHA (IOW) LTD,499
Revenue,Director of Childrens Services,5105622065,31.03.2015,Home to School Transport,Taxis - Contract Hire,300.00,ALPHA (IOW) LTD,500
Revenue,Director of Childrens Services,5105622086,31.03.2015,Home to School Transport,Taxis - Contract Hire,300.00,ALPHA (IOW) LTD,501
Revenue,Director of Childrens Services,5105621250,27.03.2015,Special Educational Needs Transport,Taxis - Contract Hire,457.20,ALPHA (IOW) LTD,502
Revenue,Director of Childrens Services,5105622065,31.03.2015,Special Educational Needs Transport,Taxis - Contract Hire,457.20,ALPHA (IOW) LTD,503
Revenue,Director of Childrens Services,5105622086,31.03.2015,Special Educational Needs Transport,Taxis - Contract Hire,457.20,ALPHA (IOW) LTD,504
Revenue,Director of Childrens Services,5105621250,27.03.2015,Special Educational Needs Transport,Taxis - Contract Hire,267.90,ALPHA (IOW) LTD,505
Revenue,Director of Childrens Services,5105622065,31.03.2015,Special Educational Needs Transport,Taxis - Contract Hire,267.90,ALPHA (IOW) LTD,506
Revenue,Director of Childrens Services,5105622086,31.03.2015,Special Educational Needs Transport,Taxis - Contract Hire,267.90,ALPHA (IOW) LTD,507
Revenue,Director of Childrens Services,5105617689,06.03.2015,Special Educational Needs Transport,Taxis - Contract Hire,267.90,ALPHA (IOW) LTD,508
Revenue,Director of Childrens Services,5105619569,18.03.2015,Special Educational Needs Transport,Taxis - Contract Hire,267.90,ALPHA (IOW) LTD,509
Revenue,Director of Childrens Services,5105617689,06.03.2015,Special Educational Needs Transport,Taxis - Contract Hire,457.20,ALPHA (IOW) LTD,510
Revenue,Director of Childrens Services,5105619569,18.03.2015,Special Educational Needs Transport,Taxis - Contract Hire,457.20,ALPHA (IOW) LTD,511
Revenue,Director of Childrens Services,5105617689,06.03.2015,Special Educational Needs Transport,Taxis - Contract Hire,188.00,ALPHA (IOW) LTD,512
Revenue,Director of Childrens Services,5105619569,18.03.2015,Special Educational Needs Transport,Taxis - Contract Hire,188.00,ALPHA (IOW) LTD,513
Revenue,Director of Childrens Services,5105621250,27.03.2015,Special Educational Needs Transport,Taxis - Contract Hire,188.00,ALPHA (IOW) LTD,514
Revenue,Director of Childrens Services,5105622065,31.03.2015,Special Educational Needs Transport,Taxis - Contract Hire,188.00,ALPHA (IOW) LTD,515
Revenue,Director of Childrens Services,5105622086,31.03.2015,Special Educational Needs Transport,Taxis - Contract Hire,188.00,ALPHA (IOW) LTD,516
Revenue,Director of Childrens Services,5105621250,27.03.2015,Special Educational Needs Transport,Taxis - Contract Hire,260.00,ALPHA (IOW) LTD,517
Revenue,Director of Childrens Services,5105622065,31.03.2015,Special Educational Needs Transport,Taxis - Contract Hire,350.00,ALPHA (IOW) LTD,518
Revenue,Director of Childrens Services,5105622086,31.03.2015,Special Educational Needs Transport,Taxis - Contract Hire,350.00,ALPHA (IOW) LTD,519
Revenue,Director of Childrens Services,5105617689,06.03.2015,Special Educational Needs Transport,Taxis - Contract Hire,260.00,ALPHA (IOW) LTD,520
Revenue,Director of Childrens Services,5105619569,18.03.2015,Special Educational Needs Transport,Taxis - Contract Hire,260.00,ALPHA (IOW) LTD,521
Revenue,Director of Childrens Services,5105617689,06.03.2015,Special Educational Needs Transport,Taxis - Contract Hire,100.00,ALPHA (IOW) LTD,522
Revenue,Director of Childrens Services,5105619569,18.03.2015,Special Educational Needs Transport,Taxis - Contract Hire,100.00,ALPHA (IOW) LTD,523
Revenue,Director of Childrens Services,5105621250,27.03.2015,Special Educational Needs Transport,Taxis - Contract Hire,100.00,ALPHA (IOW) LTD,524
Revenue,Director of Childrens Services,5105622065,31.03.2015,Special Educational Needs Transport,Taxis - Contract Hire,100.00,ALPHA (IOW) LTD,525
Revenue,Director of Childrens Services,5105622086,31.03.2015,Special Educational Needs Transport,Taxis - Contract Hire,100.00,ALPHA (IOW) LTD,526
Revenue,Director of Childrens Services,5105621045,25.03.2015,Post Inspection Improvement cost,Travel Expenses,28.95,ALPHA (IOW) LTD,527
Revenue,Director of Childrens Services,5105614808,04.03.2015,Children in Care Team,Transport of Clients,972.05,ALPHA (IOW) LTD,528
Revenue,Director of Childrens Services,5105614808,04.03.2015,Post Inspection Improvement cost,Travel Expenses,28.95,ALPHA (IOW) LTD,529
Revenue,Director of Childrens Services,5105621109,25.03.2015,Clatterford Pupil Referral Unit (PRU),Taxis - Contract Hire,24.65,ALPHA (IOW) LTD,530
Revenue,Director of Childrens Services,5105621109,25.03.2015,Clatterford Pupil Referral Unit (PRU),Taxis - Contract Hire,118.50,ALPHA (IOW) LTD,531
Revenue,Director of Childrens Services,5105621109,25.03.2015,Clatterford Pupil Referral Unit (PRU),Taxis - Contract Hire,27.45,ALPHA (IOW) LTD,532
Revenue,Head of ASC & Community Wellbeing,5105620348,25.03.2015,Learning Disability Residential Care,Charges from Independent Providers,"3,836.84",ALPHAGRANGE LTD,533
Revenue,Director of Childrens Services,5105617858,11.03.2015,LSCB (Local Safeguarding Childrens Board),Conference Expenses,"4,643.00",ALTEREGO CREATIVE SOLUTIONS LTD,534
Revenue,Director of Childrens Services,5105617858,11.03.2015,LSCB (Local Safeguarding Childrens Board),Conference Expenses,77.50,ALTEREGO CREATIVE SOLUTIONS LTD,535
Revenue,Head of Economy & Tourism,5105618745,18.03.2015,Dinosaur Isle Museum (Sandown Geology),Marketing Costs,700.00,ALVA,536
Revenue,Head of Finance & S151 Officer,5105621497,27.03.2015,Project Manager Waste Strategy,Consultants Fees,"8,053.79",AMEC ENVIRONMENT AND INFRASTRUCTURE UK LTD,538
Revenue,Head of Finance & S151 Officer,5105621497,27.03.2015,Project Manager Waste Strategy,Professional Services,"24,576.00",AMEC ENVIRONMENT AND INFRASTRUCTURE UK LTD,539
Revenue,Head of ASC & Community Wellbeing,5105620350,25.03.2015,Elderly Frail Residential Care,Charges from Independent Providers,"2,093.84",ANCONA CARE HOME,546
Revenue,Head of ASC & Community Wellbeing,5105620350,25.03.2015,Elderly Mentally Ill Residential Care,Charges from Independent Providers,"1,781.36",ANCONA CARE HOME,547
Revenue,Head of ASC & Community Wellbeing,5105620350,25.03.2015,REDACTED PERSONAL DATA,Order Settlement to Bal Sht GL,"1,781.36",ANCONA CARE HOME,548
Revenue,Head of ASC & Community Wellbeing,5105620350,25.03.2015,Elderly Frail Residential Care,Charges from Independent Providers,"1,700.44",ANCONA CARE HOME,549
Revenue,Head of ASC & Community Wellbeing,5105620350,25.03.2015,Elderly Frail Residential Care,Charges from Independent Providers,"1,700.44",ANCONA CARE HOME,550
Capital,Head of Economy & Tourism,5105621458,27.03.2015,Rights Of Way Capital Programme,Payment to Contractors - Capital,"1,400.00",REDACTED PERSONAL DATA,551
Revenue,Chief Fire Officer,5105618725,18.03.2015,Fire Technical Support,Vehicle Maintenance Costs,76.68,ANGLOCO LTD,553
Revenue,Chief Fire Officer,5105618725,18.03.2015,Fire Technical Support,Vehicle Maintenance Costs,8.85,ANGLOCO LTD,554
Revenue,Chief Fire Officer,5105619244,18.03.2015,Fire Technical Support,Vehicle Maintenance Costs,19.90,ANGLOCO LTD,555
Revenue,Chief Fire Officer,5105619244,18.03.2015,Fire Technical Support,Vehicle Maintenance Costs,5.30,ANGLOCO LTD,556
Revenue,Chief Fire Officer,5105619244,18.03.2015,Fire Technical Support,Vehicle Maintenance Costs,37.50,ANGLOCO LTD,557
Revenue,Chief Fire Officer,5105619244,18.03.2015,Fire Technical Support,Vehicle Maintenance Costs,37.50,ANGLOCO LTD,558
Revenue,Chief Fire Officer,5105618725,18.03.2015,Fire Technical Support,Vehicle Maintenance Costs,237.14,ANGLOCO LTD,559
Revenue,Chief Fire Officer,5105618725,18.03.2015,Fire Technical Support,Vehicle Maintenance Costs,139.00,ANGLOCO LTD,560
Revenue,Chief Fire Officer,5105618725,18.03.2015,Fire Technical Support,Vehicle Maintenance Costs,224.00,ANGLOCO LTD,561
Revenue,Chief Fire Officer,5105618725,18.03.2015,Fire Technical Support,Vehicle Maintenance Costs,186.00,ANGLOCO LTD,562
Revenue,Chief Fire Officer,5105618725,18.03.2015,Fire Technical Support,Vehicle Maintenance Costs,105.00,ANGLOCO LTD,563
Revenue,Chief Fire Officer,5105618725,18.03.2015,Fire Technical Support,Vehicle Maintenance Costs,20.15,ANGLOCO LTD,564
Revenue,Chief Fire Officer,5105618725,18.03.2015,Fire Technical Support,Vehicle Maintenance Costs,20.60,ANGLOCO LTD,565
Revenue,Chief Fire Officer,5105618725,18.03.2015,Fire Technical Support,Vehicle Maintenance Costs,32.70,ANGLOCO LTD,566
Revenue,Chief Fire Officer,5105618725,18.03.2015,Fire Technical Support,Vehicle Maintenance Costs,19.90,ANGLOCO LTD,567
Revenue,Chief Fire Officer,5105618725,18.03.2015,Fire Technical Support,Vehicle Maintenance Costs,5.30,ANGLOCO LTD,568
Revenue,Chief Fire Officer,5105619244,18.03.2015,Fire Technical Support,Vehicle Maintenance Costs,186.00,ANGLOCO LTD,569
Revenue,Chief Fire Officer,5105619244,18.03.2015,Fire Technical Support,Vehicle Maintenance Costs,105.00,ANGLOCO LTD,570
Revenue,Chief Fire Officer,5105619244,18.03.2015,Fire Technical Support,Vehicle Maintenance Costs,76.68,ANGLOCO LTD,571
Revenue,Chief Fire Officer,5105619244,18.03.2015,Fire Technical Support,Vehicle Maintenance Costs,8.85,ANGLOCO LTD,572
Revenue,Chief Fire Officer,5105619244,18.03.2015,Fire Technical Support,Vehicle Maintenance Costs,20.15,ANGLOCO LTD,573
Revenue,Chief Fire Officer,5105619244,18.03.2015,Fire Technical Support,Vehicle Maintenance Costs,20.60,ANGLOCO LTD,574
Revenue,Chief Fire Officer,5105619244,18.03.2015,Fire Technical Support,Vehicle Maintenance Costs,32.70,ANGLOCO LTD,575
Revenue,Chief Fire Officer,5105619244,18.03.2015,Fire Technical Support,Vehicle Maintenance Costs,237.14,ANGLOCO LTD,576
Revenue,Chief Fire Officer,5105619244,18.03.2015,Fire Technical Support,Vehicle Maintenance Costs,139.00,ANGLOCO LTD,577
Revenue,Chief Fire Officer,5105619244,18.03.2015,Fire Technical Support,Vehicle Maintenance Costs,224.00,ANGLOCO LTD,578
Revenue,Head of Exchequer Services,5105620300,25.03.2015,Staff Benefits,Payment to Private Contractors,225.00,REDACTED PERSONAL DATA,579
Revenue,Head of ASC & Community Wellbeing,5105618746,18.03.2015,Commissioning Manager for Adult Social Care,Interim Staff,"5,703.65",ANNE BUTLER CONSULTING LTD,582
Revenue,Head of Economy & Tourism,5105617341,04.03.2015,Print Unit,Printing Costs,29.20,ANTALIS MCNAUGHTON,583
Revenue,Head of Economy & Tourism,5105617346,06.03.2015,Print Unit,Printing Costs,84.36,ANTALIS MCNAUGHTON,584
Revenue,Head of Economy & Tourism,5105617778,11.03.2015,Print Unit,Printing Costs,59.40,ANTALIS MCNAUGHTON,585
Revenue,Head of Economy & Tourism,5105617334,04.03.2015,Print Unit,Printing Costs,59.40,ANTALIS MCNAUGHTON,586
Revenue,Head of Economy & Tourism,5105617777,11.03.2015,Print Unit,Printing Costs,108.20,ANTALIS MCNAUGHTON,587
Revenue,Head of Economy & Tourism,5105617776,11.03.2015,Print Unit,Printing Costs,47.52,ANTALIS MCNAUGHTON,588
Revenue,Head of Economy & Tourism,5105617776,11.03.2015,Print Unit,Printing Costs,29.20,ANTALIS MCNAUGHTON,589
Revenue,Head of Economy & Tourism,5105617776,11.03.2015,Print Unit,Printing Costs,45.50,ANTALIS MCNAUGHTON,590
Revenue,Head of Economy & Tourism,5105618622,13.03.2015,Print Unit,Printing Costs,69.90,ANTALIS MCNAUGHTON,591
Revenue,Head of Economy & Tourism,5105618622,13.03.2015,Print Unit,Printing Costs,81.15,ANTALIS MCNAUGHTON,592
Revenue,Head of Economy & Tourism,5105621221,25.03.2015,Print Unit,Printing Costs,69.90,ANTALIS MCNAUGHTON,593
Revenue,Head of Economy & Tourism,5105621221,25.03.2015,Print Unit,Printing Costs,58.40,ANTALIS MCNAUGHTON,594
Revenue,Head of Economy & Tourism,5105621216,25.03.2015,Print Unit,Printing Costs,10.94,ANTALIS MCNAUGHTON,595
Revenue,Head of Economy & Tourism,5105621992,31.03.2015,Print Unit,Printing Costs,89.10,ANTALIS MCNAUGHTON,596
Revenue,Head of Corp Gov & Monitoring Officer,5105621210,25.03.2015,Litigation Costs,Legal Fees - Other Parties,480.00,REDACTED PERSONAL DATA,597
Revenue,Head of ASC & Community Wellbeing,5105618001,11.03.2015,S75 Integrated Community Equipment Store,Operational Equipment,"1,999.50",APOLLO HEALTHCARE TECHNOLOGIES,601
Revenue,Head of Economy & Tourism,5105621805,31.03.2015,Estuaries Officer,Payment to Private Contractors,273.50,ARC CONSULTING LTD,602
Revenue,Head of HR & Organisational Change,5105613268,27.03.2015,County Hall Central Mail Room,Clothing & Laundry,18.78,ARCO LTD,603
Revenue,Head of HR & Organisational Change,5105618052,26.03.2015,County Hall Central Mail Room,Clothing & Laundry,20.65,ARCO LTD,604
Revenue,Head of HR & Organisational Change,5105621601,26.03.2015,County Hall Central Mail Room,Clothing & Laundry,-20.65,ARCO LTD,605
Revenue,Head of HR & Organisational Change,5105613268,27.03.2015,Corporate Stores,Clothing & Laundry,56.35,ARCO LTD,606
Revenue,Head of HR & Organisational Change,5105618052,26.03.2015,Corporate Stores,Clothing & Laundry,61.95,ARCO LTD,607
Revenue,Head of HR & Organisational Change,5105621601,26.03.2015,Corporate Stores,Clothing & Laundry,-61.95,ARCO LTD,608
Revenue,Head of ASC & Community Wellbeing,5105617815,11.03.2015,Community Outreach,Clothing & Laundry,29.98,ARCO LTD,609
Revenue,Head of ASC & Community Wellbeing,5105617815,11.03.2015,Community Outreach,Clothing & Laundry,3.60,ARCO LTD,610
Revenue,Head of Economy & Tourism,5105617228,04.03.2015,The Heights,Clothing & Laundry,68.80,ARCO LTD,611
Revenue,Head of ASC & Community Wellbeing,5105618255,13.03.2015,Community Outreach,Clothing & Laundry,25.92,ARCO LTD,612
Revenue,Head of Economy & Tourism,5105618323,18.03.2015,Newport Harbour Account,Clothing & Laundry,36.80,ARCO LTD,613
Revenue,Head of Economy & Tourism,5105619198,18.03.2015,Newport Harbour Account,Clothing & Laundry,-36.80,ARCO LTD,614
Revenue,Head of Economy & Tourism,5105617333,04.03.2015,Crematorium,Clothing & Laundry,9.02,ARCO LTD,615
Revenue,Head of Economy & Tourism,5105617877,11.03.2015,Crematorium,Clothing & Laundry,5.08,ARCO LTD,616
Revenue,Head of Economy & Tourism,5105617333,04.03.2015,Crematorium,Clothing & Laundry,16.82,ARCO LTD,617
Revenue,Head of HR & Organisational Change,5105617345,06.03.2015,County Hall Central Mail Room,Clothing & Laundry,30.42,ARCO LTD,618
Revenue,Head of HR & Organisational Change,5105618706,18.03.2015,County Hall Central Mail Room,Clothing & Laundry,20.84,ARCO LTD,619
Revenue,Head of HR & Organisational Change,5105618706,18.03.2015,County Hall Central Mail Room,Clothing & Laundry,31.26,ARCO LTD,620
Revenue,Head of HR & Organisational Change,5105618706,18.03.2015,County Hall Central Mail Room,Clothing & Laundry,31.26,ARCO LTD,621
Revenue,Head of HR & Organisational Change,5105620155,25.03.2015,County Hall Central Mail Room,Clothing & Laundry,22.46,ARCO LTD,622
Revenue,Head of HR & Organisational Change,5105618706,18.03.2015,County Hall Central Mail Room,Clothing & Laundry,18.87,ARCO LTD,623
Revenue,Head of HR & Organisational Change,5105618706,18.03.2015,County Hall Central Mail Room,Clothing & Laundry,11.51,ARCO LTD,624
Revenue,Head of HR & Organisational Change,5105618706,18.03.2015,County Hall Central Mail Room,Clothing & Laundry,11.51,ARCO LTD,625
Revenue,Head of HR & Organisational Change,5105617345,06.03.2015,County Hall Central Mail Room,Clothing & Laundry,30.42,ARCO LTD,626
Revenue,Director of Childrens Services,5105621510,27.03.2015,Beaulieu House,Clothing & Laundry,13.31,ARCO LTD,627
Revenue,Director of Childrens Services,5105621512,27.03.2015,Beaulieu House,Clothing & Laundry,"1,150.74",ARCO LTD,628
Revenue,Head of Exchequer Services,5105620158,25.03.2015,Help Centres Shared Service Centre,Clothing & Laundry,11.51,ARCO LTD,629
Revenue,Head of Planning & Regulatory Services,5105618598,13.03.2015,Building Control,Clothing & Laundry,22.65,ARCO LTD,630
Revenue,Head of HR & Organisational Change,5105619237,18.03.2015,County Hall Central Mail Room,Clothing & Laundry,20.95,ARCO LTD,631
Revenue,Head of Economy & Tourism,5105621851,31.03.2015,Medina Leisure Centre,Clothing & Laundry,436.82,ARCO LTD,632
Revenue,Head of Economy & Tourism,5105621606,27.03.2015,Crematorium,Clothing & Laundry,5.08,ARCO LTD,633
Revenue,Head of Economy & Tourism,5105621681,27.03.2015,Crematorium,Clothing & Laundry,9.02,ARCO LTD,634
Revenue,Head of Economy & Tourism,5105621681,27.03.2015,Crematorium,Clothing & Laundry,10.57,ARCO LTD,635
Revenue,Head of ASC & Community Wellbeing,5105622100,31.03.2015,Community Outreach,Clothing & Laundry,13.10,ARCO LTD,636
Revenue,Head of ASC & Community Wellbeing,5105622100,31.03.2015,Community Outreach,Clothing & Laundry,6.55,ARCO LTD,637
Revenue,Head of ASC & Community Wellbeing,5105622100,31.03.2015,Community Outreach,Clothing & Laundry,6.55,ARCO LTD,638
Revenue,Head of ASC & Community Wellbeing,5105622100,31.03.2015,Community Outreach,Clothing & Laundry,7.20,ARCO LTD,639
Revenue,Head of ASC & Community Wellbeing,5105622177,31.03.2015,Community Outreach,Clothing & Laundry,32.40,ARCO LTD,640
Revenue,Head of ASC & Community Wellbeing,5105620055,27.03.2015,Plean Dene,Maintenance of Operational Equipment,134.80,ARJO MED AB LTD,641
Revenue,Head of ASC & Community Wellbeing,5105621959,31.03.2015,Saxonbury,Maintenance of Operational Equipment,175.00,ARJO MED AB LTD,642
Revenue,Director of Childrens Services,5105618698,20.03.2015,Beaulieu House,Operational Equipment,"2,667.00",ARJO MED AB LTD,643
Revenue,Head of ASC & Community Wellbeing,5105620038,20.03.2015,S75 Integrated Community Equipment Store,Operational Equipment,"1,132.00",ARJO MED AB LTD,644
Revenue,Head of ASC & Community Wellbeing,5105620038,20.03.2015,S75 Integrated Community Equipment Store,Operational Equipment,40.00,ARJO MED AB LTD,645
Revenue,Corporate Items,5105617348,06.03.2015,Corporate Management,Professional Services,"15,000.00",ARLINGCLOSE LIMITED,646
Revenue,Head of Planning & Regulatory Services,5105618318,13.03.2015,Planning Business Support,Stationery,29.19,ASAP STAMPS LTD,647
Revenue,Director of Childrens Services,5105622079,31.03.2015,Workforce Development Schools,Training,827.79,ASPIRO EDUCATION LIMITED,648
Revenue,Head of HR & Organisational Change,5105617214,04.03.2015,"County Hall,Newport",Prop Svs only - Day to day mtce,70.16,ASSA ABLOY ENTRANCE SYSTEMS LTD,649
Revenue,Head of HR & Organisational Change,5105617295,04.03.2015,"County Hall,Newport",Prop Svs only - Day to day mtce,30.04,ASSA ABLOY ENTRANCE SYSTEMS LTD,650
Revenue,Head of HR & Organisational Change,5105617350,06.03.2015,"County Hall,Newport",Prop Svs only - Day to day mtce,30.04,ASSA ABLOY ENTRANCE SYSTEMS LTD,651
Revenue,Head of HR & Organisational Change,5105617351,06.03.2015,"County Hall,Newport",Prop Svs only - Day to day mtce,60.08,ASSA ABLOY ENTRANCE SYSTEMS LTD,652
Revenue,Head of Economy & Tourism,5105618298,13.03.2015,Freshwater West Wight Library,Prop Svs only - Day to day mtce,52.11,ASSA ABLOY ENTRANCE SYSTEMS LTD,653
Revenue,Head of Economy & Tourism,5105617934,13.03.2015,Medina Theatre,Property Services - Planned Maintenance,420.00,ASSA ABLOY ENTRANCE SYSTEMS LTD,654
Revenue,Head of Economy & Tourism,5105617352,06.03.2015,Sandown Library,Prop Svs only - Day to day mtce,17.08,ASSA ABLOY ENTRANCE SYSTEMS LTD,655
Revenue,Head of Planning & Regulatory Services,5105621212,27.03.2015,Highways PFI Project,Consultants Fees,"45,338.13",ATKINS LIMITED,656
Revenue,Chief Fire Officer,5105617808,11.03.2015,Fire Technical Support,Vehicle Maintenance Costs,110.46,ATS EUROMASTER LTD,657
Revenue,Chief Fire Officer,5105617808,11.03.2015,Fire Technical Support,Vehicle Maintenance Costs,4.35,ATS EUROMASTER LTD,658
Revenue,Chief Fire Officer,5105617808,11.03.2015,Fire Technical Support,Vehicle Maintenance Costs,1.16,ATS EUROMASTER LTD,659
Revenue,Chief Fire Officer,5105617808,11.03.2015,Fire Technical Support,Vehicle Maintenance Costs,1.86,ATS EUROMASTER LTD,660
Revenue,Chief Fire Officer,5105617808,11.03.2015,Fire Technical Support,Vehicle Maintenance Costs,86.62,ATS EUROMASTER LTD,661
Revenue,Chief Fire Officer,5105617808,11.03.2015,Fire Technical Support,Vehicle Maintenance Costs,8.70,ATS EUROMASTER LTD,662
Revenue,Chief Fire Officer,5105617808,11.03.2015,Fire Technical Support,Vehicle Maintenance Costs,2.32,ATS EUROMASTER LTD,663
Revenue,Chief Fire Officer,5105617808,11.03.2015,Fire Technical Support,Vehicle Maintenance Costs,3.72,ATS EUROMASTER LTD,664
Revenue,Head of ASC & Community Wellbeing,5105620321,25.03.2015,Elderly Mentally Ill Residential Care,Charges from Independent Providers,"1,781.36",AUTUMN HOUSE CARE LTD,665
Revenue,Head of ASC & Community Wellbeing,5105620321,25.03.2015,Elderly Mentally Ill Residential Care,Charges from Independent Providers,"2,093.84",AUTUMN HOUSE CARE LTD,666
Revenue,Head of ASC & Community Wellbeing,5105620321,25.03.2015,Elderly Mentally Ill Residential Care,Charges from Independent Providers,"2,093.84",AUTUMN HOUSE CARE LTD,667
Revenue,Head of ASC & Community Wellbeing,5105620321,25.03.2015,Elderly Mentally Ill Residential Care,Charges from Independent Providers,"1,781.36",AUTUMN HOUSE CARE LTD,668
Revenue,Head of ASC & Community Wellbeing,5105620321,25.03.2015,Elderly Mentally Ill Residential Care,Charges from Independent Providers,"2,093.84",AUTUMN HOUSE CARE LTD,669
Revenue,Head of ASC & Community Wellbeing,5105620321,25.03.2015,Elderly Mentally Ill Residential Care,Charges from Independent Providers,"2,093.84",AUTUMN HOUSE CARE LTD,670
Revenue,Head of ASC & Community Wellbeing,5105620321,25.03.2015,Elderly Mentally Ill Residential Care,Charges from Independent Providers,"2,093.84",AUTUMN HOUSE CARE LTD,671
Revenue,Head of ASC & Community Wellbeing,5105620321,25.03.2015,Elderly Mentally Ill Residential Care,Charges from Independent Providers,"2,093.84",AUTUMN HOUSE CARE LTD,672
Revenue,Head of ASC & Community Wellbeing,5105620321,25.03.2015,Elderly Mentally Ill Residential Care,Charges from Independent Providers,"2,093.84",AUTUMN HOUSE CARE LTD,673
Revenue,Head of ASC & Community Wellbeing,5105620321,25.03.2015,Elderly Mentally Ill Residential Care,Charges from Independent Providers,"2,093.84",AUTUMN HOUSE CARE LTD,674
Revenue,Head of ASC & Community Wellbeing,5105620321,25.03.2015,Elderly Mentally Ill Residential Care,Charges from Independent Providers,"2,093.84",AUTUMN HOUSE CARE LTD,675
Revenue,Head of ASC & Community Wellbeing,5105620321,25.03.2015,Elderly Mentally Ill Residential Care,Charges from Independent Providers,"2,093.84",AUTUMN HOUSE CARE LTD,676
Revenue,Head of ASC & Community Wellbeing,5105620321,25.03.2015,Elderly Mentally Ill Residential Care,Charges from Independent Providers,"1,781.36",AUTUMN HOUSE CARE LTD,677
Revenue,Head of ASC & Community Wellbeing,5105620321,25.03.2015,Elderly Frail Residential Care,Charges from Independent Providers,"2,093.84",AUTUMN HOUSE CARE LTD,678
Revenue,Head of ASC & Community Wellbeing,5105620321,25.03.2015,Elderly Mentally Ill Residential Care,Charges from Independent Providers,"2,093.84",AUTUMN HOUSE CARE LTD,679
Revenue,Head of ASC & Community Wellbeing,5105620321,25.03.2015,Elderly Mentally Ill Residential Care,Charges from Independent Providers,"2,093.84",AUTUMN HOUSE CARE LTD,680
Revenue,Head of ASC & Community Wellbeing,5105620321,25.03.2015,Elderly Mentally Ill Residential Care,Charges from Independent Providers,"2,093.84",AUTUMN HOUSE CARE LTD,681
Revenue,Head of ASC & Community Wellbeing,5105620321,25.03.2015,Elderly Mentally Ill Residential Care,Charges from Independent Providers,"2,093.84",AUTUMN HOUSE CARE LTD,682
Revenue,Head of ASC & Community Wellbeing,5105620321,25.03.2015,REDACTED PERSONAL DATA,Order Settlement to Bal Sht GL,"1,781.36",AUTUMN HOUSE CARE LTD,683
Revenue,Head of ASC & Community Wellbeing,5105620321,25.03.2015,Elderly Frail Residential Care,Charges from Independent Providers,"2,093.84",AUTUMN HOUSE CARE LTD,684
Revenue,Head of ASC & Community Wellbeing,5105620321,25.03.2015,Elderly Mentally Ill Residential Care,Charges from Independent Providers,"2,093.84",AUTUMN HOUSE CARE LTD,685
Revenue,Head of ASC & Community Wellbeing,5105617731,11.03.2015,Elderly Mentally Ill Residential Care,Charges from Independent Providers,897.36,AUTUMN HOUSE CARE LTD,686
Revenue,Head of ASC & Community Wellbeing,5105617142,04.03.2015,Elderly Mentally Ill Residential Care,Charges from Independent Providers,763.44,AUTUMN HOUSE CARE LTD,687
Revenue,Head of ASC & Community Wellbeing,5105618818,18.03.2015,Elderly Mentally Ill Residential Care,Charges from Independent Providers,"1,017.92",AUTUMN HOUSE CARE LTD,688
Revenue,Head of ASC & Community Wellbeing,5105620321,25.03.2015,Elderly Mentally Ill Residential Care,Charges from Independent Providers,"1,781.36",AUTUMN HOUSE CARE LTD,689
Revenue,Head of ASC & Community Wellbeing,5105618353,13.03.2015,Elderly Mentally Ill Residential Care,Charges from Independent Providers,"1,495.60",AUTUMN HOUSE CARE LTD,690
Revenue,Head of ASC & Community Wellbeing,5105620321,25.03.2015,Elderly Mentally Ill Residential Care,Charges from Independent Providers,"2,093.84",AUTUMN HOUSE CARE LTD,691
Revenue,Head of ASC & Community Wellbeing,5105618818,18.03.2015,Elderly Mentally Ill Residential Care,Charges from Independent Providers,827.06,AUTUMN HOUSE CARE LTD,692
Revenue,Head of ASC & Community Wellbeing,5105617235,04.03.2015,Elderly Mentally Ill Residential Care,Crisis Support for Carers,508.96,AUTUMN HOUSE CARE LTD,693
Revenue,Head of ASC & Community Wellbeing,5105619687,20.03.2015,Elderly Mentally Ill Residential Care,Crisis Support for Carers,"1,526.88",AUTUMN HOUSE CARE LTD,694
Revenue,Head of ASC & Community Wellbeing,5105621926,31.03.2015,Elderly Mentally Ill Residential Care,Crisis Support for Carers,"1,208.78",AUTUMN HOUSE CARE LTD,695
Revenue,Head of ASC & Community Wellbeing,5105622106,31.03.2015,Elderly Mentally Ill Residential Care,Charges from Independent Providers,373.90,AUTUMN HOUSE CARE LTD,696
Revenue,Head of ASC & Community Wellbeing,5105622106,31.03.2015,Elderly Mentally Ill Residential Care,Charges from Independent Providers,373.90,AUTUMN HOUSE CARE LTD,697
Revenue,Head of ASC & Community Wellbeing,5105617731,11.03.2015,Elderly Mentally Ill Residential Care,Charges from Independent Providers,445.34,AUTUMN HOUSE CARE LTD,698
Revenue,Head of ASC & Community Wellbeing,5105618818,18.03.2015,Elderly Mentally Ill Residential Care,Charges from Independent Providers,699.82,AUTUMN HOUSE CARE LTD,699
Revenue,Head of ASC & Community Wellbeing,5105617731,11.03.2015,Elderly Mentally Ill Residential Care,Charges from Independent Providers,"1,654.12",AUTUMN HOUSE CARE LTD,700
Revenue,Head of ASC & Community Wellbeing,5105620321,25.03.2015,Elderly Mentally Ill Residential Care,Charges from Independent Providers,"1,781.36",AUTUMN HOUSE CARE LTD,701
Revenue,Head of HR & Organisational Change,5105617592,06.03.2015,Payroll,Consultants Fees,579.88,AVALON VALE UK LTD,702
Revenue,Head of HR & Organisational Change,5105617592,06.03.2015,Payroll,Consultants Fees,"2,750.00",AVALON VALE UK LTD,703
Revenue,Head of Economy & Tourism,5105617070,13.03.2015,Duke of Edingburgh Award,Stationery,674.50,AWARD SCHEME LTD,704
Revenue,Head of Economy & Tourism,5105617070,13.03.2015,Duke of Edingburgh Award,Stationery,12.50,AWARD SCHEME LTD,705
Revenue,Head of Economy & Tourism,5105618327,13.03.2015,Leisure Management & Admin,Printing Costs,41.67,AWESOME MERCHANDISING LTD,706
Revenue,Director of Childrens Services,5105617331,04.03.2015,Clatterford Pupil Referral Unit (PRU),Teaching Materials,13.71,AXMINSTER POWER TOOL CENTRE,707
Revenue,Director of Childrens Services,5105617331,04.03.2015,Clatterford Pupil Referral Unit (PRU),Teaching Materials,14.13,AXMINSTER POWER TOOL CENTRE,708
Revenue,Director of Childrens Services,5105617331,04.03.2015,Clatterford Pupil Referral Unit (PRU),Teaching Materials,16.63,AXMINSTER POWER TOOL CENTRE,709
Revenue,Director of Childrens Services,5105617326,04.03.2015,Clatterford Pupil Referral Unit (PRU),Teaching Materials,5.42,AXMINSTER POWER TOOL CENTRE,710
Revenue,Director of Childrens Services,5105617331,04.03.2015,Clatterford Pupil Referral Unit (PRU),Teaching Materials,16.60,AXMINSTER POWER TOOL CENTRE,711
Revenue,Director of Childrens Services,5105617331,04.03.2015,Clatterford Pupil Referral Unit (PRU),Teaching Materials,13.76,AXMINSTER POWER TOOL CENTRE,712
Revenue,Director of Childrens Services,5105617331,04.03.2015,Clatterford Pupil Referral Unit (PRU),Teaching Materials,47.42,AXMINSTER POWER TOOL CENTRE,713
Revenue,Director of Childrens Services,5105617331,04.03.2015,Clatterford Pupil Referral Unit (PRU),Teaching Materials,11.70,AXMINSTER POWER TOOL CENTRE,714
Revenue,Director of Childrens Services,5105617331,04.03.2015,Clatterford Pupil Referral Unit (PRU),Teaching Materials,27.54,AXMINSTER POWER TOOL CENTRE,715
Revenue,Director of Childrens Services,5105617331,04.03.2015,Clatterford Pupil Referral Unit (PRU),Teaching Materials,14.92,AXMINSTER POWER TOOL CENTRE,716
Revenue,Director of Childrens Services,5105617331,04.03.2015,Clatterford Pupil Referral Unit (PRU),Teaching Materials,15.84,AXMINSTER POWER TOOL CENTRE,717
Revenue,Director of Childrens Services,5105617331,04.03.2015,Clatterford Pupil Referral Unit (PRU),Teaching Materials,170.80,AXMINSTER POWER TOOL CENTRE,718
Revenue,Director of Childrens Services,5105617395,06.03.2015,Leaving Care Costs,Accommodation Costs - Service Users,50.00,REDACTED PERSONAL DATA,719
Revenue,Director of Childrens Services,5105618116,13.03.2015,Leaving Care Costs,Accommodation Costs - Service Users,50.00,REDACTED PERSONAL DATA,720
Revenue,Director of Childrens Services,5105621311,27.03.2015,Leaving Care Costs,Accommodation Costs - Service Users,50.00,REDACTED PERSONAL DATA,721
Revenue,Director of Childrens Services,5105619711,20.03.2015,Leaving Care Costs,Accommodation Costs - Service Users,50.00,REDACTED PERSONAL DATA,722
Revenue,Head of ASC & Community Wellbeing,5105620335,25.03.2015,Learning Disability Residential Care,Charges from Independent Providers,"1,894.76",REDACTED PERSONAL DATA,728
Revenue,Head of ASC & Community Wellbeing,5105620335,25.03.2015,Learning Disability Residential Care,Charges from Independent Providers,"1,894.76",REDACTED PERSONAL DATA,729
Revenue,Head of ASC & Community Wellbeing,5105620335,25.03.2015,Learning Disability Residential Care,Charges from Independent Providers,"2,745.40",REDACTED PERSONAL DATA,730
Revenue,Head of ASC & Community Wellbeing,5105621636,27.03.2015,Learning Disability Residential Care,Charges from Independent Providers,"1,894.76",REDACTED PERSONAL DATA,731
Revenue,Head of ASC & Community Wellbeing,5105621636,27.03.2015,Learning Disability Residential Care,Charges from Independent Providers,203.01,REDACTED PERSONAL DATA,732
Revenue,Head of ASC & Community Wellbeing,5105620222,25.03.2015,Leaseholds by LA,Accommodation Costs - Leaseholder Payments,815.49,REDACTED PERSONAL DATA,735
Revenue,Head of Exchequer Services,5105620285,25.03.2015,Staff Benefits,Payment to Private Contractors,243.00,REDACTED PERSONAL DATA,737
Revenue,Head of Exchequer Services,5105620285,25.03.2015,Staff Benefits,Payment to Private Contractors,100.00,REDACTED PERSONAL DATA,738
Revenue,Head of Exchequer Services,5105620285,25.03.2015,Staff Benefits,Payment to Private Contractors,50.00,REDACTED PERSONAL DATA,739
Revenue,Head of ASC & Community Wellbeing,5105620229,25.03.2015,Leaseholds by LA,Accommodation Costs - Leaseholder Payments,888.33,REDACTED PERSONAL DATA,741
Revenue,Head of ASC & Community Wellbeing,5105620229,25.03.2015,Leaseholds by LA,Accommodation Costs - Leaseholder Payments,799.50,REDACTED PERSONAL DATA,742
Revenue,Head of ASC & Community Wellbeing,5105620229,25.03.2015,Leaseholds by LA,Accommodation Costs - Leaseholder Payments,799.50,REDACTED PERSONAL DATA,743
Revenue,Head of ASC & Community Wellbeing,5105620229,25.03.2015,Leaseholds by LA,Accommodation Costs - Leaseholder Payments,866.67,REDACTED PERSONAL DATA,744
Revenue,Head of ASC & Community Wellbeing,5105620229,25.03.2015,Leaseholds by LA,Accommodation Costs - Leaseholder Payments,866.67,REDACTED PERSONAL DATA,745
Revenue,Director of Childrens Services,5105614210,04.03.2015,In-house Fostering,Professional Services,554.88,BAAF REGISTERED CHARITY,751
Revenue,Director of Childrens Services,5105621898,31.03.2015,Adoption Team,Professional Subscriptions,420.52,BAAF REGISTERED CHARITY,752
Revenue,Director of Childrens Services,5105621898,31.03.2015,In-house Fostering,Professional Subscriptions,420.53,BAAF REGISTERED CHARITY,753
Revenue,Director of Childrens Services,5105618307,27.03.2015,In-house Fostering,Charges from Independent Providers,277.64,BACK ON TRACK,754
Revenue,Director of Childrens Services,5105618760,27.03.2015,Purchased Residential,Charges from Independent Providers,"11,979.99",BACK ON TRACK,755
Revenue,Director of Childrens Services,5105619945,25.03.2015,Purchased Residential,Charges from Independent Providers,"-13,263.57",BACK ON TRACK,756
Revenue,Director of Childrens Services,5105675420,25.03.2015,Purchased Residential,Charges from Independent Providers,"13,263.57",BACK ON TRACK,757
Revenue,Head of Planning & Regulatory Services,5105617716,11.03.2015,Highways PFI Project,Minor Works,"41,100.86",BALFOUR BEATTY,759
Revenue,Head of ASC & Community Wellbeing,5105618715,18.03.2015,Highmead,Minor Works,37.53,BALFOUR BEATTY,760
Revenue,Head of HR & Organisational Change,5105617647,06.03.2015,"County Hall,Newport",Prop Svs only - Day to day mtce,74.20,BALFOUR BEATTY,761
Revenue,Head of ASC & Community Wellbeing,5105617661,06.03.2015,The Laurels,Minor Works,77.40,BALFOUR BEATTY,762
Revenue,Head of ASC & Community Wellbeing,5105618672,18.03.2015,Highmead,Minor Works,31.50,BALFOUR BEATTY,763
Revenue,Head of HR & Organisational Change,5105617826,11.03.2015,"Guildhall,Newport",Property Services - Planned Maintenance,"12,124.01",BALFOUR BEATTY,764
Revenue,Head of HR & Organisational Change,5105617758,11.03.2015,"Civic Centre,Sandown",Property Services - Planned Maintenance,37.80,BALFOUR BEATTY,765
Revenue,Head of ASC & Community Wellbeing,5105617743,25.03.2015,Gouldings Resource Centre,Property Services - Planned Maintenance,85.20,BALFOUR BEATTY,766
Revenue,Head of HR & Organisational Change,5105619682,20.03.2015,"County Hall,Newport",Prop Svs only - Day to day mtce,39.60,BALFOUR BEATTY,767
Revenue,Head of Finance & S151 Officer,5105618707,18.03.2015,Public Conveniences - General,Prop Svs only - Day to day mtce,70.80,BALFOUR BEATTY,768
Revenue,Head of Finance & S151 Officer,5105618759,18.03.2015,Public Conveniences - General,Prop Svs only - Day to day mtce,46.80,BALFOUR BEATTY,769
Revenue,Director of Childrens Services,5105618705,18.03.2015,Learning & Development Running Costs,Prop Svs only - Day to day mtce,76.00,BALFOUR BEATTY,770
Revenue,Head of Finance & S151 Officer,5105619591,18.03.2015,Public Conveniences - General,Prop Svs only - Day to day mtce,78.75,BALFOUR BEATTY,771
Revenue,Head of Finance & S151 Officer,5105617741,11.03.2015,Public Conveniences - General,Prop Svs only - Day to day mtce,48.60,BALFOUR BEATTY,772
Revenue,Director of Childrens Services,5105619266,18.03.2015,Youth- Sandown/Lake,Prop Svs only - Day to day mtce,126.00,BALFOUR BEATTY,773
Revenue,Head of Economy & Tourism,5105618724,18.03.2015,Crematorium,Prop Svs only - Day to day mtce,312.04,BALFOUR BEATTY,774
Revenue,Head of Economy & Tourism,5105619553,18.03.2015,Newport Library,Prop Svs only - Day to day mtce,63.20,BALFOUR BEATTY,775
Revenue,Chief Fire Officer,5105617655,06.03.2015,Deputy Chief Fire Office,Prop Svs only - Day to day mtce,48.54,BALFOUR BEATTY,776
Revenue,Head of ASC & Community Wellbeing,5105618721,18.03.2015,Westminster House,Prop Svs only - Day to day mtce,135.02,BALFOUR BEATTY,777
Revenue,Head of ASC & Community Wellbeing,5105619554,18.03.2015,Highmead,Minor Works,111.50,BALFOUR BEATTY,778
Revenue,Head of Economy & Tourism,5105619684,20.03.2015,Sandown Library,Prop Svs only - Day to day mtce,707.70,BALFOUR BEATTY,779
Revenue,Head of HR & Organisational Change,5105619218,18.03.2015,"County Hall,Newport",Prop Svs only - Day to day mtce,58.50,BALFOUR BEATTY,780
Revenue,Head of HR & Organisational Change,5105620027,20.03.2015,"Seaclose Offices, Newport",Prop Svs only - Day to day mtce,197.40,BALFOUR BEATTY,781
Revenue,Head of Finance & S151 Officer,5105619574,18.03.2015,Public Conveniences - General,Prop Svs only - Day to day mtce,136.50,BALFOUR BEATTY,782
Revenue,Head of ASC & Community Wellbeing,5105618709,18.03.2015,Downside Community & Learning Centre,Minor Works,143.10,BALFOUR BEATTY,783
Revenue,Chief Fire Officer,5105619577,18.03.2015,Deputy Chief Fire Office,Prop Svs only - Day to day mtce,39.38,BALFOUR BEATTY,784
Revenue,Head of HR & Organisational Change,5105619282,18.03.2015,"Civic Centre,Sandown",Prop Svs only - Day to day mtce,31.50,BALFOUR BEATTY,785
Revenue,Head of ASC & Community Wellbeing,5105617275,04.03.2015,Gouldings Resource Centre,Prop Svs only - Day to day mtce,30.99,BALFOUR BEATTY,786
Revenue,Head of Finance & S151 Officer,5105619623,18.03.2015,Public Conveniences - General,Prop Svs only - Day to day mtce,47.25,BALFOUR BEATTY,787
Revenue,Director of Childrens Services,5105618713,18.03.2015,Youth- Sandown/Lake,Prop Svs only - Day to day mtce,144.38,BALFOUR BEATTY,788
Revenue,Head of Finance & S151 Officer,5105619582,18.03.2015,Public Conveniences - General,Prop Svs only - Day to day mtce,66.83,BALFOUR BEATTY,789
Revenue,Director of Childrens Services,5105619587,18.03.2015,Beaulieu House,Minor Works,52.50,BALFOUR BEATTY,790
Revenue,Chief Fire Officer,5105619558,18.03.2015,Deputy Chief Fire Office,Property Services - Planned Maintenance,49.20,BALFOUR BEATTY,791
Revenue,Director of Childrens Services,5105619946,31.03.2015,Learning & Development Running Costs,Minor Works,740.46,BALFOUR BEATTY,792
Capital,Director of Childrens Services,5105617825,11.03.2015,One School Pathfinder,Payment to Contractors - Capital,"69,448.64",BALFOUR BEATTY,793
Revenue,Director of Childrens Services,5105617658,06.03.2015,Childrens Centres Maintenance,Minor Works,84.11,BALFOUR BEATTY,794
Revenue,Head of ASC & Community Wellbeing,5105621524,27.03.2015,Gouldings Resource Centre,Property Services - Planned Maintenance,259.10,BALFOUR BEATTY,795
Revenue,Head of ASC & Community Wellbeing,5105618749,18.03.2015,Adelaide Resource Centre,Prop Svs only - Day to day mtce,47.25,BALFOUR BEATTY,796
Revenue,Head of Finance & S151 Officer,5105619552,18.03.2015,Public Conveniences - General,Prop Svs only - Day to day mtce,52.50,BALFOUR BEATTY,797
Revenue,Head of Finance & S151 Officer,5105618717,18.03.2015,Public Conveniences - General,Prop Svs only - Day to day mtce,31.50,BALFOUR BEATTY,798
Revenue,Director of Childrens Services,5105619555,18.03.2015,Clatterford Pupil Referral Unit (PRU),Minor Works,262.50,BALFOUR BEATTY,799
Revenue,Head of HR & Organisational Change,5105619611,18.03.2015,"Civic Centre,Sandown",Prop Svs only - Day to day mtce,83.09,BALFOUR BEATTY,800
Revenue,Head of Economy & Tourism,5105617656,06.03.2015,Ventnor Library,Prop Svs only - Day to day mtce,93.70,BALFOUR BEATTY,801
Revenue,Director of Childrens Services,5105617278,04.03.2015,Youth Offending Team,Minor Works,43.69,BALFOUR BEATTY,802
Revenue,Head of HR & Organisational Change,5105617748,11.03.2015,"Civic Centre,Sandown",Prop Svs only - Day to day mtce,124.00,BALFOUR BEATTY,803
Revenue,Head of ASC & Community Wellbeing,5105617753,11.03.2015,Highmead,Minor Works,102.80,BALFOUR BEATTY,804
Revenue,Head of ASC & Community Wellbeing,5105617266,04.03.2015,Adelaide Resource Centre,Operational Equipment,63.00,BALFOUR BEATTY,805
Revenue,Head of ASC & Community Wellbeing,5105617750,11.03.2015,Westminster House,Prop Svs only - Day to day mtce,145.95,BALFOUR BEATTY,806
Revenue,Head of Finance & S151 Officer,5105617276,04.03.2015,Public Conveniences - General,Prop Svs only - Day to day mtce,80.10,BALFOUR BEATTY,807
Revenue,Head of Finance & S151 Officer,5105617751,11.03.2015,Public Conveniences - General,Prop Svs only - Day to day mtce,71.10,BALFOUR BEATTY,808
Revenue,Head of ASC & Community Wellbeing,5105617273,04.03.2015,Gouldings Resource Centre,Prop Svs only - Day to day mtce,102.82,BALFOUR BEATTY,809
Revenue,Head of Finance & S151 Officer,5105617745,11.03.2015,Public Conveniences - General,Prop Svs only - Day to day mtce,108.17,BALFOUR BEATTY,810
Revenue,Head of Finance & S151 Officer,5105617747,11.03.2015,Public Conveniences - General,Prop Svs only - Day to day mtce,138.73,BALFOUR BEATTY,811
Revenue,Head of Economy & Tourism,5105619952,20.03.2015,Properties  - Other Properties,Property Services - Planned Maintenance,61.52,BALFOUR BEATTY,812
Revenue,Director of Childrens Services,5105618738,18.03.2015,Family Information Zone,Property Services - Planned Maintenance,115.20,BALFOUR BEATTY,813
Revenue,Head of Economy & Tourism,5105617752,11.03.2015,Newport Library,Prop Svs only - Day to day mtce,83.81,BALFOUR BEATTY,814
Revenue,Head of Economy & Tourism,5105617749,11.03.2015,Non-operational buildings,Prop Svs only - Day to day mtce,91.80,BALFOUR BEATTY,815
Revenue,Chief Fire Officer,5105617659,06.03.2015,Deputy Chief Fire Office,Prop Svs only - Day to day mtce,64.03,BALFOUR BEATTY,816
Revenue,Head of Finance & S151 Officer,5105619667,20.03.2015,Public Conveniences - General,Prop Svs only - Day to day mtce,167.35,BALFOUR BEATTY,817
Revenue,Head of Economy & Tourism,5105619669,20.03.2015,Sandown Library,Prop Svs only - Day to day mtce,61.10,BALFOUR BEATTY,818
Revenue,Director of Childrens Services,5105618711,18.03.2015,Childrens Centres Maintenance,Minor Works,140.40,BALFOUR BEATTY,819
Revenue,Head of ASC & Community Wellbeing,5105617687,06.03.2015,The Laurels,Minor Works,57.75,BALFOUR BEATTY,820
Revenue,Head of Finance & S151 Officer,5105617662,06.03.2015,Public Conveniences - General,Prop Svs only - Day to day mtce,64.50,BALFOUR BEATTY,821
Revenue,Head of Finance & S151 Officer,5105619961,20.03.2015,Public Conveniences - General,Prop Svs only - Day to day mtce,75.60,BALFOUR BEATTY,822
Revenue,Head of Finance & S151 Officer,5105617678,06.03.2015,Public Conveniences - General,Prop Svs only - Day to day mtce,132.00,BALFOUR BEATTY,823
Revenue,Director of Childrens Services,5105618687,18.03.2015,Youth- Ventnor,Prop Svs only - Day to day mtce,58.50,BALFOUR BEATTY,824
Revenue,Head of Finance & S151 Officer,5105619275,18.03.2015,Public Conveniences - General,Prop Svs only - Day to day mtce,75.60,BALFOUR BEATTY,825
Revenue,Head of HR & Organisational Change,5105617952,11.03.2015,"Bugle House,Newport",Prop Svs only - Day to day mtce,54.00,BALFOUR BEATTY,826
Revenue,Head of ASC & Community Wellbeing,5105617675,06.03.2015,Downside Community & Learning Centre,Minor Works,134.00,BALFOUR BEATTY,827
Revenue,Head of Economy & Tourism,5105617651,06.03.2015,Fort Victoria,Prop Svs only - Day to day mtce,165.49,BALFOUR BEATTY,828
Revenue,Head of ASC & Community Wellbeing,5105619597,18.03.2015,Adelaide Resource Centre,Property Services - Planned Maintenance,240.00,BALFOUR BEATTY,829
Revenue,Head of Economy & Tourism,5105617261,04.03.2015,The Heights,Prop Svs only - Day to day mtce,69.60,BALFOUR BEATTY,830
Revenue,Head of Economy & Tourism,5105619578,18.03.2015,Medina Theatre,Property Services - Planned Maintenance,116.37,BALFOUR BEATTY,831
Revenue,Head of ASC & Community Wellbeing,5105617259,04.03.2015,Adelaide Resource Centre,Prop Svs only - Day to day mtce,59.08,BALFOUR BEATTY,832
Revenue,Head of Economy & Tourism,5105617768,11.03.2015,Dinosaur Isle Museum (Sandown Geology),Prop Svs only - Day to day mtce,71.60,BALFOUR BEATTY,833
Revenue,Head of ASC & Community Wellbeing,5105622179,31.03.2015,Highmead,Minor Works,45.00,BALFOUR BEATTY,834
Revenue,Head of Finance & S151 Officer,5105619958,20.03.2015,Public Conveniences - General,Prop Svs only - Day to day mtce,232.20,BALFOUR BEATTY,835
Revenue,Head of Economy & Tourism,5105617270,04.03.2015,17 Fairlee Road,Minor Works,68.55,BALFOUR BEATTY,836
Revenue,Head of Finance & S151 Officer,5105617653,06.03.2015,Public Conveniences - General,Prop Svs only - Day to day mtce,55.30,BALFOUR BEATTY,837
Revenue,Head of Finance & S151 Officer,5105617650,06.03.2015,Public Conveniences - General,Prop Svs only - Day to day mtce,44.40,BALFOUR BEATTY,838
Revenue,Head of Finance & S151 Officer,5105617762,11.03.2015,Public Conveniences - General,Prop Svs only - Day to day mtce,76.85,BALFOUR BEATTY,839
Revenue,Head of HR & Organisational Change,5105618683,18.03.2015,"Seaclose Offices, Newport",Prop Svs only - Day to day mtce,78.75,BALFOUR BEATTY,840
Revenue,Head of Finance & S151 Officer,5105617268,04.03.2015,Public Conveniences - General,Prop Svs only - Day to day mtce,57.60,BALFOUR BEATTY,841
Revenue,Head of Finance & S151 Officer,5105617761,11.03.2015,Public Conveniences - General,Prop Svs only - Day to day mtce,48.60,BALFOUR BEATTY,842
Revenue,Head of Economy & Tourism,5105617682,06.03.2015,Dinosaur Isle Museum (Sandown Geology),Prop Svs only - Day to day mtce,104.40,BALFOUR BEATTY,843
Revenue,Director of Childrens Services,5105617721,11.03.2015,Childrens Centres Maintenance,Minor Works,72.71,BALFOUR BEATTY,844
Revenue,Head of ASC & Community Wellbeing,5105619602,18.03.2015,Saxonbury,Minor Works,53.20,BALFOUR BEATTY,845
Revenue,Head of HR & Organisational Change,5105617760,11.03.2015,"County Hall,Newport",Prop Svs only - Day to day mtce,90.00,BALFOUR BEATTY,846
Revenue,Head of ASC & Community Wellbeing,5105619596,18.03.2015,The Laurels,Minor Works,122.90,BALFOUR BEATTY,847
Revenue,Director of Childrens Services,5105619572,27.03.2015,Children's Services Strategic Management,Minor Works,773.09,BALFOUR BEATTY,848
Revenue,Head of HR & Organisational Change,5105617677,06.03.2015,"Seaclose Offices, Newport",Prop Svs only - Day to day mtce,135.30,BALFOUR BEATTY,849
Revenue,Head of Finance & S151 Officer,5105617757,11.03.2015,Public Conveniences - General,Prop Svs only - Day to day mtce,134.48,BALFOUR BEATTY,850
Revenue,Head of Finance & S151 Officer,5105619216,18.03.2015,Public Conveniences - General,Prop Svs only - Day to day mtce,42.36,BALFOUR BEATTY,851
Revenue,Head of Finance & S151 Officer,5105617769,11.03.2015,Public Conveniences - General,Prop Svs only - Day to day mtce,190.05,BALFOUR BEATTY,852
Revenue,Head of ASC & Community Wellbeing,5105617666,06.03.2015,Gouldings Resource Centre,Prop Svs only - Day to day mtce,101.95,BALFOUR BEATTY,853
Revenue,Head of HR & Organisational Change,5105617746,11.03.2015,"Seaclose Offices, Newport",Prop Svs only - Day to day mtce,118.50,BALFOUR BEATTY,854
Revenue,Head of Finance & S151 Officer,5105617672,06.03.2015,Public Conveniences - General,Prop Svs only - Day to day mtce,102.98,BALFOUR BEATTY,855
Revenue,Head of Finance & S151 Officer,5105619268,27.03.2015,Public Conveniences - General,Prop Svs only - Day to day mtce,366.18,BALFOUR BEATTY,856
Revenue,Head of Economy & Tourism,5105619949,20.03.2015,Sandown Library,Prop Svs only - Day to day mtce,531.30,BALFOUR BEATTY,857
Revenue,Head of Finance & S151 Officer,5105617277,04.03.2015,Public Conveniences - General,Prop Svs only - Day to day mtce,44.10,BALFOUR BEATTY,858
Revenue,Head of Finance & S151 Officer,5105619253,27.03.2015,Public Conveniences - General,Prop Svs only - Day to day mtce,245.92,BALFOUR BEATTY,859
Revenue,Chief Fire Officer,5105617680,06.03.2015,Deputy Chief Fire Office,Prop Svs only - Day to day mtce,100.50,BALFOUR BEATTY,860
Revenue,Head of Finance & S151 Officer,5105618005,11.03.2015,Public Conveniences - General,Prop Svs only - Day to day mtce,64.80,BALFOUR BEATTY,861
Revenue,Head of Finance & S151 Officer,5105619258,18.03.2015,Public Conveniences - General,Prop Svs only - Day to day mtce,76.80,BALFOUR BEATTY,862
Revenue,Head of ASC & Community Wellbeing,5105619965,20.03.2015,Downside Community & Learning Centre,Minor Works,131.69,BALFOUR BEATTY,863
Revenue,Head of Finance & S151 Officer,5105617679,06.03.2015,Public Conveniences - General,Prop Svs only - Day to day mtce,72.81,BALFOUR BEATTY,864
Revenue,Head of Finance & S151 Officer,5105620001,31.03.2015,Public Conveniences - General,Prop Svs only - Day to day mtce,246.90,BALFOUR BEATTY,865
Revenue,Director of Childrens Services,5105617686,06.03.2015,Learning & Development Running Costs,Minor Works,114.96,BALFOUR BEATTY,866
Revenue,Head of Finance & S151 Officer,5105619563,18.03.2015,Public Conveniences - General,Prop Svs only - Day to day mtce,131.25,BALFOUR BEATTY,867
Revenue,Head of Economy & Tourism,5105617643,06.03.2015,Archaeology,Prop Svs only - Day to day mtce,64.20,BALFOUR BEATTY,868
Revenue,Head of Finance & S151 Officer,5105619274,18.03.2015,Public Conveniences - General,Prop Svs only - Day to day mtce,105.00,BALFOUR BEATTY,869
Revenue,Head of Finance & S151 Officer,5105619257,18.03.2015,Public Conveniences - General,Prop Svs only - Day to day mtce,131.25,BALFOUR BEATTY,870
Revenue,Head of Economy & Tourism,5105619570,31.03.2015,Fort Victoria,Prop Svs only - Day to day mtce,346.20,BALFOUR BEATTY,871
Revenue,Head of Finance & S151 Officer,5105618701,18.03.2015,Public Conveniences - General,Prop Svs only - Day to day mtce,210.00,BALFOUR BEATTY,872
Revenue,Director of Childrens Services,5105617860,11.03.2015,Childrens Centres Maintenance,Minor Works,83.81,BALFOUR BEATTY,873
Revenue,Head of Finance & S151 Officer,5105617764,11.03.2015,Public Conveniences - General,Prop Svs only - Day to day mtce,76.50,BALFOUR BEATTY,874
Revenue,Head of Finance & S151 Officer,5105617763,11.03.2015,Public Conveniences - General,Prop Svs only - Day to day mtce,67.50,BALFOUR BEATTY,875
Revenue,Director of Childrens Services,5105617667,06.03.2015,Clatterford Pupil Referral Unit (PRU),Minor Works,81.90,BALFOUR BEATTY,876
Revenue,Chief Fire Officer,5105617685,06.03.2015,Deputy Chief Fire Office,Prop Svs only - Day to day mtce,127.80,BALFOUR BEATTY,877
Revenue,Head of Economy & Tourism,5105619665,20.03.2015,17 Fairlee Road,Minor Works,65.70,BALFOUR BEATTY,878
Revenue,Director of Childrens Services,5105619998,20.03.2015,Beaulieu House,Minor Works,165.00,BALFOUR BEATTY,879
Revenue,Head of Economy & Tourism,5105617723,11.03.2015,17 Fairlee Road,Minor Works,40.19,BALFOUR BEATTY,880
Revenue,Head of Economy & Tourism,5105617668,06.03.2015,Medina Leisure Centre,Prop Svs only - Day to day mtce,177.30,BALFOUR BEATTY,881
Revenue,Head of ASC & Community Wellbeing,5105619575,18.03.2015,Westminster House,Property Services - Planned Maintenance,99.00,BALFOUR BEATTY,882
Revenue,Head of HR & Organisational Change,5105617754,11.03.2015,"Bugle House,Newport",Prop Svs only - Day to day mtce,135.77,BALFOUR BEATTY,883
Revenue,Head of ASC & Community Wellbeing,5105620028,20.03.2015,Downside Community & Learning Centre,Minor Works,99.75,BALFOUR BEATTY,884
Revenue,Head of Economy & Tourism,5105617673,06.03.2015,Newport Library,Prop Svs only - Day to day mtce,78.63,BALFOUR BEATTY,885
Revenue,Head of ASC & Community Wellbeing,5105617671,06.03.2015,Saxonbury,Minor Works,79.13,BALFOUR BEATTY,886
Revenue,Chief Fire Officer,5105619551,18.03.2015,Deputy Chief Fire Office,Prop Svs only - Day to day mtce,132.10,BALFOUR BEATTY,887
Revenue,Head of Finance & S151 Officer,5105619564,31.03.2015,Public Conveniences - General,Prop Svs only - Day to day mtce,220.95,BALFOUR BEATTY,888
Revenue,Head of Economy & Tourism,5105618726,18.03.2015,Freshwater West Wight Library,Prop Svs only - Day to day mtce,59.90,BALFOUR BEATTY,889
Revenue,Head of HR & Organisational Change,5105618678,18.03.2015,"County Hall,Newport",Prop Svs only - Day to day mtce,59.98,BALFOUR BEATTY,890
Revenue,Chief Fire Officer,5105619999,31.03.2015,Deputy Chief Fire Office,Prop Svs only - Day to day mtce,217.80,BALFOUR BEATTY,891
Revenue,Head of Finance & S151 Officer,5105619996,20.03.2015,Public Conveniences - General,Prop Svs only - Day to day mtce,672.33,BALFOUR BEATTY,892
Revenue,Head of Economy & Tourism,5105619594,27.03.2015,Ryde Library,Prop Svs only - Day to day mtce,265.80,BALFOUR BEATTY,893
Revenue,Director of Childrens Services,5105619604,18.03.2015,Childrens Centres Maintenance,Minor Works,26.25,BALFOUR BEATTY,894
Revenue,Head of HR & Organisational Change,5105617742,11.03.2015,"Civic Centre,Sandown",Prop Svs only - Day to day mtce,472.27,BALFOUR BEATTY,895
Revenue,Head of Finance & S151 Officer,5105618670,18.03.2015,Public Conveniences - General,Prop Svs only - Day to day mtce,105.00,BALFOUR BEATTY,896
Revenue,Head of Finance & S151 Officer,5105619280,18.03.2015,Public Conveniences - General,Prop Svs only - Day to day mtce,31.87,BALFOUR BEATTY,897
Revenue,Head of HR & Organisational Change,5105617755,11.03.2015,"Seaclose Offices, Newport",Prop Svs only - Day to day mtce,86.44,BALFOUR BEATTY,898
Revenue,Head of Finance & S151 Officer,5105617649,06.03.2015,Public Conveniences - General,Prop Svs only - Day to day mtce,81.00,BALFOUR BEATTY,899
Revenue,Head of ASC & Community Wellbeing,5105618784,18.03.2015,Saxonbury,Minor Works,26.25,BALFOUR BEATTY,900
Revenue,Chief Fire Officer,5105617770,11.03.2015,Deputy Chief Fire Office,Prop Svs only - Day to day mtce,80.39,BALFOUR BEATTY,901
Revenue,Chief Fire Officer,5105617756,11.03.2015,Deputy Chief Fire Office,Prop Svs only - Day to day mtce,60.60,BALFOUR BEATTY,902
Revenue,Head of Finance & S151 Officer,5105617652,06.03.2015,Public Conveniences - General,Prop Svs only - Day to day mtce,122.40,BALFOUR BEATTY,903
Revenue,Chief Fire Officer,5105617767,11.03.2015,Deputy Chief Fire Office,Prop Svs only - Day to day mtce,47.58,BALFOUR BEATTY,904
Revenue,Director of Childrens Services,5105619598,18.03.2015,Youth Offending Team,Prop Svs only - Day to day mtce,71.70,BALFOUR BEATTY,905
Revenue,Head of ASC & Community Wellbeing,5105619585,18.03.2015,Westminster House,Maintenance of Operational Equipment,89.96,BALFOUR BEATTY,906
Revenue,Head of Finance & S151 Officer,5105617766,11.03.2015,Public Conveniences - General,Prop Svs only - Day to day mtce,153.48,BALFOUR BEATTY,907
Revenue,Head of Finance & S151 Officer,5105617759,11.03.2015,Public Conveniences - General,Prop Svs only - Day to day mtce,67.50,BALFOUR BEATTY,908
Revenue,Head of Finance & S151 Officer,5105617712,11.03.2015,Public Conveniences - General,Prop Svs only - Day to day mtce,52.60,BALFOUR BEATTY,909
Revenue,Director of Childrens Services,5105621490,27.03.2015,Children's Services Strategic Management,Minor Works,115.50,BALFOUR BEATTY,910
Revenue,Head of ASC & Community Wellbeing,5105617699,06.03.2015,Highmead,Minor Works,143.70,BALFOUR BEATTY,911
Revenue,Head of Economy & Tourism,5105619951,20.03.2015,Newport Library,Prop Svs only - Day to day mtce,126.39,BALFOUR BEATTY,912
Revenue,Head of Economy & Tourism,5105619263,27.03.2015,Freshwater West Wight Library,Prop Svs only - Day to day mtce,288.24,BALFOUR BEATTY,913
Revenue,Head of HR & Organisational Change,5105617688,06.03.2015,"29,High St,Newport",Prop Svs only - Day to day mtce,190.94,BALFOUR BEATTY,914
Revenue,Director of Childrens Services,5105617670,06.03.2015,Youth- Ryde  (Well St),Prop Svs only - Day to day mtce,114.60,BALFOUR BEATTY,915
Revenue,Director of Childrens Services,5105617710,11.03.2015,Childrens Centres Maintenance,Minor Works,97.93,BALFOUR BEATTY,916
Revenue,Head of Economy & Tourism,5105618703,18.03.2015,Cowes Library,Prop Svs only - Day to day mtce,81.73,BALFOUR BEATTY,917
Revenue,Chief Fire Officer,5105617674,06.03.2015,Deputy Chief Fire Office,Prop Svs only - Day to day mtce,86.70,BALFOUR BEATTY,918
Revenue,Head of ASC & Community Wellbeing,5105619579,18.03.2015,The Laurels,Minor Works,143.05,BALFOUR BEATTY,919
Revenue,Head of HR & Organisational Change,5105619608,27.03.2015,"Jubilee Stores, Newport",Prop Svs only - Day to day mtce,270.40,BALFOUR BEATTY,920
Revenue,Head of HR & Organisational Change,5105619261,18.03.2015,"County Hall,Newport",Prop Svs only - Day to day mtce,67.20,BALFOUR BEATTY,921
Revenue,Head of ASC & Community Wellbeing,5105621529,27.03.2015,Adelaide Resource Centre,Prop Svs only - Day to day mtce,87.50,BALFOUR BEATTY,922
Revenue,Head of Economy & Tourism,5105620029,31.03.2015,Library HQ,Prop Svs only - Day to day mtce,652.74,BALFOUR BEATTY,923
Revenue,Head of HR & Organisational Change,5105619599,18.03.2015,"Bugle House,Newport",Prop Svs only - Day to day mtce,104.70,BALFOUR BEATTY,924
Revenue,Director of Childrens Services,5105621530,27.03.2015,Learning & Development Running Costs,Minor Works,48.50,BALFOUR BEATTY,925
Revenue,Head of ASC & Community Wellbeing,5105617272,04.03.2015,Gouldings Resource Centre,Prop Svs only - Day to day mtce,108.48,BALFOUR BEATTY,926
Revenue,Head of Economy & Tourism,5105618699,18.03.2015,Crematorium,Prop Svs only - Day to day mtce,108.00,BALFOUR BEATTY,927
Revenue,Head of ASC & Community Wellbeing,5105621489,27.03.2015,Adelaide Resource Centre,Prop Svs only - Day to day mtce,116.89,BALFOUR BEATTY,928
Revenue,Head of Economy & Tourism,5105619612,27.03.2015,The Heights,Prop Svs only - Day to day mtce,"1,645.21",BALFOUR BEATTY,929
Revenue,Head of ASC & Community Wellbeing,5105619595,18.03.2015,Adelaide Resource Centre,Prop Svs only - Day to day mtce,189.00,BALFOUR BEATTY,930
Revenue,Head of Finance & S151 Officer,5105621567,31.03.2015,Public Conveniences - General,Prop Svs only - Day to day mtce,253.20,BALFOUR BEATTY,931
Revenue,Head of Finance & S151 Officer,5105621503,27.03.2015,Public Conveniences - General,Prop Svs only - Day to day mtce,135.30,BALFOUR BEATTY,932
Revenue,Chief Fire Officer,5105619550,18.03.2015,Deputy Chief Fire Office,Prop Svs only - Day to day mtce,77.70,BALFOUR BEATTY,933
Revenue,Head of ASC & Community Wellbeing,5105621686,31.03.2015,Plean Dene,Minor Works,375.13,BALFOUR BEATTY,934
Revenue,Head of ASC & Community Wellbeing,5105621560,31.03.2015,Plean Dene,Minor Works,973.52,BALFOUR BEATTY,935
Revenue,Chief Fire Officer,5105619559,18.03.2015,Deputy Chief Fire Office,Prop Svs only - Day to day mtce,75.30,BALFOUR BEATTY,936
Revenue,Head of Finance & S151 Officer,5105618756,18.03.2015,Public Conveniences - General,Prop Svs only - Day to day mtce,96.70,BALFOUR BEATTY,937
Revenue,Director of Childrens Services,5105621195,25.03.2015,Beaulieu House,Minor Works,64.80,BALFOUR BEATTY,938
Revenue,Head of Economy & Tourism,5105621191,25.03.2015,Westridge Squash Courts,Prop Svs only - Day to day mtce,33.32,BALFOUR BEATTY,939
Revenue,Head of HR & Organisational Change,5105618719,18.03.2015,"County Hall,Newport",Prop Svs only - Day to day mtce,61.20,BALFOUR BEATTY,940
Revenue,Head of ASC & Community Wellbeing,5105617684,06.03.2015,Overbrook,Minor Works,103.04,BALFOUR BEATTY,941
Revenue,Head of Economy & Tourism,5105619956,20.03.2015,Cemeteries-Ventnor,Prop Svs only - Day to day mtce,65.45,BALFOUR BEATTY,942
Revenue,Head of Finance & S151 Officer,5105621052,25.03.2015,Public Conveniences - General,Prop Svs only - Day to day mtce,158.51,BALFOUR BEATTY,943
Revenue,Head of ASC & Community Wellbeing,5105621459,27.03.2015,Westminster House,Prop Svs only - Day to day mtce,181.60,BALFOUR BEATTY,944
Revenue,Head of ASC & Community Wellbeing,5105621535,27.03.2015,The Laurels,Minor Works,41.40,BALFOUR BEATTY,945
Revenue,Head of ASC & Community Wellbeing,5105622198,31.03.2015,Saxonbury,Minor Works,113.74,BALFOUR BEATTY,946
Revenue,Head of HR & Organisational Change,5105621548,31.03.2015,"Westridge, Ryde",Prop Svs only - Day to day mtce,372.70,BALFOUR BEATTY,947
Revenue,Director of Childrens Services,5105622293,31.03.2015,Childrens Centres Maintenance,Minor Works,61.20,BALFOUR BEATTY,948
Revenue,Head of Economy & Tourism,5105621472,27.03.2015,Open space lettings,Prop Svs only - Day to day mtce,108.00,BALFOUR BEATTY,949
Revenue,Head of Economy & Tourism,5105621192,25.03.2015,Non-operational buildings,Prop Svs only - Day to day mtce,49.20,BALFOUR BEATTY,950
Revenue,Director of Childrens Services,5105622322,31.03.2015,Beaulieu House,Minor Works,129.37,BALFOUR BEATTY,951
Revenue,Director of Childrens Services,5105621462,27.03.2015,Childrens Centres Maintenance,Minor Works,153.40,BALFOUR BEATTY,952
Revenue,Head of ASC & Community Wellbeing,5105621572,31.03.2015,Highmead,Minor Works,301.54,BALFOUR BEATTY,953
Revenue,Head of ASC & Community Wellbeing,5105622205,31.03.2015,The Laurels,Minor Works,310.54,BALFOUR BEATTY,954
Revenue,Head of ASC & Community Wellbeing,5105622250,31.03.2015,The Laurels,Minor Works,104.41,BALFOUR BEATTY,955
Revenue,Head of Economy & Tourism,5105619967,31.03.2015,Victoria Recreation Ground,Prop Svs only - Day to day mtce,447.73,BALFOUR BEATTY,956
Revenue,Head of HR & Organisational Change,5105622216,31.03.2015,"Enterprise House, Newport",Prop Svs only - Day to day mtce,28.80,BALFOUR BEATTY,957
Revenue,Head of Finance & S151 Officer,5105621188,25.03.2015,Public Conveniences - General,Prop Svs only - Day to day mtce,154.35,BALFOUR BEATTY,958
Revenue,Head of ASC & Community Wellbeing,5105622239,31.03.2015,Highmead,Minor Works,72.00,BALFOUR BEATTY,959
Revenue,Head of HR & Organisational Change,5105622182,31.03.2015,"24 Daish Way, Newport (WISE)",Prop Svs only - Day to day mtce,63.33,BALFOUR BEATTY,960
Revenue,Head of Finance & S151 Officer,5105619601,18.03.2015,Public Conveniences - General,Prop Svs only - Day to day mtce,74.04,BALFOUR BEATTY,961
Revenue,Head of Finance & S151 Officer,5105619593,18.03.2015,Public Conveniences - General,Prop Svs only - Day to day mtce,161.99,BALFOUR BEATTY,962
Revenue,Head of Finance & S151 Officer,5105621546,31.03.2015,Public Conveniences - General,Property Services - Planned Maintenance,600.06,BALFOUR BEATTY,963
Revenue,Head of Economy & Tourism,5105622253,31.03.2015,Crematorium,Prop Svs only - Day to day mtce,59.90,BALFOUR BEATTY,964
Revenue,Director of Childrens Services,5105622174,31.03.2015,Childrens Centres Maintenance,Minor Works,131.70,BALFOUR BEATTY,965
Revenue,Head of ASC & Community Wellbeing,5105622299,31.03.2015,Saxonbury,Minor Works,138.00,BALFOUR BEATTY,966
Revenue,Head of ASC & Community Wellbeing,5105622311,31.03.2015,Adelaide Resource Centre,Prop Svs only - Day to day mtce,95.32,BALFOUR BEATTY,967
Revenue,Head of ASC & Community Wellbeing,5105622178,31.03.2015,Stores Adult Social Care,Payment to Private Contractors,135.02,BALFOUR BEATTY,968
Revenue,Head of Economy & Tourism,5105621689,31.03.2015,"St Thomas Church, Ryde",Minor Works,616.21,BALFOUR BEATTY,969
Revenue,Chief Fire Officer,5105622221,31.03.2015,Deputy Chief Fire Office,Property Services - Planned Maintenance,288.92,BALFOUR BEATTY,970
Revenue,Head of Economy & Tourism,5105622308,31.03.2015,Roman Villa Newport,Property Services - Planned Maintenance,135.02,BALFOUR BEATTY,971
Revenue,Chief Fire Officer,5105622233,31.03.2015,Deputy Chief Fire Office,Property Services - Planned Maintenance,521.96,BALFOUR BEATTY,972
Revenue,Head of Economy & Tourism,5105622045,31.03.2015,Medina Leisure Centre,Property Services - Planned Maintenance,"1,201.50",BALFOUR BEATTY,973
Revenue,Head of HR & Organisational Change,5105622235,31.03.2015,"Guildhall,Newport",Property Services - Planned Maintenance,463.00,BALFOUR BEATTY,974
Revenue,Head of ASC & Community Wellbeing,5105621569,31.03.2015,Gouldings Resource Centre,Property Services - Planned Maintenance,466.48,BALFOUR BEATTY,975
Revenue,Head of ASC & Community Wellbeing,5105622176,31.03.2015,Gouldings Resource Centre,Prop Svs only - Day to day mtce,110.26,BALFOUR BEATTY,976
Revenue,Head of HR & Organisational Change,5105621734,31.03.2015,"Jubilee Stores, Newport",Prop Svs only - Day to day mtce,391.50,BALFOUR BEATTY,977
Revenue,Head of Economy & Tourism,5105621608,31.03.2015,Medina Leisure Centre,Prop Svs only - Day to day mtce,801.95,BALFOUR BEATTY,978
Revenue,Head of HR & Organisational Change,5105622184,31.03.2015,"County Hall,Newport",Property Services - Planned Maintenance,238.00,BALFOUR BEATTY,979
Revenue,Director of Childrens Services,5105621540,31.03.2015,Beaulieu House,Minor Works,"1,115.88",BALFOUR BEATTY,980
Revenue,Head of Finance & S151 Officer,5105622197,31.03.2015,Public Conveniences - General,Prop Svs only - Day to day mtce,37.10,BALFOUR BEATTY,981
Revenue,Head of Finance & S151 Officer,5105621464,27.03.2015,Public Conveniences - General,Prop Svs only - Day to day mtce,181.90,BALFOUR BEATTY,982
Revenue,Head of HR & Organisational Change,5105621696,31.03.2015,"Civic Centre,Sandown",Prop Svs only - Day to day mtce,279.76,BALFOUR BEATTY,983
Revenue,Head of ASC & Community Wellbeing,5105621547,31.03.2015,Saxonbury,Minor Works,904.93,BALFOUR BEATTY,984
Revenue,Head of Economy & Tourism,5105621194,25.03.2015,Fort Victoria,Prop Svs only - Day to day mtce,111.81,BALFOUR BEATTY,985
Revenue,Head of Finance & S151 Officer,5105622173,31.03.2015,Public Conveniences - General,Prop Svs only - Day to day mtce,66.80,BALFOUR BEATTY,986
Revenue,Head of ASC & Community Wellbeing,5105622220,31.03.2015,The Laurels,Minor Works,212.52,BALFOUR BEATTY,987
Revenue,Head of Economy & Tourism,5105621956,31.03.2015,The Heights,Prop Svs only - Day to day mtce,130.52,BALFOUR BEATTY,988
Revenue,Head of Finance & S151 Officer,5105622304,31.03.2015,Public Conveniences - General,Prop Svs only - Day to day mtce,141.68,BALFOUR BEATTY,989
Revenue,Chief Fire Officer,5105621605,31.03.2015,Deputy Chief Fire Office,Property Services - Planned Maintenance,345.16,BALFOUR BEATTY,990
Capital,Director of Childrens Services,5105617260,04.03.2015,One School Pathfinder,Payment to Contractors - Capital,280.80,BALFOUR BEATTY,991
Capital,Director of Childrens Services,5105617260,04.03.2015,One School Pathfinder,Payment to Contractors - Capital,170.54,BALFOUR BEATTY,992
Revenue,Director of Childrens Services,5105622094,31.03.2015,Alternative Provision - Place Funding,Property Services - Planned Maintenance,333.92,BALFOUR BEATTY,993
Revenue,Head of ASC & Community Wellbeing,5105621531,31.03.2015,Adelaide Resource Centre,Property Services - Planned Maintenance,635.79,BALFOUR BEATTY,994
Revenue,Chief Fire Officer,5105619603,27.03.2015,Deputy Chief Fire Office,Prop Svs only - Day to day mtce,254.26,BALFOUR BEATTY,995
Revenue,Chief Fire Officer,5105622209,31.03.2015,Deputy Chief Fire Office,Prop Svs only - Day to day mtce,90.00,BALFOUR BEATTY,996
Revenue,Director of Childrens Services,5105622226,31.03.2015,Youth- Sandown/Lake,Prop Svs only - Day to day mtce,33.32,BALFOUR BEATTY,997
Revenue,Head of Finance & S151 Officer,5105621466,27.03.2015,Public Conveniences - General,Prop Svs only - Day to day mtce,61.40,BALFOUR BEATTY,998
Revenue,Head of Finance & S151 Officer,5105621460,27.03.2015,Public Conveniences - General,Prop Svs only - Day to day mtce,73.60,BALFOUR BEATTY,999
Capital,Director of Childrens Services,5105617260,04.03.2015,One School Pathfinder,Payment to Contractors - Capital,702.00,BALFOUR BEATTY,1000
Capital,Director of Childrens Services,5105617260,04.03.2015,One School Pathfinder,Payment to Contractors - Capital,750.00,BALFOUR BEATTY,1001
Capital,Director of Childrens Services,5105617260,04.03.2015,One School Pathfinder,Payment to Contractors - Capital,261.36,BALFOUR BEATTY,1002
Capital,Director of Childrens Services,5105617260,04.03.2015,One School Pathfinder,Payment to Contractors - Capital,"13,388.61",BALFOUR BEATTY,1003
Capital,Director of Childrens Services,5105617260,04.03.2015,One School Pathfinder,Payment to Contractors - Capital,"1,703.23",BALFOUR BEATTY,1004
Capital,Director of Childrens Services,5105617260,04.03.2015,One School Pathfinder,Payment to Contractors - Capital,248.40,BALFOUR BEATTY,1005
Revenue,Director of Childrens Services,5105622200,31.03.2015,Beaulieu House,Minor Works,172.04,BALFOUR BEATTY,1006
Revenue,Head of ASC & Community Wellbeing,5105622245,31.03.2015,Overbrook,Minor Works,100.28,BALFOUR BEATTY,1007
Revenue,Head of Finance & S151 Officer,5105622247,31.03.2015,Public Conveniences - General,Prop Svs only - Day to day mtce,79.95,BALFOUR BEATTY,1008
Revenue,Director of Childrens Services,5105622303,31.03.2015,Clatterford Pupil Referral Unit (PRU),Minor Works,85.59,BALFOUR BEATTY,1009
Revenue,Head of ASC & Community Wellbeing,5105621461,27.03.2015,Westminster House,Prop Svs only - Day to day mtce,108.46,BALFOUR BEATTY,1010
Revenue,Head of Finance & S151 Officer,5105621273,27.03.2015,Public Conveniences - General,Prop Svs only - Day to day mtce,123.90,BALFOUR BEATTY,1011
Revenue,Head of Economy & Tourism,5105621473,27.03.2015,Medina Leisure Centre,Prop Svs only - Day to day mtce,53.85,BALFOUR BEATTY,1012
Revenue,Director of Childrens Services,5105621526,27.03.2015,Beaulieu House,Minor Works,99.96,BALFOUR BEATTY,1013
Revenue,Head of HR & Organisational Change,5105622315,31.03.2015,"Civic Centre,Sandown",Prop Svs only - Day to day mtce,115.50,BALFOUR BEATTY,1014
Revenue,Director of Childrens Services,5105621189,25.03.2015,Childrens Centres Maintenance,Minor Works,187.97,BALFOUR BEATTY,1015
Revenue,Director of Childrens Services,5105622307,31.03.2015,Beaulieu House,Minor Works,69.78,BALFOUR BEATTY,1016
Revenue,Head of Finance & S151 Officer,5105622189,31.03.2015,Public Conveniences - General,Prop Svs only - Day to day mtce,52.50,BALFOUR BEATTY,1017
Revenue,Head of HR & Organisational Change,5105621196,25.03.2015,"Bugle House,Newport",Prop Svs only - Day to day mtce,117.24,BALFOUR BEATTY,1018
Revenue,Head of Finance & S151 Officer,5105622271,31.03.2015,Public Conveniences - General,Prop Svs only - Day to day mtce,131.25,BALFOUR BEATTY,1019
Revenue,Head of Economy & Tourism,5105621538,31.03.2015,Open space lettings,Prop Svs only - Day to day mtce,224.04,BALFOUR BEATTY,1020
Revenue,Head of ASC & Community Wellbeing,5105621469,27.03.2015,Overbrook,Minor Works,63.00,BALFOUR BEATTY,1021
Revenue,Head of Economy & Tourism,5105622194,31.03.2015,Ryde Library,Prop Svs only - Day to day mtce,26.25,BALFOUR BEATTY,1022
Revenue,Head of Economy & Tourism,5105621467,27.03.2015,Medina Leisure Centre,Prop Svs only - Day to day mtce,174.28,BALFOUR BEATTY,1023
Revenue,Head of ASC & Community Wellbeing,5105621493,27.03.2015,Westminster House,Prop Svs only - Day to day mtce,180.30,BALFOUR BEATTY,1024
Revenue,Head of HR & Organisational Change,5105622302,31.03.2015,"County Hall,Newport",Prop Svs only - Day to day mtce,66.64,BALFOUR BEATTY,1025
Revenue,Head of ASC & Community Wellbeing,5105622269,31.03.2015,Downside Community & Learning Centre,Minor Works,49.20,BALFOUR BEATTY,1026
Revenue,Chief Fire Officer,5105622266,31.03.2015,Deputy Chief Fire Office,Prop Svs only - Day to day mtce,33.32,BALFOUR BEATTY,1027
Revenue,Head of HR & Organisational Change,5105622314,31.03.2015,"County Hall,Newport",Prop Svs only - Day to day mtce,63.00,BALFOUR BEATTY,1028
Revenue,Director of Childrens Services,5105622270,31.03.2015,Childrens Centres Maintenance,Minor Works,178.50,BALFOUR BEATTY,1029
Revenue,Head of Finance & S151 Officer,5105622305,31.03.2015,Public Conveniences - General,Prop Svs only - Day to day mtce,157.50,BALFOUR BEATTY,1030
Revenue,Head of ASC & Community Wellbeing,5105621523,27.03.2015,Westminster House,Prop Svs only - Day to day mtce,153.14,BALFOUR BEATTY,1031
Revenue,Head of Economy & Tourism,5105621475,27.03.2015,17 Fairlee Road,Minor Works,48.30,BALFOUR BEATTY,1032
Revenue,Head of ASC & Community Wellbeing,5105622254,31.03.2015,Overbrook,Minor Works,110.85,BALFOUR BEATTY,1033
Revenue,Head of ASC & Community Wellbeing,5105622313,31.03.2015,Overbrook,Minor Works,84.00,BALFOUR BEATTY,1034
Revenue,Head of ASC & Community Wellbeing,5105621186,25.03.2015,Overbrook,Minor Works,66.64,BALFOUR BEATTY,1035
Revenue,Chief Fire Officer,5105621474,27.03.2015,Deputy Chief Fire Office,Prop Svs only - Day to day mtce,49.09,BALFOUR BEATTY,1036
Revenue,Head of Economy & Tourism,5105622251,31.03.2015,Bembridge Library,Prop Svs only - Day to day mtce,140.65,BALFOUR BEATTY,1037
Revenue,Head of Finance & S151 Officer,5105621224,25.03.2015,Public Conveniences - General,Prop Svs only - Day to day mtce,53.00,BALFOUR BEATTY,1038
Revenue,Head of Economy & Tourism,5105621471,27.03.2015,Medina Leisure Centre,Prop Svs only - Day to day mtce,198.32,BALFOUR BEATTY,1039
Revenue,Head of Finance & S151 Officer,5105622273,31.03.2015,Public Conveniences - General,Prop Svs only - Day to day mtce,131.25,BALFOUR BEATTY,1040
Revenue,Head of Economy & Tourism,5105622132,31.03.2015,17 Fairlee Road,Minor Works,96.54,BALFOUR BEATTY,1041
Revenue,Director of Childrens Services,5105622135,31.03.2015,Youth Offending Team,Prop Svs only - Day to day mtce,85.43,BALFOUR BEATTY,1042
Revenue,Head of Economy & Tourism,5105622258,31.03.2015,Cemeteries-Ryde,Prop Svs only - Day to day mtce,72.81,BALFOUR BEATTY,1043
Revenue,Head of ASC & Community Wellbeing,5105622134,31.03.2015,Highmead,Minor Works,70.84,BALFOUR BEATTY,1044
Revenue,Director of Childrens Services,5105622243,31.03.2015,Beaulieu House,Minor Works,183.75,BALFOUR BEATTY,1045
Revenue,Chief Fire Officer,5105622265,31.03.2015,Deputy Chief Fire Office,Prop Svs only - Day to day mtce,199.20,BALFOUR BEATTY,1046
Revenue,Head of Economy & Tourism,5105622277,31.03.2015,Open space lettings,Prop Svs only - Day to day mtce,159.51,BALFOUR BEATTY,1047
Revenue,Head of ASC & Community Wellbeing,5105622323,31.03.2015,Adelaide Resource Centre,Prop Svs only - Day to day mtce,62.70,BALFOUR BEATTY,1048
Revenue,Head of Economy & Tourism,5105621532,27.03.2015,Newport Harbour Account,Prop Svs only - Day to day mtce,78.66,BALFOUR BEATTY,1049
Revenue,Head of HR & Organisational Change,5105622310,31.03.2015,Somerton Industrial Park,Prop Svs only - Day to day mtce,96.48,BALFOUR BEATTY,1050
Revenue,Director of Childrens Services,5105621978,31.03.2015,Childrens Centres Maintenance,Minor Works,219.60,BALFOUR BEATTY,1051
Capital,Head of HR & Organisational Change,5105617720,11.03.2015,Management of Asbestos,Payment to Contractors - Capital,"8,463.51",BALFOUR BEATTY,1052
Revenue,Head of HR & Organisational Change,5105622309,31.03.2015,"29,High St,Newport",Prop Svs only - Day to day mtce,108.00,BALFOUR BEATTY,1053
Revenue,Head of Economy & Tourism,5105622185,31.03.2015,Ryde Harbour,Prop Svs only - Day to day mtce,373.23,BALFOUR BEATTY,1054
Revenue,Head of Economy & Tourism,5105621684,31.03.2015,Westridge Squash Courts,Prop Svs only - Day to day mtce,"1,275.85",BALFOUR BEATTY,1055
Revenue,Head of ASC & Community Wellbeing,5105622211,31.03.2015,Westminster House,Prop Svs only - Day to day mtce,61.98,BALFOUR BEATTY,1056
Revenue,Director of Childrens Services,5105622319,31.03.2015,Clatterford Pupil Referral Unit (PRU),Minor Works,53.86,BALFOUR BEATTY,1057
Revenue,Chief Fire Officer,5105621976,31.03.2015,Deputy Chief Fire Office,Prop Svs only - Day to day mtce,112.90,BALFOUR BEATTY,1058
Revenue,Director of Childrens Services,5105622279,31.03.2015,Learning & Development Running Costs,Minor Works,53.10,BALFOUR BEATTY,1059
Revenue,Director of Childrens Services,5105622146,31.03.2015,Beaulieu House,Minor Works,99.96,BALFOUR BEATTY,1060
Capital,Head of HR & Organisational Change,5105617718,11.03.2015,Electrical Rewiring Programme Non Educ,Payment to Contractors - Capital,"1,996.30",BALFOUR BEATTY,1061
Revenue,Head of HR & Organisational Change,5105622213,31.03.2015,"Enterprise House, Newport",Prop Svs only - Day to day mtce,67.85,BALFOUR BEATTY,1062
Revenue,Head of Finance & S151 Officer,5105621519,27.03.2015,Public Conveniences - General,Prop Svs only - Day to day mtce,64.09,BALFOUR BEATTY,1063
Revenue,Head of HR & Organisational Change,5105621974,31.03.2015,"County Hall,Newport",Prop Svs only - Day to day mtce,247.27,BALFOUR BEATTY,1064
Revenue,Director of Childrens Services,5105622231,31.03.2015,Children's Services Strategic Management,Minor Works,83.30,BALFOUR BEATTY,1065
Revenue,Chief Fire Officer,5105621615,31.03.2015,Deputy Chief Fire Office,Prop Svs only - Day to day mtce,654.92,BALFOUR BEATTY,1066
Revenue,Director of Childrens Services,5105621520,27.03.2015,Clatterford Pupil Referral Unit (PRU),Minor Works,94.10,BALFOUR BEATTY,1067
Revenue,Head of ASC & Community Wellbeing,5105622242,31.03.2015,Highmead,Minor Works,26.25,BALFOUR BEATTY,1068
Revenue,Head of Finance & S151 Officer,5105622301,31.03.2015,Public Conveniences - General,Prop Svs only - Day to day mtce,"1,949.69",BALFOUR BEATTY,1069
Revenue,Head of HR & Organisational Change,5105622275,31.03.2015,"Seaclose Offices, Newport",Prop Svs only - Day to day mtce,63.00,BALFOUR BEATTY,1070
Revenue,Head of Finance & S151 Officer,5105622326,31.03.2015,Public Conveniences - General,Prop Svs only - Day to day mtce,123.00,BALFOUR BEATTY,1071
Revenue,Head of Economy & Tourism,5105622156,31.03.2015,Freshwater West Wight Library,Prop Svs only - Day to day mtce,148.88,BALFOUR BEATTY,1072
Revenue,Head of ASC & Community Wellbeing,5105622327,31.03.2015,Westminster House,Security of Buildings,218.43,BALFOUR BEATTY,1073
Revenue,Head of Economy & Tourism,5105621980,31.03.2015,Library HQ,Prop Svs only - Day to day mtce,415.75,BALFOUR BEATTY,1074
Revenue,Director of Childrens Services,5105622092,31.03.2015,Childrens Centres Maintenance,Minor Works,215.52,BALFOUR BEATTY,1075
Revenue,Director of Childrens Services,5105622141,31.03.2015,Clatterford Pupil Referral Unit (PRU),Minor Works,78.75,BALFOUR BEATTY,1076
Revenue,Head of HR & Organisational Change,5105622140,31.03.2015,"Seaclose Offices, Newport",Prop Svs only - Day to day mtce,72.14,BALFOUR BEATTY,1077
Revenue,Head of Economy & Tourism,5105622147,31.03.2015,Cowes Library,Prop Svs only - Day to day mtce,112.50,BALFOUR BEATTY,1078
Revenue,Director of Childrens Services,5105622155,31.03.2015,Clatterford Pupil Referral Unit (PRU),Minor Works,128.62,BALFOUR BEATTY,1079
Revenue,Head of Finance & S151 Officer,5105622241,31.03.2015,Public Conveniences - General,Prop Svs only - Day to day mtce,30.99,BALFOUR BEATTY,1080
Revenue,Director of Childrens Services,5105617258,04.03.2015,HCC Property Services SLA,Minor Works,"4,061.00",BALFOUR BEATTY,1081
Revenue,Head of ASC & Community Wellbeing,5105622324,31.03.2015,Downside Community & Learning Centre,Minor Works,418.76,BALFOUR BEATTY,1082
Revenue,Head of HR & Organisational Change,5105622153,31.03.2015,"Enterprise House, Newport",Prop Svs only - Day to day mtce,78.20,BALFOUR BEATTY,1083
Revenue,Head of ASC & Community Wellbeing,5105622149,31.03.2015,Downside Community & Learning Centre,Minor Works,48.50,BALFOUR BEATTY,1084
Revenue,Head of Economy & Tourism,5105622137,31.03.2015,Cowes Library,Prop Svs only - Day to day mtce,59.68,BALFOUR BEATTY,1085
Revenue,Head of Economy & Tourism,5105622139,31.03.2015,Ryde Library,Prop Svs only - Day to day mtce,84.87,BALFOUR BEATTY,1086
Revenue,Head of Economy & Tourism,5105622154,31.03.2015,Dinosaur Isle Museum (Sandown Geology),Prop Svs only - Day to day mtce,98.92,BALFOUR BEATTY,1087
Revenue,Head of HR & Organisational Change,5105622090,31.03.2015,"County Hall,Newport",Prop Svs only - Day to day mtce,218.30,BALFOUR BEATTY,1088
Revenue,Head of ASC & Community Wellbeing,5105621505,27.03.2015,Adelaide Resource Centre,Maintenance of Operational Equipment,63.00,BALFOUR BEATTY,1089
Revenue,Head of Economy & Tourism,5105622238,31.03.2015,Open space lettings,Prop Svs only - Day to day mtce,78.00,BALFOUR BEATTY,1090
Revenue,Head of ASC & Community Wellbeing,5105622144,31.03.2015,Gouldings Resource Centre,Maintenance of Operational Equipment,107.31,BALFOUR BEATTY,1091
Revenue,Head of HR & Organisational Change,5105622145,31.03.2015,"Jubilee Stores, Newport",Prop Svs only - Day to day mtce,58.50,BALFOUR BEATTY,1092
Revenue,Head of Economy & Tourism,5105622167,31.03.2015,Crematorium,Prop Svs only - Day to day mtce,84.00,BALFOUR BEATTY,1093
Revenue,Head of HR & Organisational Change,5105622142,31.03.2015,"Westridge, Ryde",Prop Svs only - Day to day mtce,33.32,BALFOUR BEATTY,1094
Revenue,Head of ASC & Community Wellbeing,5105622148,31.03.2015,Downside Community & Learning Centre,Minor Works,289.13,BALFOUR BEATTY,1095
Revenue,Director of Childrens Services,5105622143,31.03.2015,Learning & Development Running Costs,Minor Works,98.10,BALFOUR BEATTY,1096
Revenue,Head of Finance & S151 Officer,5105622130,31.03.2015,Public Conveniences - General,Prop Svs only - Day to day mtce,135.00,BALFOUR BEATTY,1097
Revenue,Head of HR & Organisational Change,5105617797,11.03.2015,"County Hall,Newport",Minor Works,228.00,BALFOUR BEATTY,1098
Revenue,Chief Fire Officer,5105622138,31.03.2015,Deputy Chief Fire Office,Prop Svs only - Day to day mtce,346.19,BALFOUR BEATTY,1099
Revenue,Head of ASC & Community Wellbeing,5105622136,31.03.2015,Saxonbury,Minor Works,146.73,BALFOUR BEATTY,1100
Revenue,Head of Economy & Tourism,5105621613,27.03.2015,Non-operational buildings,Prop Svs only - Day to day mtce,"3,145.39",BALFOUR BEATTY,1101
Revenue,Head of Economy & Tourism,5105617719,31.03.2015,Newport Harbour Account,Prop Svs only - Day to day mtce,"1,408.56",BALFOUR BEATTY,1102
Revenue,Head of Economy & Tourism,5105622166,31.03.2015,Open space lettings,Prop Svs only - Day to day mtce,67.20,BALFOUR BEATTY,1103
Revenue,Chief Fire Officer,5105622316,31.03.2015,Deputy Chief Fire Office,Prop Svs only - Day to day mtce,29.70,BALFOUR BEATTY,1104
Revenue,Head of ASC & Community Wellbeing,5105622297,31.03.2015,Adelaide Resource Centre,Prop Svs only - Day to day mtce,96.99,BALFOUR BEATTY,1105
Revenue,Head of Economy & Tourism,5105622312,31.03.2015,Ventnor concessions,Payment to Private Contractors,63.00,BALFOUR BEATTY,1106
Capital,Head of HR & Organisational Change,5105617799,11.03.2015,Electrical Rewiring Programme Non Educ,Payment to Contractors - Capital,"1,908.41",BALFOUR BEATTY,1107
Revenue,Head of HR & Organisational Change,5105617798,11.03.2015,"County Hall,Newport",Prop Svs only - Day to day mtce,"1,936.00",BALFOUR BEATTY,1108
Revenue,Head of HR & Organisational Change,5105617717,11.03.2015,"County Hall,Newport",Minor Works,"16,184.98",BALFOUR BEATTY,1109
Revenue,Head of ASC & Community Wellbeing,5105617576,06.03.2015,Highmead,Minor Works,97.20,BALFOUR BEATTY,1110
Revenue,Director of Childrens Services,5105620065,20.03.2015,HCC Property Services SLA,Minor Works,109.90,BALFOUR BEATTY,1111
Revenue,Director of Childrens Services,5105619940,20.03.2015,HCC Property Services SLA,Minor Works,"2,281.30",BALFOUR BEATTY,1112
Revenue,Director of Childrens Services,5105619941,20.03.2015,HCC Property Services SLA,Minor Works,455.40,BALFOUR BEATTY,1113
Revenue,Director of Childrens Services,5105620046,20.03.2015,HCC Property Services SLA,Minor Works,70.23,BALFOUR BEATTY,1114
Revenue,Director of Childrens Services,5105619944,20.03.2015,HCC Property Services SLA,Minor Works,177.41,BALFOUR BEATTY,1115
Revenue,Director of Childrens Services,5105619942,20.03.2015,HCC Property Services SLA,Minor Works,222.85,BALFOUR BEATTY,1116
Revenue,Director of Childrens Services,5105620049,20.03.2015,HCC Property Services SLA,Minor Works,404.50,BALFOUR BEATTY,1117
Revenue,Director of Childrens Services,5105619936,20.03.2015,HCC Property Services SLA,Minor Works,232.71,BALFOUR BEATTY,1118
Revenue,Director of Childrens Services,5105619939,20.03.2015,HCC Property Services SLA,Minor Works,891.58,BALFOUR BEATTY,1119
Revenue,Director of Childrens Services,5105619937,20.03.2015,HCC Property Services SLA,Minor Works,63.25,BALFOUR BEATTY,1120
Revenue,Director of Childrens Services,5105622295,31.03.2015,HCC Property Services SLA,Minor Works,141.01,BALFOUR BEATTY,1121
Revenue,Director of Childrens Services,5105622295,31.03.2015,HCC Property Services SLA,Minor Works,225.55,BALFOUR BEATTY,1122
Revenue,Director of Childrens Services,5105622318,31.03.2015,HCC Property Services SLA,Minor Works,613.91,BALFOUR BEATTY,1123
Revenue,Director of Childrens Services,5105622170,31.03.2015,HCC Property Services SLA,Minor Works,100.86,BALFOUR BEATTY,1124
Revenue,Director of Childrens Services,5105622321,31.03.2015,HCC Property Services SLA,Minor Works,604.06,BALFOUR BEATTY,1125
Revenue,Director of Childrens Services,5105622169,31.03.2015,HCC Property Services SLA,Minor Works,121.61,BALFOUR BEATTY,1126
Revenue,Director of Childrens Services,5105622317,31.03.2015,HCC Property Services SLA,Minor Works,122.31,BALFOUR BEATTY,1127
Revenue,Director of Childrens Services,5105622246,31.03.2015,HCC Property Services SLA,Minor Works,546.90,BALFOUR BEATTY,1128
Revenue,Director of Childrens Services,5105621463,27.03.2015,HCC Property Services SLA,Minor Works,"1,427.00",BALFOUR BEATTY,1129
Revenue,Director of Childrens Services,5105621537,27.03.2015,HCC Property Services SLA,Minor Works,393.45,BALFOUR BEATTY,1130
Revenue,Director of Childrens Services,5105621465,27.03.2015,HCC Property Services SLA,Minor Works,108.21,BALFOUR BEATTY,1131
Revenue,Director of Childrens Services,5105621536,27.03.2015,HCC Property Services SLA,Minor Works,71.25,BALFOUR BEATTY,1132
Revenue,Director of Childrens Services,5105621468,27.03.2015,HCC Property Services SLA,Minor Works,209.85,BALFOUR BEATTY,1133
Revenue,Director of Childrens Services,5105621470,27.03.2015,HCC Property Services SLA,Minor Works,145.28,BALFOUR BEATTY,1134
Revenue,Director of Childrens Services,5105621476,27.03.2015,HCC Property Services SLA,Minor Works,"1,181.86",BALFOUR BEATTY,1135
Revenue,Director of Childrens Services,5105621486,27.03.2015,HCC Property Services SLA,Minor Works,597.41,BALFOUR BEATTY,1136
Revenue,Director of Childrens Services,5105621484,27.03.2015,HCC Property Services SLA,Minor Works,218.50,BALFOUR BEATTY,1137
Revenue,Director of Childrens Services,5105621478,27.03.2015,HCC Property Services SLA,Minor Works,525.34,BALFOUR BEATTY,1138
Revenue,Director of Childrens Services,5105621479,27.03.2015,HCC Property Services SLA,Minor Works,382.58,BALFOUR BEATTY,1139
Revenue,Director of Childrens Services,5105621481,27.03.2015,HCC Property Services SLA,Minor Works,189.38,BALFOUR BEATTY,1140
Revenue,Director of Childrens Services,5105622171,31.03.2015,HCC Property Services SLA,Minor Works,101.22,BALFOUR BEATTY,1141
Revenue,Director of Childrens Services,5105622306,31.03.2015,HCC Property Services SLA,Minor Works,"2,628.98",BALFOUR BEATTY,1142
Revenue,Director of Childrens Services,5105620071,20.03.2015,HCC Property Services SLA,Minor Works,"1,214.00",BALFOUR BEATTY,1143
Revenue,Director of Childrens Services,5105620059,20.03.2015,HCC Property Services SLA,Minor Works,101.22,BALFOUR BEATTY,1144
Revenue,Director of Childrens Services,5105619969,20.03.2015,HCC Property Services SLA,Minor Works,736.00,BALFOUR BEATTY,1145
Revenue,Director of Childrens Services,5105619948,20.03.2015,HCC Property Services SLA,Minor Works,"1,033.74",BALFOUR BEATTY,1146
Revenue,Director of Childrens Services,5105620123,20.03.2015,HCC Property Services SLA,Minor Works,154.29,BALFOUR BEATTY,1147
Revenue,Director of Childrens Services,5105620061,20.03.2015,HCC Property Services SLA,Minor Works,88.97,BALFOUR BEATTY,1148
Revenue,Director of Childrens Services,5105620069,20.03.2015,HCC Property Services SLA,Minor Works,217.41,BALFOUR BEATTY,1149
Revenue,Director of Childrens Services,5105619934,20.03.2015,HCC Property Services SLA,Minor Works,194.58,BALFOUR BEATTY,1150
Revenue,Director of Childrens Services,5105620034,20.03.2015,HCC Property Services SLA,Minor Works,137.45,BALFOUR BEATTY,1151
Revenue,Director of Childrens Services,5105619935,20.03.2015,HCC Property Services SLA,Minor Works,108.81,BALFOUR BEATTY,1152
Capital,Head of HR & Organisational Change,5105617711,11.03.2015,Management of Asbestos,Payment to Contractors - Capital,165.32,BALFOUR BEATTY,1153
Revenue,Head of Finance & S151 Officer,5105619954,31.03.2015,Public Conveniences - General,Minor Works,126.90,BALFOUR BEATTY,1154
Revenue,Chief Fire Officer,5105618289,13.03.2015,Fire Technical Support,Payment to Private Contractors,"6,883.45",BALLYCLARE LTD,1155
Revenue,Chief Fire Officer,5105618789,18.03.2015,Fire Technical Support,Payment to Private Contractors,644.70,BALLYCLARE LTD,1156
Revenue,Chief Fire Officer,5105620154,25.03.2015,Fire Technical Support,Payment to Private Contractors,644.70,BALLYCLARE LTD,1157
Revenue,Chief Fire Officer,5105620134,25.03.2015,Fire Technical Support,Payment to Private Contractors,644.70,BALLYCLARE LTD,1158
Revenue,Director of Childrens Services,5105619566,25.03.2015,Family Support Work,Payment to Private Contractors,"41,779.25",BARNARDOS,1159
Revenue,Chief Fire Officer,5105620114,20.03.2015,Road Safety,Operational Equipment,180.00,BARTLETTS SERVICE STATION,1162
Revenue,Chief Fire Officer,5105620006,20.03.2015,Fire Technical Support,Vehicle Maintenance Costs,12.00,BARTLETTS SERVICE STATION,1163
Revenue,Chief Fire Officer,5105621504,27.03.2015,Diversity & Workforce,Operational Equipment,75.00,BARTLETTS SERVICE STATION,1164
Revenue,Director of Childrens Services,5105622121,31.03.2015,Workforce Development - Early Years,Training,30.00,BARTON PRIMARY & EARLY YEARS,1165
Revenue,Director of Childrens Services,5105622122,31.03.2015,Workforce Development - Early Years,Training,10.00,BARTON PRIMARY & EARLY YEARS,1166
Revenue,Head of Exchequer Services,5105620265,25.03.2015,Staff Benefits,Payment to Private Contractors,50.00,BARTON PRIMARY & EARLY YEARS,1167
Revenue,Head of Exchequer Services,5105620265,25.03.2015,Staff Benefits,Payment to Private Contractors,11.67,BARTON PRIMARY & EARLY YEARS,1168
Revenue,Head of Corp Gov & Monitoring Officer,5105619627,18.03.2015,Legal Services Section,Training,15.00,BASINGSTOKE AND DEANE BOROUGH COUNCIL,1169
Revenue,Director of Childrens Services,5105617889,11.03.2015,Hearing Impaired Service,Training,360.00,BATOD,1170
Revenue,Head of Economy & Tourism,5105621563,27.03.2015,IOW Festival of Walking,Advertising & Publicity,540.00,BAUER CONSUMER MEDIA LTD,1171
Revenue,Director of Childrens Services,5105617690,06.03.2015,Support for Looked After Children - Disabled Childrens Team,Transport of Clients,540.00,BEACON TAXIS,1172
Revenue,Director of Childrens Services,5105617796,11.03.2015,Independ. & Non-Maint. Special Schls & Independ. Specialist Provision,Transport of Clients,540.00,BEACON TAXIS,1173
Revenue,Head of ASC & Community Wellbeing,5105620540,25.03.2015,Elderly Mentally Ill Nursing Mainland,Charges from Independent Providers,"2,269.40",BEAUMONT LODGE LTD,1174
Revenue,Chief Fire Officer,5105618015,11.03.2015,Fire Operations,Operational Equipment,"1,250.00",BEDS 'R' US (IOW) LTD,1175
Revenue,Chief Fire Officer,5105618015,11.03.2015,Fire Operations,Operational Equipment,125.00,BEDS 'R' US (IOW) LTD,1176
Revenue,Director of Childrens Services,5105620005,20.03.2015,Short Breaks Caravan (LO),Fixtures and Fittings,"1,220.00",BELFIELD FURNISHINGS LTD,1177
Revenue,Head of ASC & Community Wellbeing,5105618330,13.03.2015,Community Laundry Service,Clothing & Laundry,13.74,BERENDSEN,1179
Revenue,Head of ASC & Community Wellbeing,5105618293,13.03.2015,Community Laundry Service,Clothing & Laundry,13.74,BERENDSEN,1180
Revenue,Head of ASC & Community Wellbeing,5105618787,18.03.2015,Community Laundry Service,Clothing & Laundry,13.74,BERENDSEN,1181
Revenue,Head of Planning & Regulatory Services,5105618291,13.03.2015,Environmental Health - Geographical Team,Clothing & Laundry,15.76,BERENDSEN,1182
Revenue,Head of Planning & Regulatory Services,5105618303,13.03.2015,Environmental Health - Geographical Team,Clothing & Laundry,34.76,BERENDSEN,1183
Revenue,Head of ASC & Community Wellbeing,5105620156,25.03.2015,B&B Properties,Accommodation Costs - Bed & Breakfast,"1,078.00",BERTRAM LODGE,1185
Revenue,Head of ASC & Community Wellbeing,5105621614,27.03.2015,Gouldings Resource Centre,Consumable Cleaning Materials,-65.69,BETA PAK LTD,1186
Revenue,Head of ASC & Community Wellbeing,5105621616,27.03.2015,Gouldings Resource Centre,Consumable Cleaning Materials,-15.36,BETA PAK LTD,1187
Revenue,Head of ASC & Community Wellbeing,5105621609,27.03.2015,Gouldings Resource Centre,Consumable Cleaning Materials,-130.50,BETA PAK LTD,1188
Revenue,Head of ASC & Community Wellbeing,5105617191,11.03.2015,Plean Dene,Operational Equipment,45.96,BETA PAK LTD,1189
Revenue,Head of ASC & Community Wellbeing,5105621138,25.03.2015,Plean Dene,Operational Equipment,45.96,BETA PAK LTD,1190
Revenue,Head of ASC & Community Wellbeing,5105617215,11.03.2015,Highmead,Operational Equipment,389.85,BETA PAK LTD,1191
Revenue,Head of ASC & Community Wellbeing,5105619679,25.03.2015,Highmead,Operational Equipment,208.02,BETA PAK LTD,1192
Revenue,Head of ASC & Community Wellbeing,5105619973,20.03.2015,Highmead,Operational Equipment,80.72,BETA PAK LTD,1193
Revenue,Head of ASC & Community Wellbeing,5105619976,31.03.2015,Highmead,Operational Equipment,-80.72,BETA PAK LTD,1194
Revenue,Head of ASC & Community Wellbeing,5105621788,31.03.2015,Highmead,Operational Equipment,260.85,BETA PAK LTD,1195
Revenue,Head of ASC & Community Wellbeing,5105618083,13.03.2015,31 Carter Avenue,Operational Equipment,202.80,BETA PAK LTD,1196
Revenue,Head of ASC & Community Wellbeing,5105619272,18.03.2015,31 Carter Avenue,Operational Equipment,14.29,BETA PAK LTD,1197
Revenue,Head of ASC & Community Wellbeing,5105619573,18.03.2015,31 Carter Avenue,Operational Equipment,2.73,BETA PAK LTD,1198
Revenue,Head of ASC & Community Wellbeing,5105619614,18.03.2015,31 Carter Avenue,Operational Equipment,11.16,BETA PAK LTD,1199
Revenue,Head of ASC & Community Wellbeing,5105621256,27.03.2015,31 Carter Avenue,Operational Equipment,16.50,BETA PAK LTD,1200
Revenue,Head of ASC & Community Wellbeing,5105617191,11.03.2015,Plean Dene,Operational Equipment,216.42,BETA PAK LTD,1201
Revenue,Head of ASC & Community Wellbeing,5105617117,04.03.2015,Saxonbury,Operational Equipment,2.95,BETA PAK LTD,1202
Revenue,Head of ASC & Community Wellbeing,5105617906,11.03.2015,Plean Dene,Operational Equipment,9.00,BETA PAK LTD,1203
Revenue,Head of ASC & Community Wellbeing,5105617573,06.03.2015,Saxonbury,Operational Equipment,119.74,BETA PAK LTD,1204
Revenue,Head of ASC & Community Wellbeing,5105618046,11.03.2015,Saxonbury,Operational Equipment,18.79,BETA PAK LTD,1205
Revenue,Head of ASC & Community Wellbeing,5105618730,18.03.2015,Saxonbury,Operational Equipment,31.66,BETA PAK LTD,1206
Revenue,Head of ASC & Community Wellbeing,5105618045,25.03.2015,Plean Dene,Operational Equipment,40.64,BETA PAK LTD,1207
Revenue,Head of ASC & Community Wellbeing,5105618047,25.03.2015,Plean Dene,Operational Equipment,56.94,BETA PAK LTD,1208
Revenue,Head of ASC & Community Wellbeing,5105618270,13.03.2015,Plean Dene,Operational Equipment,2.50,BETA PAK LTD,1209
Revenue,Head of ASC & Community Wellbeing,5105621026,27.03.2015,Saxonbury,Operational Equipment,223.05,BETA PAK LTD,1210
Revenue,Head of ASC & Community Wellbeing,5105621138,25.03.2015,Plean Dene,Operational Equipment,13.99,BETA PAK LTD,1211
Revenue,Head of ASC & Community Wellbeing,5105618346,13.03.2015,Plean Dene,Operational Equipment,89.65,BETA PAK LTD,1212
Revenue,Head of ASC & Community Wellbeing,5105621030,25.03.2015,Plean Dene,Operational Equipment,8.15,BETA PAK LTD,1213
Revenue,Head of ASC & Community Wellbeing,5105621270,27.03.2015,Plean Dene,Operational Equipment,8.80,BETA PAK LTD,1214
Revenue,Head of ASC & Community Wellbeing,5105616561,11.03.2015,Seagulls,Operational Equipment,189.70,BETA PAK LTD,1215
Revenue,Head of ASC & Community Wellbeing,5105617185,11.03.2015,Seagulls,Operational Equipment,71.03,BETA PAK LTD,1216
Revenue,Head of ASC & Community Wellbeing,5105621492,27.03.2015,Seagulls,Operational Equipment,130.95,BETA PAK LTD,1217
Revenue,Head of ASC & Community Wellbeing,5105621706,27.03.2015,Seagulls,Operational Equipment,7.69,BETA PAK LTD,1218
Revenue,Head of ASC & Community Wellbeing,5105616947,04.03.2015,The Laurels,Operational Equipment,22.94,BETA PAK LTD,1219
Revenue,Head of ASC & Community Wellbeing,5105617781,18.03.2015,The Laurels,Operational Equipment,304.57,BETA PAK LTD,1220
Revenue,Head of ASC & Community Wellbeing,5105619680,20.03.2015,The Laurels,Operational Equipment,277.63,BETA PAK LTD,1221
Revenue,Head of ASC & Community Wellbeing,5105614142,04.03.2015,Overbrook,Operational Equipment,31.31,BETA PAK LTD,1222
Revenue,Head of ASC & Community Wellbeing,5105617880,18.03.2015,Overbrook,Operational Equipment,51.62,BETA PAK LTD,1223
Revenue,Head of ASC & Community Wellbeing,5105618003,20.03.2015,Overbrook,Operational Equipment,25.98,BETA PAK LTD,1224
Revenue,Head of ASC & Community Wellbeing,5105618343,25.03.2015,Overbrook,Operational Equipment,36.10,BETA PAK LTD,1225
Revenue,Head of ASC & Community Wellbeing,5105622011,31.03.2015,Gouldings Resource Centre,Catering Purchases,-6.00,BETA PAK LTD,1226
Revenue,Head of ASC & Community Wellbeing,5105621611,27.03.2015,Gouldings Resource Centre,Consumable Cleaning Materials,-15.82,BETA PAK LTD,1227
Revenue,Head of ASC & Community Wellbeing,5105621618,31.03.2015,Gouldings Resource Centre,Consumable Cleaning Materials,7.26,BETA PAK LTD,1228
Revenue,Head of ASC & Community Wellbeing,5105621619,31.03.2015,Community Outreach,Consumable Cleaning Materials,104.94,BETA PAK LTD,1229
Revenue,Head of Economy & Tourism,5105619235,18.03.2015,Dinosaur Isle Museum (Sandown Geology),General Materials,180.00,BETA PAK LTD,1230
Revenue,Head of HR & Organisational Change,5105620141,25.03.2015,ICT Service Support Manager,Catering Purchases,17.79,BETA PAK LTD,1231
Revenue,Head of Economy & Tourism,5105620142,25.03.2015,Museums & Collections Management,Operational Equipment,4.32,BETA PAK LTD,1232
Revenue,Head of ASC & Community Wellbeing,5105621620,27.03.2015,Gouldings Resource Centre,Consumable Cleaning Materials,416.63,BETA PAK LTD,1233
Revenue,Head of ASC & Community Wellbeing,5105620140,25.03.2015,Westminster House,Consumable Cleaning Materials,15.00,BETA PAK LTD,1234
Revenue,Head of ASC & Community Wellbeing,5105621621,27.03.2015,Gouldings Resource Centre,Consumable Cleaning Materials,27.39,BETA PAK LTD,1235
Revenue,Head of ASC & Community Wellbeing,5105621622,27.03.2015,Gouldings Resource Centre,Consumable Cleaning Materials,3.75,BETA PAK LTD,1236
Revenue,Head of ASC & Community Wellbeing,5105620139,25.03.2015,Westminster House,Consumable Cleaning Materials,25.94,BETA PAK LTD,1237
Revenue,Head of ASC & Community Wellbeing,5105620138,25.03.2015,Westminster House,General Materials,142.57,BETA PAK LTD,1238
Revenue,Head of ASC & Community Wellbeing,5105620137,20.03.2015,Westminster House,Clothing & Laundry,86.04,BETA PAK LTD,1239
Revenue,Head of ASC & Community Wellbeing,5105620135,20.03.2015,Westminster House,Consumable Cleaning Materials,4.76,BETA PAK LTD,1240
Revenue,Head of ASC & Community Wellbeing,5105620136,20.03.2015,Westminster House,Consumable Cleaning Materials,111.10,BETA PAK LTD,1241
Revenue,Head of Exchequer Services,5105621713,27.03.2015,Council Tax,General Materials,1.70,BETA PAK LTD,1242
Revenue,Head of Exchequer Services,5105621713,27.03.2015,Revenues & Benefits Operational Support,General Materials,1.70,BETA PAK LTD,1243
Revenue,Head of Exchequer Services,5105621713,27.03.2015,Housing Benefit,General Materials,1.70,BETA PAK LTD,1244
Revenue,Head of Exchequer Services,5105621713,27.03.2015,Parking Services,General Materials,1.70,BETA PAK LTD,1245
Revenue,Head of ASC & Community Wellbeing,5105617692,06.03.2015,Adelaide Resource Centre,Catering Purchases,40.69,BETA PAK LTD,1246
Revenue,Head of Exchequer Services,5105621713,27.03.2015,Council Tax,General Materials,0.22,BETA PAK LTD,1247
Revenue,Head of Exchequer Services,5105621713,27.03.2015,Revenues & Benefits Operational Support,General Materials,0.22,BETA PAK LTD,1248
Revenue,Head of Exchequer Services,5105621713,27.03.2015,Housing Benefit,General Materials,0.22,BETA PAK LTD,1249
Revenue,Head of Exchequer Services,5105621713,27.03.2015,Parking Services,General Materials,0.22,BETA PAK LTD,1250
Revenue,Head of ASC & Community Wellbeing,5105619236,18.03.2015,Gouldings Resource Centre,Consumable Cleaning Materials,5.14,BETA PAK LTD,1251
Revenue,Head of ASC & Community Wellbeing,5105618631,18.03.2015,Gouldings Resource Centre,Clothing & Laundry,139.58,BETA PAK LTD,1252
Revenue,Head of ASC & Community Wellbeing,5105621072,25.03.2015,Gouldings Resource Centre,Clothing & Laundry,-14.29,BETA PAK LTD,1253
Revenue,Head of ASC & Community Wellbeing,5105617282,04.03.2015,Downside Community & Learning Centre,Consumable Cleaning Materials,39.90,BETA PAK LTD,1254
Revenue,Head of ASC & Community Wellbeing,5105617282,04.03.2015,Downside Community & Learning Centre,Consumable Cleaning Materials,6.28,BETA PAK LTD,1255
Revenue,Head of ASC & Community Wellbeing,5105617256,04.03.2015,Gouldings Resource Centre,Consumable Cleaning Materials,13.00,BETA PAK LTD,1256
Revenue,Head of ASC & Community Wellbeing,5105617257,04.03.2015,Gouldings Resource Centre,Consumable Cleaning Materials,246.31,BETA PAK LTD,1257
Revenue,Head of ASC & Community Wellbeing,5105617282,04.03.2015,Downside Community & Learning Centre,Consumable Cleaning Materials,8.16,BETA PAK LTD,1258
Revenue,Head of ASC & Community Wellbeing,5105617282,04.03.2015,Downside Community & Learning Centre,Consumable Cleaning Materials,26.84,BETA PAK LTD,1259
Revenue,Head of ASC & Community Wellbeing,5105618275,20.03.2015,Adelaide Resource Centre,Consumable Cleaning Materials,418.66,BETA PAK LTD,1260
Revenue,Head of ASC & Community Wellbeing,5105618696,20.03.2015,Adelaide Resource Centre,Consumable Cleaning Materials,55.79,BETA PAK LTD,1261
Revenue,Head of ASC & Community Wellbeing,5105619600,20.03.2015,Adelaide Resource Centre,Consumable Cleaning Materials,23.98,BETA PAK LTD,1262
Revenue,Head of ASC & Community Wellbeing,5105620017,20.03.2015,Adelaide Resource Centre,Consumable Cleaning Materials,50.59,BETA PAK LTD,1263
Revenue,Head of ASC & Community Wellbeing,5105621205,25.03.2015,Adelaide Resource Centre,Consumable Cleaning Materials,6.64,BETA PAK LTD,1264
Revenue,Head of ASC & Community Wellbeing,5105619571,20.03.2015,Adelaide Resource Centre,Consumable Cleaning Materials,33.93,BETA PAK LTD,1265
Revenue,Head of ASC & Community Wellbeing,5105618271,18.03.2015,Adelaide Resource Centre,Fixtures and Fittings,131.94,BETA PAK LTD,1266
Revenue,Head of Economy & Tourism,5105621142,25.03.2015,Medina Leisure Centre,Payment to Private Contractors,135.00,BETA PAK LTD,1267
Revenue,Head of ASC & Community Wellbeing,5105621727,27.03.2015,Mental Health Day Services,Professional Services,52.50,BETA PAK LTD,1268
Revenue,Head of ASC & Community Wellbeing,5105621264,27.03.2015,Downside Community & Learning Centre,Consumable Cleaning Materials,8.16,BETA PAK LTD,1269
Revenue,Head of ASC & Community Wellbeing,5105621264,27.03.2015,Downside Community & Learning Centre,Consumable Cleaning Materials,13.42,BETA PAK LTD,1270
Revenue,Head of ASC & Community Wellbeing,5105621264,27.03.2015,Downside Community & Learning Centre,Consumable Cleaning Materials,19.95,BETA PAK LTD,1271
Revenue,Head of ASC & Community Wellbeing,5105621488,27.03.2015,Wightcare,General Materials,90.66,BETA PAK LTD,1272
Revenue,Head of ASC & Community Wellbeing,5105621488,27.03.2015,Wightcare,General Materials,30.94,BETA PAK LTD,1273
Revenue,Head of ASC & Community Wellbeing,5105622009,31.03.2015,Gouldings Resource Centre,Catering Purchases,77.96,BETA PAK LTD,1274
Revenue,Head of ASC & Community Wellbeing,5105621617,31.03.2015,Gouldings Resource Centre,Catering Purchases,0.99,BETA PAK LTD,1275
Revenue,Head of ASC & Community Wellbeing,5105618502,13.03.2015,Elderly Frail Homecare,Charges from Independent Providers,695.24,BETTER AT HOME IOW LTD,1276
Revenue,Head of ASC & Community Wellbeing,5105618506,13.03.2015,Elderly Frail Homecare,Charges from Independent Providers,427.84,BETTER AT HOME IOW LTD,1277
Revenue,Head of ASC & Community Wellbeing,5105618504,13.03.2015,Elderly Frail Homecare,Charges from Independent Providers,"1,436.32",BETTER AT HOME IOW LTD,1278
Revenue,Head of ASC & Community Wellbeing,5105618505,13.03.2015,Elderly Frail Homecare,Charges from Independent Providers,"1,069.60",BETTER AT HOME IOW LTD,1279
Revenue,Head of ASC & Community Wellbeing,5105618509,13.03.2015,Elderly Frail Homecare,Charges from Independent Providers,427.84,BETTER AT HOME IOW LTD,1280
Revenue,Head of ASC & Community Wellbeing,5105618501,13.03.2015,Elderly Frail Homecare,Charges from Independent Providers,"1,428.68",BETTER AT HOME IOW LTD,1281
Revenue,Head of ASC & Community Wellbeing,5105618500,13.03.2015,Elderly Frail Homecare,Charges from Independent Providers,"1,497.44",BETTER AT HOME IOW LTD,1282
Revenue,Head of ASC & Community Wellbeing,5105618508,13.03.2015,Elderly Frail Homecare,Charges from Independent Providers,"1,054.32",BETTER AT HOME IOW LTD,1283
Revenue,Head of ASC & Community Wellbeing,5105618503,13.03.2015,Elderly Frail Homecare,Charges from Independent Providers,"1,016.12",BETTER AT HOME IOW LTD,1284
Revenue,Head of ASC & Community Wellbeing,5105618507,13.03.2015,Elderly Frail Homecare,Charges from Independent Providers,687.60,BETTER AT HOME IOW LTD,1285
Revenue,Head of ASC & Community Wellbeing,5105618511,13.03.2015,Elderly Frail Homecare,Charges from Independent Providers,641.76,BETTER AT HOME IOW LTD,1286
Revenue,Head of ASC & Community Wellbeing,5105618510,13.03.2015,Mental Health Homecare,Charges from Independent Providers,336.16,BETTER AT HOME IOW LTD,1287
Revenue,Head of ASC & Community Wellbeing,5105618513,13.03.2015,Elderly Frail Homecare,Charges from Independent Providers,893.88,BETTER AT HOME IOW LTD,1288
Revenue,Head of ASC & Community Wellbeing,5105618514,13.03.2015,Elderly Frail Homecare,Charges from Independent Providers,573.00,BETTER AT HOME IOW LTD,1289
Revenue,Head of ASC & Community Wellbeing,5105618512,13.03.2015,Elderly Frail Homecare,Charges from Independent Providers,473.68,BETTER AT HOME IOW LTD,1290
Revenue,Head of ASC & Community Wellbeing,5105618523,13.03.2015,Elderly Frail Homecare,Charges from Independent Providers,427.84,BETTER AT HOME IOW LTD,1291
Revenue,Head of ASC & Community Wellbeing,5105618524,13.03.2015,Elderly Frail Homecare,Regular Respite Care,122.24,BETTER AT HOME IOW LTD,1292
Revenue,Head of ASC & Community Wellbeing,5105618522,13.03.2015,Elderly Frail Homecare,Charges from Independent Providers,213.92,BETTER AT HOME IOW LTD,1293
Revenue,Head of ASC & Community Wellbeing,5105618516,13.03.2015,Elderly Frail Homecare,Charges from Independent Providers,61.12,BETTER AT HOME IOW LTD,1294
Revenue,Head of ASC & Community Wellbeing,5105618520,13.03.2015,Elderly Frail Homecare,Charges from Independent Providers,171.90,BETTER AT HOME IOW LTD,1295
Revenue,Head of ASC & Community Wellbeing,5105618515,13.03.2015,Elderly Frail Homecare,Charges from Independent Providers,213.92,BETTER AT HOME IOW LTD,1296
Revenue,Head of ASC & Community Wellbeing,5105618521,13.03.2015,Elderly Frail Homecare,Regular Respite Care,122.24,BETTER AT HOME IOW LTD,1297
Revenue,Head of ASC & Community Wellbeing,5105618517,13.03.2015,Elderly Frail Homecare,Charges from Independent Providers,488.96,BETTER AT HOME IOW LTD,1298
Revenue,Head of ASC & Community Wellbeing,5105618525,13.03.2015,Elderly Frail Homecare,Charges from Independent Providers,191.00,BETTER AT HOME IOW LTD,1299
Revenue,Head of ASC & Community Wellbeing,5105618518,13.03.2015,Elderly Frail Homecare,Charges from Independent Providers,137.52,BETTER AT HOME IOW LTD,1300
Revenue,Head of ASC & Community Wellbeing,5105618519,13.03.2015,Elderly Frail Homecare,Charges from Independent Providers,641.76,BETTER AT HOME IOW LTD,1301
Revenue,Head of ASC & Community Wellbeing,5105618526,13.03.2015,Elderly Frail Homecare,Charges from Independent Providers,427.84,BETTER AT HOME IOW LTD,1302
Revenue,Head of ASC & Community Wellbeing,5105618527,13.03.2015,Elderly Frail Homecare,Charges from Independent Providers,213.92,BETTER AT HOME IOW LTD,1303
Revenue,Head of ASC & Community Wellbeing,5105618529,13.03.2015,Elderly Frail Homecare,Charges from Independent Providers,213.92,BETTER AT HOME IOW LTD,1304
Revenue,Head of ASC & Community Wellbeing,5105618530,13.03.2015,Elderly Frail Homecare,Charges from Independent Providers,427.84,BETTER AT HOME IOW LTD,1305
Revenue,Head of ASC & Community Wellbeing,5105618528,13.03.2015,Elderly Mentally Ill Homecare,Charges from Independent Providers,641.76,BETTER AT HOME IOW LTD,1306
Revenue,Head of ASC & Community Wellbeing,5105618531,13.03.2015,Elderly Frail Homecare,Charges from Independent Providers,427.84,BETTER AT HOME IOW LTD,1307
Revenue,Head of ASC & Community Wellbeing,5105618532,13.03.2015,Physical Disability Homecare,Charges from Independent Providers,420.20,BETTER AT HOME IOW LTD,1308
Revenue,Head of ASC & Community Wellbeing,5105618534,13.03.2015,Elderly Frail Homecare,Charges from Independent Providers,320.88,BETTER AT HOME IOW LTD,1309
Revenue,Head of ASC & Community Wellbeing,5105618533,13.03.2015,Physical Disability Homecare,Charges from Independent Providers,320.88,BETTER AT HOME IOW LTD,1310
Revenue,Head of ASC & Community Wellbeing,5105618537,13.03.2015,Elderly Frail Homecare,Charges from Independent Providers,427.84,BETTER AT HOME IOW LTD,1311
Revenue,Head of ASC & Community Wellbeing,5105618538,13.03.2015,Elderly Frail Homecare,Charges from Independent Providers,320.88,BETTER AT HOME IOW LTD,1312
Revenue,Head of ASC & Community Wellbeing,5105618536,13.03.2015,Elderly Frail Homecare,Regular Respite Care,244.48,BETTER AT HOME IOW LTD,1313
Revenue,Head of ASC & Community Wellbeing,5105618535,13.03.2015,Physical Disability Homecare,Charges from Independent Providers,427.84,BETTER AT HOME IOW LTD,1314
Revenue,Head of ASC & Community Wellbeing,5105618540,13.03.2015,Elderly Mentally Ill Homecare,Charges from Independent Providers,962.64,BETTER AT HOME IOW LTD,1315
Revenue,Head of ASC & Community Wellbeing,5105618539,13.03.2015,Elderly Frail Homecare,Regular Respite Care,61.12,BETTER AT HOME IOW LTD,1316
Revenue,Head of ASC & Community Wellbeing,5105618541,13.03.2015,Elderly Mentally Ill Homecare,Charges from Independent Providers,427.84,BETTER AT HOME IOW LTD,1317
Revenue,Head of ASC & Community Wellbeing,5105618542,13.03.2015,Elderly Frail Homecare,Charges from Independent Providers,"1,061.96",BETTER AT HOME IOW LTD,1318
Revenue,Head of ASC & Community Wellbeing,5105618543,13.03.2015,Elderly Frail Homecare,Charges from Independent Providers,259.76,BETTER AT HOME IOW LTD,1319
Revenue,Head of ASC & Community Wellbeing,5105618545,13.03.2015,Elderly Frail Homecare,Charges from Independent Providers,"1,161.28",BETTER AT HOME IOW LTD,1320
Revenue,Head of ASC & Community Wellbeing,5105618544,13.03.2015,Physical Disability Homecare,Charges from Independent Providers,347.62,BETTER AT HOME IOW LTD,1321
Revenue,Head of ASC & Community Wellbeing,5105618546,13.03.2015,Elderly Frail Homecare,Charges from Independent Providers,"2,353.12",BETTER AT HOME IOW LTD,1322
Revenue,Head of ASC & Community Wellbeing,5105618547,13.03.2015,Elderly Frail Homecare,Charges from Independent Providers,626.48,BETTER AT HOME IOW LTD,1323
Revenue,Head of ASC & Community Wellbeing,5105618548,13.03.2015,Elderly Frail Homecare,Charges from Independent Providers,267.40,BETTER AT HOME IOW LTD,1324
Revenue,Head of ASC & Community Wellbeing,5105618551,13.03.2015,Elderly Frail Homecare,Regular Respite Care,366.72,BETTER AT HOME IOW LTD,1325
Revenue,Head of ASC & Community Wellbeing,5105620209,25.03.2015,Physical Disability Homecare,Charges from Independent Providers,"1,963.48",BETTER AT HOME IOW LTD,1326
Revenue,Head of ASC & Community Wellbeing,5105618549,13.03.2015,Elderly Frail Homecare,Regular Respite Care,191.00,BETTER AT HOME IOW LTD,1327
Revenue,Head of ASC & Community Wellbeing,5105618550,13.03.2015,Elderly Frail Homecare,Charges from Independent Providers,183.36,BETTER AT HOME IOW LTD,1328
Revenue,Head of ASC & Community Wellbeing,5105618554,13.03.2015,Elderly Frail Homecare,Charges from Independent Providers,206.28,BETTER AT HOME IOW LTD,1329
Revenue,Head of ASC & Community Wellbeing,5105618552,13.03.2015,Elderly Frail Homecare,Charges from Independent Providers,137.52,BETTER AT HOME IOW LTD,1330
Revenue,Head of ASC & Community Wellbeing,5105618553,13.03.2015,Elderly Frail Homecare,Charges from Independent Providers,427.84,BETTER AT HOME IOW LTD,1331
Revenue,Head of ASC & Community Wellbeing,5105618555,13.03.2015,Elderly Frail Homecare,Charges from Independent Providers,427.84,BETTER AT HOME IOW LTD,1332
Revenue,Head of ASC & Community Wellbeing,5105618556,13.03.2015,Elderly Mentally Ill Homecare,Charges from Independent Providers,427.84,BETTER AT HOME IOW LTD,1333
Revenue,Head of ASC & Community Wellbeing,5105618557,13.03.2015,Elderly Frail Homecare,Charges from Independent Providers,641.76,BETTER AT HOME IOW LTD,1334
Revenue,Head of ASC & Community Wellbeing,5105618558,13.03.2015,Elderly Frail Homecare,Charges from Independent Providers,641.76,BETTER AT HOME IOW LTD,1335
Revenue,Head of ASC & Community Wellbeing,5105620210,25.03.2015,Elderly Frail Homecare,Charges from Independent Providers,427.84,BETTER AT HOME IOW LTD,1336
Revenue,Head of ASC & Community Wellbeing,5105618559,13.03.2015,Elderly Frail Homecare,Charges from Independent Providers,473.68,BETTER AT HOME IOW LTD,1337
Revenue,Head of ASC & Community Wellbeing,5105618560,13.03.2015,Elderly Mentally Ill Homecare,Charges from Independent Providers,641.76,BETTER AT HOME IOW LTD,1338
Revenue,Head of ASC & Community Wellbeing,5105618561,13.03.2015,Elderly Frail Homecare,Charges from Independent Providers,45.84,BETTER AT HOME IOW LTD,1339
Revenue,Head of ASC & Community Wellbeing,5105618562,13.03.2015,Elderly Frail Homecare,Charges from Independent Providers,397.28,BETTER AT HOME IOW LTD,1340
Revenue,Head of ASC & Community Wellbeing,5105618563,13.03.2015,Elderly Frail Homecare,Charges from Independent Providers,160.44,BETTER AT HOME IOW LTD,1341
Revenue,Head of ASC & Community Wellbeing,5105618564,13.03.2015,Elderly Frail Homecare,Charges from Independent Providers,11.46,BETTER AT HOME IOW LTD,1342
Revenue,Head of ASC & Community Wellbeing,5105618565,13.03.2015,Elderly Frail Homecare,Charges from Independent Providers,80.22,BETTER AT HOME IOW LTD,1343
Revenue,Head of ASC & Community Wellbeing,5105618565,13.03.2015,Elderly Frail Homecare,Charges from Independent Providers,57.30,BETTER AT HOME IOW LTD,1344
Revenue,Head of ASC & Community Wellbeing,5105618566,13.03.2015,Elderly Frail Homecare,Charges from Independent Providers,91.68,BETTER AT HOME IOW LTD,1345
Revenue,Head of ASC & Community Wellbeing,5105618567,13.03.2015,Elderly Mentally Ill Homecare,Charges from Independent Providers,61.12,BETTER AT HOME IOW LTD,1346
Revenue,Head of Economy & Tourism,5105617064,04.03.2015,Public Libraries Central,Stationery,108.64,BIBLIOTHECA LTD,1347
Revenue,Head of Economy & Tourism,5105621965,31.03.2015,Public Libraries Central,Stationery,77.00,BIBLIOTHECA LTD,1348
Revenue,Head of ASC & Community Wellbeing,5105613163,06.03.2015,31 Carter Avenue,"Refuse Collection, Disposal and Recycling Costs",82.60,BIFFA WASTE SERVICES LTD,1349
Revenue,Head of ASC & Community Wellbeing,5105618778,18.03.2015,31 Carter Avenue,"Refuse Collection, Disposal and Recycling Costs",82.60,BIFFA WASTE SERVICES LTD,1350
Revenue,Head of ASC & Community Wellbeing,5105613163,06.03.2015,40 Venner Avenue,"Refuse Collection, Disposal and Recycling Costs",4.76,BIFFA WASTE SERVICES LTD,1351
Revenue,Head of ASC & Community Wellbeing,5105618778,18.03.2015,40 Venner Avenue,"Refuse Collection, Disposal and Recycling Costs",4.76,BIFFA WASTE SERVICES LTD,1352
Revenue,Head of ASC & Community Wellbeing,5105613163,06.03.2015,Highmead,"Refuse Collection, Disposal and Recycling Costs",72.87,BIFFA WASTE SERVICES LTD,1353
Revenue,Head of ASC & Community Wellbeing,5105618778,18.03.2015,Highmead,"Refuse Collection, Disposal and Recycling Costs",82.60,BIFFA WASTE SERVICES LTD,1354
Revenue,Head of ASC & Community Wellbeing,5105613163,06.03.2015,Overbrook,"Refuse Collection, Disposal and Recycling Costs",99.82,BIFFA WASTE SERVICES LTD,1355
Revenue,Head of ASC & Community Wellbeing,5105618778,18.03.2015,Overbrook,"Refuse Collection, Disposal and Recycling Costs",99.82,BIFFA WASTE SERVICES LTD,1356
Revenue,Head of ASC & Community Wellbeing,5105618778,18.03.2015,Plean Dene,"Refuse Collection, Disposal and Recycling Costs",160.44,BIFFA WASTE SERVICES LTD,1357
Revenue,Head of ASC & Community Wellbeing,5105613163,06.03.2015,Plean Dene,"Refuse Collection, Disposal and Recycling Costs",160.44,BIFFA WASTE SERVICES LTD,1358
Revenue,Head of ASC & Community Wellbeing,5105618778,18.03.2015,Saxonbury,"Refuse Collection, Disposal and Recycling Costs",78.20,BIFFA WASTE SERVICES LTD,1359
Revenue,Head of ASC & Community Wellbeing,5105613163,06.03.2015,Saxonbury,"Refuse Collection, Disposal and Recycling Costs",78.20,BIFFA WASTE SERVICES LTD,1360
Revenue,Head of ASC & Community Wellbeing,5105618778,18.03.2015,Seagulls,"Refuse Collection, Disposal and Recycling Costs",82.60,BIFFA WASTE SERVICES LTD,1361
Revenue,Head of ASC & Community Wellbeing,5105613163,06.03.2015,Seagulls,"Refuse Collection, Disposal and Recycling Costs",82.60,BIFFA WASTE SERVICES LTD,1362
Revenue,Head of ASC & Community Wellbeing,5105618778,18.03.2015,The Laurels,"Refuse Collection, Disposal and Recycling Costs",82.60,BIFFA WASTE SERVICES LTD,1363
Revenue,Head of ASC & Community Wellbeing,5105613163,06.03.2015,The Laurels,"Refuse Collection, Disposal and Recycling Costs",72.87,BIFFA WASTE SERVICES LTD,1364
Revenue,Head of HR & Organisational Change,5105618778,18.03.2015,ICT Contracts,"Refuse Collection, Disposal and Recycling Costs",50.66,BIFFA WASTE SERVICES LTD,1365
Revenue,Head of HR & Organisational Change,5105613163,06.03.2015,ICT Contracts,"Refuse Collection, Disposal and Recycling Costs",69.02,BIFFA WASTE SERVICES LTD,1366
Revenue,Head of ASC & Community Wellbeing,5105618778,18.03.2015,Stores Adult Social Care,"Refuse Collection, Disposal and Recycling Costs",3.08,BIFFA WASTE SERVICES LTD,1367
Revenue,Head of ASC & Community Wellbeing,5105613163,06.03.2015,Stores Adult Social Care,"Refuse Collection, Disposal and Recycling Costs",0.11,BIFFA WASTE SERVICES LTD,1368
Revenue,Head of Finance & S151 Officer,5105618778,18.03.2015,Island Waste Refuse Disposal Contract,Waste Contractors,159.00,BIFFA WASTE SERVICES LTD,1369
Revenue,Head of Economy & Tourism,5105613163,06.03.2015,The Heights,"Refuse Collection, Disposal and Recycling Costs",287.12,BIFFA WASTE SERVICES LTD,1370
Revenue,Head of ASC & Community Wellbeing,5105618056,13.03.2015,Gouldings Resource Centre,"Refuse Collection, Disposal and Recycling Costs",98.11,BIFFA WASTE SERVICES LTD,1371
Revenue,Director of Childrens Services,5105613163,06.03.2015,Parent Partnership,"Refuse Collection, Disposal and Recycling Costs",16.64,BIFFA WASTE SERVICES LTD,1372
Revenue,Head of ASC & Community Wellbeing,5105618057,13.03.2015,Gouldings Resource Centre,"Refuse Collection, Disposal and Recycling Costs",284.16,BIFFA WASTE SERVICES LTD,1373
Revenue,Head of Economy & Tourism,5105618778,18.03.2015,17 Fairlee Road,"Refuse Collection, Disposal and Recycling Costs",112.00,BIFFA WASTE SERVICES LTD,1374
Revenue,Head of Economy & Tourism,5105618778,18.03.2015,Medina Leisure Centre,"Refuse Collection, Disposal and Recycling Costs",304.59,BIFFA WASTE SERVICES LTD,1375
Revenue,Head of ASC & Community Wellbeing,5105618058,13.03.2015,Gouldings Resource Centre,"Refuse Collection, Disposal and Recycling Costs",91.60,BIFFA WASTE SERVICES LTD,1376
Revenue,Head of Economy & Tourism,5105618778,18.03.2015,Crematorium,"Refuse Collection, Disposal and Recycling Costs",151.64,BIFFA WASTE SERVICES LTD,1377
Revenue,Head of Economy & Tourism,5105613163,06.03.2015,Crematorium,"Refuse Collection, Disposal and Recycling Costs",114.92,BIFFA WASTE SERVICES LTD,1378
Revenue,Director of Childrens Services,5105618778,18.03.2015,Family Information Zone,"Refuse Collection, Disposal and Recycling Costs",16.64,BIFFA WASTE SERVICES LTD,1379
Revenue,Head of Economy & Tourism,5105613163,06.03.2015,Medina Leisure Centre,"Refuse Collection, Disposal and Recycling Costs",297.24,BIFFA WASTE SERVICES LTD,1380
Revenue,Head of ASC & Community Wellbeing,5105616972,06.03.2015,Adelaide Resource Centre,"Refuse Collection, Disposal and Recycling Costs",187.46,BIFFA WASTE SERVICES LTD,1381
Revenue,Head of ASC & Community Wellbeing,5105616935,06.03.2015,Adelaide Resource Centre,"Refuse Collection, Disposal and Recycling Costs","1,358.63",BIFFA WASTE SERVICES LTD,1382
Revenue,Head of Economy & Tourism,5105618778,18.03.2015,Seaclose Amusements,"Refuse Collection, Disposal and Recycling Costs",13.69,BIFFA WASTE SERVICES LTD,1383
Revenue,Head of Economy & Tourism,5105618778,18.03.2015,Dinosaur Isle Museum (Sandown Geology),"Refuse Collection, Disposal and Recycling Costs",26.48,BIFFA WASTE SERVICES LTD,1384
Revenue,Head of Economy & Tourism,5105613163,06.03.2015,Seaclose Amusements,"Refuse Collection, Disposal and Recycling Costs",13.69,BIFFA WASTE SERVICES LTD,1385
Revenue,Head of Economy & Tourism,5105613163,06.03.2015,Dinosaur Isle Museum (Sandown Geology),"Refuse Collection, Disposal and Recycling Costs",8.12,BIFFA WASTE SERVICES LTD,1386
Revenue,Head of Economy & Tourism,5105618778,18.03.2015,Fort Victoria,"Refuse Collection, Disposal and Recycling Costs",78.20,BIFFA WASTE SERVICES LTD,1387
Revenue,Head of Economy & Tourism,5105613163,06.03.2015,Fort Victoria,"Refuse Collection, Disposal and Recycling Costs",78.20,BIFFA WASTE SERVICES LTD,1388
Revenue,Chief Fire Officer,5105618778,18.03.2015,Fire Operations,"Refuse Collection, Disposal and Recycling Costs",325.19,BIFFA WASTE SERVICES LTD,1389
Revenue,Head of HR & Organisational Change,5105613163,06.03.2015,"Civic Centre,Sandown","Refuse Collection, Disposal and Recycling Costs",130.09,BIFFA WASTE SERVICES LTD,1390
Revenue,Chief Fire Officer,5105613163,06.03.2015,Fire Operations,"Refuse Collection, Disposal and Recycling Costs",321.48,BIFFA WASTE SERVICES LTD,1391
Revenue,Head of Economy & Tourism,5105618778,18.03.2015,Ryde Harbour,"Refuse Collection, Disposal and Recycling Costs",17.08,BIFFA WASTE SERVICES LTD,1392
Revenue,Head of Economy & Tourism,5105618778,18.03.2015,Ferry Management,"Refuse Collection, Disposal and Recycling Costs",82.60,BIFFA WASTE SERVICES LTD,1393
Revenue,Head of Economy & Tourism,5105613163,06.03.2015,Ryde Harbour,"Refuse Collection, Disposal and Recycling Costs",53.80,BIFFA WASTE SERVICES LTD,1394
Revenue,Director of Childrens Services,5105618778,18.03.2015,Learning & Development Running Costs,"Refuse Collection, Disposal and Recycling Costs",41.48,BIFFA WASTE SERVICES LTD,1395
Revenue,Head of Economy & Tourism,5105613163,06.03.2015,Ferry Management,"Refuse Collection, Disposal and Recycling Costs",82.60,BIFFA WASTE SERVICES LTD,1396
Revenue,Director of Childrens Services,5105613163,06.03.2015,Learning & Development Running Costs,"Refuse Collection, Disposal and Recycling Costs",41.48,BIFFA WASTE SERVICES LTD,1397
Revenue,Head of Economy & Tourism,5105618778,18.03.2015,Public Libraries Central,"Refuse Collection, Disposal and Recycling Costs",42.88,BIFFA WASTE SERVICES LTD,1398
Revenue,Director of Childrens Services,5105618778,18.03.2015,Beaulieu House,"Refuse Collection, Disposal and Recycling Costs",171.70,BIFFA WASTE SERVICES LTD,1399
Revenue,Director of Childrens Services,5105613163,06.03.2015,Beaulieu House,"Refuse Collection, Disposal and Recycling Costs",171.70,BIFFA WASTE SERVICES LTD,1400
Revenue,Head of Economy & Tourism,5105618778,18.03.2015,Leisure Management & Admin,"Refuse Collection, Disposal and Recycling Costs",151.64,BIFFA WASTE SERVICES LTD,1401
Revenue,Head of Economy & Tourism,5105613163,06.03.2015,Public Libraries Central,"Refuse Collection, Disposal and Recycling Costs",42.88,BIFFA WASTE SERVICES LTD,1402
Revenue,Head of HR & Organisational Change,5105618778,18.03.2015,"Bugle House,Newport","Refuse Collection, Disposal and Recycling Costs",151.64,BIFFA WASTE SERVICES LTD,1403
Revenue,Head of HR & Organisational Change,5105613163,06.03.2015,"Bugle House,Newport","Refuse Collection, Disposal and Recycling Costs",151.64,BIFFA WASTE SERVICES LTD,1404
Revenue,Head of HR & Organisational Change,5105618778,18.03.2015,"Civic Centre,Sandown","Refuse Collection, Disposal and Recycling Costs",140.20,BIFFA WASTE SERVICES LTD,1405
Revenue,Head of Planning & Regulatory Services,5105618778,18.03.2015,Planning Business Support,"Refuse Collection, Disposal and Recycling Costs",156.40,BIFFA WASTE SERVICES LTD,1406
Revenue,Director of Childrens Services,5105613163,06.03.2015,Family Information Zone,"Refuse Collection, Disposal and Recycling Costs",16.64,BIFFA WASTE SERVICES LTD,1407
Revenue,Head of Economy & Tourism,5105618778,18.03.2015,The Heights,"Refuse Collection, Disposal and Recycling Costs",305.65,BIFFA WASTE SERVICES LTD,1408
Revenue,Head of Planning & Regulatory Services,5105613163,06.03.2015,Planning Business Support,"Refuse Collection, Disposal and Recycling Costs",347.70,BIFFA WASTE SERVICES LTD,1409
Revenue,Head of Planning & Regulatory Services,5105618778,18.03.2015,Regulatory Management & Admin Support,"Refuse Collection, Disposal and Recycling Costs",78.20,BIFFA WASTE SERVICES LTD,1410
Revenue,Head of Economy & Tourism,5105613163,06.03.2015,Leisure Management & Admin,"Refuse Collection, Disposal and Recycling Costs",151.64,BIFFA WASTE SERVICES LTD,1411
Revenue,Director of Childrens Services,5105618778,18.03.2015,Parent Partnership,"Refuse Collection, Disposal and Recycling Costs",16.64,BIFFA WASTE SERVICES LTD,1412
Revenue,Director of Childrens Services,5105618778,18.03.2015,Specialist Service Business Admin,"Refuse Collection, Disposal and Recycling Costs",156.40,BIFFA WASTE SERVICES LTD,1413
Revenue,Director of Childrens Services,5105613163,06.03.2015,Specialist Service Business Admin,"Refuse Collection, Disposal and Recycling Costs",156.40,BIFFA WASTE SERVICES LTD,1414
Revenue,Head of Planning & Regulatory Services,5105613163,06.03.2015,Regulatory Management & Admin Support,"Refuse Collection, Disposal and Recycling Costs",78.20,BIFFA WASTE SERVICES LTD,1415
Revenue,Head of ASC & Community Wellbeing,5105618059,13.03.2015,Gouldings Resource Centre,"Refuse Collection, Disposal and Recycling Costs",284.16,BIFFA WASTE SERVICES LTD,1416
Revenue,Head of Economy & Tourism,5105618778,18.03.2015,Newport Harbour Account,"Refuse Collection, Disposal and Recycling Costs",219.90,BIFFA WASTE SERVICES LTD,1417
Revenue,Head of Economy & Tourism,5105613163,06.03.2015,Newport Harbour Account,"Refuse Collection, Disposal and Recycling Costs",392.28,BIFFA WASTE SERVICES LTD,1418
Revenue,Head of Economy & Tourism,5105618778,18.03.2015,Newport Harbour Account,"Refuse Collection, Disposal and Recycling Costs",199.36,BIFFA WASTE SERVICES LTD,1419
Revenue,Head of Economy & Tourism,5105613163,06.03.2015,Newport Harbour Account,"Refuse Collection, Disposal and Recycling Costs",160.44,BIFFA WASTE SERVICES LTD,1420
Revenue,Head of ASC & Community Wellbeing,5105618778,18.03.2015,S75 Integrated Community Equipment Store,"Refuse Collection, Disposal and Recycling Costs",129.20,BIFFA WASTE SERVICES LTD,1421
Revenue,Head of ASC & Community Wellbeing,5105613163,06.03.2015,S75 Integrated Community Equipment Store,"Refuse Collection, Disposal and Recycling Costs",74.12,BIFFA WASTE SERVICES LTD,1422
Revenue,Head of ASC & Community Wellbeing,5105618778,18.03.2015,Westminster House,"Refuse Collection, Disposal and Recycling Costs",43.68,BIFFA WASTE SERVICES LTD,1423
Revenue,Head of ASC & Community Wellbeing,5105613163,06.03.2015,Westminster House,"Refuse Collection, Disposal and Recycling Costs",43.68,BIFFA WASTE SERVICES LTD,1424
Revenue,Head of HR & Organisational Change,5105618778,18.03.2015,"Westridge, Ryde","Refuse Collection, Disposal and Recycling Costs",46.24,BIFFA WASTE SERVICES LTD,1425
Revenue,Head of HR & Organisational Change,5105613163,06.03.2015,"Westridge, Ryde","Refuse Collection, Disposal and Recycling Costs",18.70,BIFFA WASTE SERVICES LTD,1426
Revenue,Head of Economy & Tourism,5105618778,18.03.2015,Cothey Bottom Store RYDE,"Refuse Collection, Disposal and Recycling Costs",23.12,BIFFA WASTE SERVICES LTD,1427
Revenue,Head of Economy & Tourism,5105613163,06.03.2015,Cothey Bottom Store RYDE,"Refuse Collection, Disposal and Recycling Costs",9.35,BIFFA WASTE SERVICES LTD,1428
Revenue,Head of Economy & Tourism,5105618778,18.03.2015,Westridge Squash Courts,"Refuse Collection, Disposal and Recycling Costs",23.12,BIFFA WASTE SERVICES LTD,1429
Revenue,Head of Economy & Tourism,5105613163,06.03.2015,Westridge Squash Courts,"Refuse Collection, Disposal and Recycling Costs",9.35,BIFFA WASTE SERVICES LTD,1430
Revenue,Director of Childrens Services,5105613163,06.03.2015,Sandham Middle School Disposal,"Refuse Collection, Disposal and Recycling Costs",432.40,BIFFA WASTE SERVICES LTD,1431
Revenue,Director of Childrens Services,5105613163,06.03.2015,Sandham Middle School Disposal,"Refuse Collection, Disposal and Recycling Costs",326.60,BIFFA WASTE SERVICES LTD,1432
Revenue,Director of Childrens Services,5105613163,06.03.2015,Sandham Middle School Disposal,"Refuse Collection, Disposal and Recycling Costs",492.20,BIFFA WASTE SERVICES LTD,1433
Revenue,Director of Childrens Services,5105613163,06.03.2015,Sandham Middle School Disposal,"Refuse Collection, Disposal and Recycling Costs",409.40,BIFFA WASTE SERVICES LTD,1434
Revenue,Director of Childrens Services,5105617491,06.03.2015,Leaving Care Costs,Support Children,65.00,REDACTED PERSONAL DATA,1435
Revenue,Director of Childrens Services,5105618212,13.03.2015,Leaving Care Costs,Support Children,65.00,REDACTED PERSONAL DATA,1436
Revenue,Director of Childrens Services,5105619808,20.03.2015,Leaving Care Costs,Support Children,65.00,REDACTED PERSONAL DATA,1437
Revenue,Director of Childrens Services,5105621408,27.03.2015,Leaving Care Costs,Support Children,65.00,REDACTED PERSONAL DATA,1438
Revenue,Head of Exchequer Services,5105620262,25.03.2015,Staff Benefits,Payment to Private Contractors,156.60,BLACKBERRY LANE PRE-SCHOOL,1439
Revenue,Head of Exchequer Services,5105620262,25.03.2015,Staff Benefits,Payment to Private Contractors,45.00,BLACKBERRY LANE PRE-SCHOOL,1440
Revenue,Director of Childrens Services,5105617202,04.03.2015,Purchased Fostering,Charges from Independent Providers,"3,101.55",BLUE SKY FOSTERING LTD,1441
Revenue,Director of Childrens Services,5105617201,04.03.2015,Purchased Fostering,Charges from Independent Providers,"3,101.55",BLUE SKY FOSTERING LTD,1442
Revenue,Director of Childrens Services,5105617204,04.03.2015,Purchased Fostering,Charges from Independent Providers,"3,101.55",BLUE SKY FOSTERING LTD,1443
Revenue,Director of Childrens Services,5105617644,11.03.2015,Beaulieu House,General Materials,33.50,BOC LTD,1444
Revenue,Director of Childrens Services,5105619281,18.03.2015,Short Breaks,Charges from Independent Providers,520.00,BODSTER EQUINE ASSISTED LEARN CIC,1445
Revenue,Director of Childrens Services,5105622088,31.03.2015,Short Breaks,Operational Equipment,235.00,BODSTER EQUINE ASSISTED LEARN CIC,1446
Revenue,Head of ASC & Community Wellbeing,5105618639,18.03.2015,Plean Dene,Catering Purchases,73.19,BOOKER CASH & CARRY LTD,1447
Revenue,Head of ASC & Community Wellbeing,5105621231,25.03.2015,Plean Dene,Catering Purchases,34.10,BOOKER CASH & CARRY LTD,1448
Revenue,Head of ASC & Community Wellbeing,5105621233,27.03.2015,Plean Dene,Catering Purchases,11.95,BOOKER CASH & CARRY LTD,1449
Revenue,Head of ASC & Community Wellbeing,5105621552,27.03.2015,Plean Dene,Catering Purchases,39.31,BOOKER CASH & CARRY LTD,1450
Revenue,Director of Childrens Services,5105615285,12.03.2015,Pupil Premium Managed Centrally,General Materials,700.56,BOOKTRUST,1451
Revenue,Director of Childrens Services,5105618590,20.03.2015,Pupil Premium Managed Centrally,General Materials,700.56,BOOKTRUST,1452
Revenue,Director of Childrens Services,5105618322,12.03.2015,Pupil Premium Managed Centrally,General Materials,-700.56,BOOKTRUST,1453
Revenue,Director of Childrens Services,5105615285,12.03.2015,Pupil Premium Managed Centrally,General Materials,700.56,BOOKTRUST,1454
Revenue,Director of Childrens Services,5105618590,20.03.2015,Pupil Premium Managed Centrally,General Materials,700.56,BOOKTRUST,1455
Revenue,Director of Childrens Services,5105618322,12.03.2015,Pupil Premium Managed Centrally,General Materials,-700.56,BOOKTRUST,1456
Revenue,Director of Childrens Services,5105615285,12.03.2015,Pupil Premium Managed Centrally,General Materials,400.32,BOOKTRUST,1457
Revenue,Director of Childrens Services,5105618590,20.03.2015,Pupil Premium Managed Centrally,General Materials,400.22,BOOKTRUST,1458
Revenue,Director of Childrens Services,5105618322,12.03.2015,Pupil Premium Managed Centrally,General Materials,-400.32,BOOKTRUST,1459
Revenue,Director of Childrens Services,5105615285,12.03.2015,Pupil Premium Managed Centrally,General Materials,203.70,BOOKTRUST,1460
Revenue,Director of Childrens Services,5105618590,20.03.2015,Pupil Premium Managed Centrally,General Materials,203.70,BOOKTRUST,1461
Revenue,Director of Childrens Services,5105618322,12.03.2015,Pupil Premium Managed Centrally,General Materials,-203.70,BOOKTRUST,1462
Revenue,Director of Childrens Services,5105615285,12.03.2015,Pupil Premium Managed Centrally,General Materials,203.70,BOOKTRUST,1463
Revenue,Director of Childrens Services,5105618590,20.03.2015,Pupil Premium Managed Centrally,General Materials,203.70,BOOKTRUST,1464
Revenue,Director of Childrens Services,5105618322,12.03.2015,Pupil Premium Managed Centrally,General Materials,-203.70,BOOKTRUST,1465
Revenue,Director of Childrens Services,5105615285,12.03.2015,Pupil Premium Managed Centrally,General Materials,116.38,BOOKTRUST,1466
Revenue,Director of Childrens Services,5105618590,20.03.2015,Pupil Premium Managed Centrally,General Materials,116.48,BOOKTRUST,1467
Revenue,Director of Childrens Services,5105618322,12.03.2015,Pupil Premium Managed Centrally,General Materials,-116.38,BOOKTRUST,1468
Revenue,Managing Director & Head of Paid Service,5105619219,18.03.2015,Contraception,Payment to Private Contractors,279.50,BOOTS THE CHEMIST LTD (Ryde),1469
Revenue,Managing Director & Head of Paid Service,5105619219,18.03.2015,Contraception,Payment to Private Contractors,62.40,BOOTS THE CHEMIST LTD (Ryde),1470
Revenue,Managing Director & Head of Paid Service,5105619219,18.03.2015,Drug Misuse - Adults,Payment to Private Contractors,553.00,BOOTS THE CHEMIST LTD (Ryde),1471
Revenue,Managing Director & Head of Paid Service,5105619219,18.03.2015,Drug Misuse - Adults,Payment to Private Contractors,864.00,BOOTS THE CHEMIST LTD (Ryde),1472
Revenue,Managing Director & Head of Paid Service,5105620053,20.03.2015,Drug Misuse - Adults,Payment to Private Contractors,84.00,BOOTS UK LTD (107 HIGH ST SANDOWN),1473
Revenue,Managing Director & Head of Paid Service,5105620053,20.03.2015,Drug Misuse - Adults,Payment to Private Contractors,394.00,BOOTS UK LTD (107 HIGH ST SANDOWN),1474
Revenue,Managing Director & Head of Paid Service,5105621225,25.03.2015,Contraception,Payment to Private Contractors,43.00,BOOTS UK LTD (COWES),1475
Revenue,Managing Director & Head of Paid Service,5105621225,25.03.2015,Contraception,Payment to Private Contractors,10.40,BOOTS UK LTD (COWES),1476
Revenue,Managing Director & Head of Paid Service,5105621225,25.03.2015,Contraception,Payment to Private Contractors,3.55,BOOTS UK LTD (COWES),1477
Revenue,Managing Director & Head of Paid Service,5105621225,25.03.2015,Drug Misuse - Adults,Payment to Private Contractors,119.00,BOOTS UK LTD (COWES),1478
Revenue,Managing Director & Head of Paid Service,5105621225,25.03.2015,Drug Misuse - Adults,Payment to Private Contractors,400.00,BOOTS UK LTD (COWES),1479
Revenue,Managing Director & Head of Paid Service,5105619200,18.03.2015,STI Tests & Treatment,Payment to Private Contractors,30.00,BOOTS UK LTD (NEWPORT),1480
Revenue,Managing Director & Head of Paid Service,5105619200,18.03.2015,STI Tests & Treatment,Payment to Private Contractors,30.00,BOOTS UK LTD (NEWPORT),1481
Revenue,Managing Director & Head of Paid Service,5105619200,18.03.2015,STI Tests & Treatment,Payment to Private Contractors,16.08,BOOTS UK LTD (NEWPORT),1482
Revenue,Managing Director & Head of Paid Service,5105619200,18.03.2015,Contraception,Payment to Private Contractors,107.50,BOOTS UK LTD (NEWPORT),1483
Revenue,Managing Director & Head of Paid Service,5105619200,18.03.2015,Contraception,Payment to Private Contractors,26.00,BOOTS UK LTD (NEWPORT),1484
Revenue,Managing Director & Head of Paid Service,5105618815,18.03.2015,Drug Misuse - Adults,Payment to Private Contractors,31.50,BOOTS UK LTD (SANDOWN LARGE STORE),1485
Revenue,Managing Director & Head of Paid Service,5105618815,18.03.2015,Drug Misuse - Adults,Payment to Private Contractors,250.00,BOOTS UK LTD (SANDOWN LARGE STORE),1486
Revenue,Managing Director & Head of Paid Service,5105619556,18.03.2015,Contraception,Payment to Private Contractors,5.20,BOOTS UK LTD (TOWER HOUSE),1487
